{"text_format":"1","workbook":"xlsx","n_sheets":8,"sheets":["BD","Home","Listes","Accueil","Projet","Calepinage","Dessin","Bon de commande"],"not_rendered":{"charts":0,"images":107,"macros":1,"external_links":0,"defined_names":115,"comments":1,"pivot_tables":0},"unopened":[],"bounds":{"document_bytes":16777216,"sheet_cells":100000,"rows_first":2000,"rows_last":500,"rows_between":2000,"halvings":0,"cell_chars":16384,"cell_head_chars":4096},"cells_cut":0,"cells_raw":0,"read":"whole","date_system":"1900"}

{"sheet":"BD","index":0,"n_rows":191,"n_cols":42,"rows_kept":191,"cut":false,"hidden":true,"merged":[]}
["Variable","Français","English","Nederlands","Deutsch","Magyar","Polski","русский","Česky",null,null,null,null,null,null,null,null,null,"Références","Traduction","version","couleur","intitulé","anglais","Nederlands","allemand","hungarian","POLISH","russian","czech",null,null,null,null,null,null,null,"Références Nav",null,"paysage"]
["HomeT1","BIENVENUE DANS L'OUTIL DE DIMENSIONNEMENT ET COMMANDE ","WELCOME TO THE SIZING AND CONTROL TOOL ","WELKOM IN HET DIMENSIONERINGS- EN BESTELTOOL","WILLKOMMEN BEIM AUSLEGUNGS- UND BESTELLTOOL ","Üdvözöljük a méretező és gyors tervező programban","ZAPRASZAMY DO SKORZYSTANIA Z NARZĘDZIA DO WYMIAROWANIA I KALKULACJI","ДОБРО ПОЖАЛОВАТЬ В ИНСТРУМЕНТ ПЛАНИРОВАНИЯ И РАСЧЁТА ","VÍTEJTE V KONFIGURÁTORU PLÁNOVÁNÍ A VÝPOČTU",null,null,null,null,null,null,null,null,null,"COINDALUATEC ","AberFaitDATEC","v.TS-1","ALU","Abergement Angle DROIT Gris-v.TS-1","Top RIGHT Angle Flashing Grey-v.TS-1",null,"Winkelverblechung rechts v.TS-1 ALU","Felső JOBB Szögzáró Burkolat Szürke-v.TS-1","Górna PRAWA obróbka kątowa Szary-v.TS-1","Верхняя правая угловая планка v.TS-1 Серая","Pravá horní rohová lišta v.TS-1 Šedá",null,null,null,null,null,null,null,"ART101379",null,"1559 / 1046","ART100401",34.15]
["HomeT2","DU GSE INTEGRATION IN-ROOF SYSTEM","OF GSE INTEGRATION IN-ROOF SYSTEM","VAN HET GSE INTEGRATION IN-ROOF SYSTEM","FÜR DAS GSE INTEGRATION IN-ROOF SYSTEM","A GSE Tetőszerkezetbe Építhető Rendszeréhez","SYSTEMU IN-ROOF GSE INTEGRATION","ИНТЕГРАЦИИ GSE IN-ROOF SYSTEM","INTEGRAČNÍHO SYSTÉMU GSE INTEGRATION IN-ROOF SYSTEM",null,null,null,null,null,null,null,null,null,"COINDNOIRATEC ","AberFaitDATEC","v.TS-1","NOIR","Abergement Angle DROIT Noir-v.TS-1","Top RIGHT Angle Flashing Black-v.TS-1","Hoekafdekplaat RECHTS boven Zwart TS1","Winkelverblechung rechts v.TS-1 Schwarz","Felső JOBB Szögzáró Burkolat Fekete-v.TS-1","Górna PRAWA obróbka kątowa Czarny-v.TS-1","Верхняя правая угловая планка v.TS-1 Чёрная","Pravá horní rohová lišta v.TS-1 Černá",null,null,null,null,null,null,null,"ART101295",null,"1575 / 1082","ART100048",34.15]
["HomeT3","Vous trouverez à travers cette application l'outil qui vous permettra de calculer et de dimensionner vos commandes","You will find through this application the tool that will allow you to calculate and size your orders","Via deze toepassing vindt u het hulpmiddel waarmee u uw bestellingen kunt berekenen en de grootte ervan kunt bepalen","Mit dieser Anwendung erhalten Sie ein Werkzeug, das es Ihnen erlaubt, Ihre Aufträge auszulegen und zu berechnen.","Ez az eszköz segít meghatározni a szükséges paramétereket és rendelési listát","W tej aplikacji znajdziesz narzędzie, które pozwoli Ci obliczyć i określić wielkość zamówień","Это приложение позволит вам рассчитать размеры и определить стоимость вашего проекта","Tato aplikace vám umožní vypočítat rozměry a určit náklady na váš projekt",null,null,null,null,null,null,null,null,null,"ANGL_COIN_DROIT_AR ","AberFaitDATEC","v.A-1","Noir","Abergement Angle DROIT Noir-v.A-1","Top RIGHT Angle Flashing Black-v.A-1","Hoekafdekplaat RECHTS boven Zwart A1","Winkelverblechung rechts v.A-1 Schwarz","Felső JOBB Szögzáró Burkolat Fekete-v.A-1","Górna PRAWA obróbka kątowa Czarny-v.A-1","Верхняя правая угловая планка v.А-1 Чёрная","Pravá horní rohová lišta v.A-1 Černá",null,null,null,null,null,null,null,"ART100195",null,"1580 / 808","ART100713",26]
["Dim","Dimensionner","Size","Maat","Auslegen","Méret","Wymiar","Размер","Velikost",null,null,null,null,null,null,null,null,null,"COINGALUATEC ","AberFaitGATEC","v.TS-1","ALU","Abergement Angle GAUCHE Gris-v.TS-1","Top LEFT Angle Flashing Grey-v.TS-1",null,"Winkelverblechung links v.TS-1 ALU","Felső BAL Szögzáró Burkolat Szürke-v.TS-1","Górna LEWA obróbka kątowa Szary-v.TS-1","Верхняя левая угловая планка v.TS-1 Серая","Levá horní rohová lišta v.TS-1 Šedá",null,null,null,null,null,null,null,"ART100785",null,"1640 / 992","ART100356",34.15]
["RefCmpPV","Référence du projet","Project reference","Project referentie","Projekt-Modulfeldreferenz","Project szám","Nr referencyjny projektu","Ссылка на проект","Reference projektu",null,null,null,null,null,null,null,null,null,"COINGNOIRATEC ","AberFaitGATEC","v.TS-1","NOIR","Abergement Angle GAUCHE Noir-v.TS-1","Top LEFT Angle Flashing Black-v.TS-1","Hoekafdekplaat LINKS boven Zwart TS1","Winkelverblechung links v.TS-1 Schwarz","Felső BAL Szögzáró Burkolat Fekete-v.TS-1","Górna LEWA obróbka kątowa Czarny-v.TS-1","Верхняя левая угловая планка v.TS-1 Чёрная","Levá horní rohová lišta v.TS-1 Černá",null,null,null,null,null,null,null,"ART100285",null,"1650 / 992","ART101488",34.15]
["DimToit","Caractéristiques du toit","Roof Dimensions","Dakafmetingen","Dachabmessungen","Tető méretei","Wymiary dachu ","Размеры крыши","Rozměry střechy",null,null,null,null,null,null,null,null,null,"ANGL_COIN_GAUCH_AR ","AberFaitGATEC","v.A-1","Noir","Abergement Angle GAUCHE Noir-v.A-1","Top LEFT Angle Flashing Black-v.A-1","Hoekafdekplaat LINKS boven Zwart-A1","Winkelverblechung links v.A-1 Schwarz","Felső BAL Szögzáró Burkolat Fekete-v.A-1","Górna LEWA obróbka kątowa Czarny-v.A-1","Верхняя правая угловая планка v.А-1 Серая","Pravá horní rohová lišta v.A-1 Šedá",null,null,null,null,null,null,null,"ART101291",null,"1660 / 992","ART101502",34.15]
["Calepinage","Calepinage","Layout","Layout","Lattenplan","Elrendezés","Układ","Раскладка","Rozložení",null,null,null,null,null,null,null,null,null,"AFSA2013","AberFaitCATEC","LG 1.50 m","ALU","Abergement Haut Central Universel Gris L 1500mm","Universal Top Centre Flashing - Grey L 1500mm ",null,"First-Hauptverblechung  LG 1.50 m ALU","Univerzális Felső Közép Burkolat - Szürke L 1500mm","Uniwersalna górna śodkowa obróbka - Szary L 1500mm ","Универсальная верхняя центральная планка L 1500мм Серая","Univerzální horní středová lišta L 1500mm Šedá",null,null,null,null,null,null,null,"ART100695",null,"1670 / 992","ART101266",34.15]
["DimMod","Caractéristiques du module","Module Dimensions","Module afmetingen","Modulabmessungen","Modul méretek","Wymiary modułu","Размеры модуля","Rozměry modulu",null,null,null,null,null,null,null,null,null,"AFCUNL1500","AberFaitCATEC","LG 1.50 m","NOIR","Abergement Haut Central Universel Noir L 1500mm","Universal Top Centre Flashing - Black L 1500mm ","Universele afdekplaat midden boven - Zwart L 1500mm ","First-Hauptverblechung  LG 1.50 m Schwarz","Univerzális Felső Közép Burkolat - Fekete L 1500mm","Uniwersalna górna środkowa obróbka - Czarny L 1500mm ","Универсальная верхняя центральная планка L 1500мм Чёрная","Univerzální horní středová lišta L 1500mm Černá",null,null,null,null,null,null,null,"ART101041 ",null,"1675 / 992 P33","ART100675",34.15]
["Long","Longueur (L)","Length (L)","Lengte (L)","Länge (L)","Hossz (L)","Długość (L)","Длина (L)","Délka (L)",null,null,null,null,null,null,null,null,null,"COINDALU2014_15","AberFaitD",null,"ALU","Abergement Angle Haut Droit Universel Gris ","Top Right Corner Flashing - Grey",null,"Eckverblechung rechts ALU","Felső Jobb Sarok Burkolat - Szürke","Obróbka górna prawy narożnik - Szary","Планка верхнего правого угла - Серая","Lišta pravého horního rohu - Šedá",null,null,null,null,null,null,null,"ART101340",null,"1680 / 992","ART100761",34.15]
["Ramp","Rampant (R)","Roof Width (R)","Dakbreedte (R)","Länge der Dachschräge (R)","Tető szélesség (R)","Szerokość dachu (R)","Ширина крыши (R)","Šířka střechy (R)",null,null,null,null,null,null,null,null,null,"COINDNOIR2014_15","AberFaitD",null,"NOIR","Abergement Angle Haut Droit Universel Noir ","Top Right Corner Flashing - Black","Universele hoekafdekplaat RECHTS boven Zwart","Eckverblechung rechts Schwarz","Felső Jobb Sarok Burkolat - Fekete","Obróbka górna prawy narożnik - Czarny","Планка верхнего правого угла - Чёрная","Lišta pravého horního rohu -  Černá",null,null,null,null,null,null,null,"ART100574",null,"1686 / 1016","ART100252",34.15]
["Haut","Hauteur (H)","Height (H)","Hoogte (H)","Höhe (H)","Magasság (H)","Wysokość (H)","Высота (H)","Výška (H)",null,null,null,null,null,null,null,null,null,"COINGALU2014_15","AberFaitG",null,"ALU","Abergement Angle Haut Gauche Universel Gris ","Top Left Corner Flashing - Grey",null,"Eckverblechung links ALU","Felső Bal Sarok Burkolat - Szürke","Obróbka górna lewy narożnik - Szary","Планка верхнего левого угла - Серая","Lišta levého horního rohu - Šedá",null,null,null,null,null,null,null,"ART100862",null,"1700 / 1016","ART100092",34.15]
["Larg","Largeur (W)","House Width (W)","Breedte (W)","Breite (W)","Ház szélesség (W)","Szerokość budynku (W)","Ширина здания (W)","Šířka budovy (W)",null,null,null,null,null,null,null,null,null,"COINGNOIR2014_15","AberFaitG",null,"NOIR","Abergement Angle Haut Gauche Universel Noir ","Top Left Corner Flashing - Black","Universele hoekafdekplaat LINKS boven Zwart","Eckverblechung links Schwarz","Felső Bal Sarok Burkolat - Fekete","Obróbka górna lewy narożnik - Czarny","Планка верхнего левого угла - Чёрная","Lišta levého horního rohu -  Černá",null,null,null,null,null,null,null,"ART100945",null,"1665 / 1020","ART102153",34.15]
["Epai","Epaisseur (E)","Thickness (E)","Dikte (E)","Dicke (E)","Vastagság (E)","Grubość (E)","Толщина (E)","Tloušťka (E)",null,null,null,null,null,null,null,null,null,"AFJA2013","AberFaitJonc",null,"ALU","Abergement Haut Jonction Universel Gris L 375mm  ","Top Junction Flashing - Grey L 375mm",null,"Verbindungsblech Firstverblechung ALU","Felső Csatlakozás Burkolat - Szürke L 375mm","Obróbka łącząca górna- Szary L 375mm","Соеденитель верхнего отлива L 375мм Серый","Spojka připojení horní lišty L 375mm Šedá",null,null,null,null,null,null,null,"ART100558",null,"1675 / 1020","ART102160",34.15]
["CalPort","Calepinage portrait","Portrait Layout","Portrait opstelling","Lattenplan für hochkant-Montage","Álló tájolás","Układ pionowy","Вертикальная раскладка","Rozložení na výšku",null,null,null,null,null,null,null,null,null,"AFJUNL375","AberFaitJonc",null,"NOIR","Abergement Haut Jonction Universel Noir L 375mm  ","Top Junction Flashing - Black L 375mm","Universele verbinding bovenste afdekplaat Zwart L 375mm  ","Verbindungsblech Firstverblechung Schwarz","Felső Csatlakozás Burkolat - Fekete L 375mm","Obróbka łącząca górna - Czarny L 375mm","Соеденитель верхнего отлива L 375мм Чёрный","Spojka připojení horní lišty L 375mm černá",null,null,null,null,null,null,null,"ART100039",null,"1680 / 1020","ART102167",34.15]
["CalPays","Calepinage paysage","Landscape Layout","Landscape opstelling","Lattenplan für Querformat-Montage","Fekvő tájolás","Układ poziomy","Горизонтальная раскладка","Rozložení na šířku",null,null,null,null,null,null,null,null,null,"ABER_HAUT_ATEC_ALU ","AberFaitC","v.TS-1","ALU","Abergement haut Gris 1001-v.TS-1","Top Centre Flashing Grey 1001-v.TS-1 ",null,"First-Hauptverblechung  1001-v.TS-1 ALU","Felső Közép Burkolat Szürke 1001-v.TS-1","Górna środkowa obróbka blacharska Szary 1001-v.TS-1 ","Верхняя центральная планка 1001-v.TS-1 Серая","Horní středová lišta 1001-v.TS-1 Šedá",null,null,null,null,null,null,null,"ART100441",null,"1685 / 1020","ART102174",34.15]
["CorPlakGSE","Plaque GSE correspondante","Corresponding GSE Frame","Overeenkomstige GSE-plaat","Entsprechende GSE-Wanne","Megfelelő GSE keret","Odpowiednia rama GSE","Соответствующая рама GSE","Odpovídající rám GSE",null,null,null,null,null,null,null,null,null,"ABER_HAUT_ATEC_NOI ","AberFaitC","v.TS-1","NOIR","Abergement haut Noir 1001-v.TS-1","Top Centre Flashing Black 1001-v.TS-1 ","Afdekplaat midden boven Zwart 1001-TS1 ","First-Hauptverblechung  1001-v.TS-1 Schwarz","Felső Közép Burkolat Fekete 1001-v.TS-1","Górna środkowa obróbka blacharska Czarny 1001-v.TS-1 ","Верхняя центральная планка 1001-v.TS-1 Чёрная","Horní středová lišta 1001-v.TS-1 Černá",null,null,null,null,null,null,null,"ART100557",null,"1690 / 1020","ART102181",34.15]
["FeatCmpPV","Composants du kit","Kit components","Onderdelen van de installatie","Eigenschaften der Installation des Modulfeldes","Csomag elemei","Elementy zestawu","Компоненты комплекта","Součásti soupravy",null,null,null,null,null,null,null,null,null,"AB_HAUT_1001_VA1 ","AberFaitC","v.A-1","NOIR","Abergement haut 1001-v.A-1","Top Centre Flashing 1001-v.A-1 ","Afdekplaat midden boven 1001-A1 ","First-Hauptverblechung  1001-v.A-1 ATEC Schiefer","Felső Közép Burkolat 1001-v.A-1","Górna środkowa obróbka blacharska 1001-v.A-1 ","Верхняя центральная планка 1001-v.A-1","Horní středová lišta 1001-v.A-1",null,null,null,null,null,null,null,"ART101014",null,"1695 / 1020","ART104182",34.15]
["TypeCov","Type de couverture","Roof covering","Type dakbedekking","Art der Dachbedeckung","Tetőfedés típusa","Rodzaj pokrycia dachu","Кровельное покрытие","Střešní krytina",null,null,null,null,null,null,null,null,null,"AB_HAUT_1046_VA1 ","AberFaitC","v.A-1","NOIR","Abergement haut 1046-v.A-1","Top Centre Flashing 1046-v.A-1 ","Afdekplaat midden boven 1046-A1 ","First-Hauptverblechung  1046-v.A-1 ATEC Schiefer","Felső Közép Burkolat 1046-v.A-1","Górna środkowa obróbka blacharska 1046-v.A-1 ","Верхняя центральная планка 1046-v.A-1","Horní středová lišta 1046-v.A-1",null,null,null,null,null,null,null,"ART101567",null,"1700 / 1020","ART102188",34.15]
["Ardoise","Ardoise","Slate","Leien","Schiefer","Pala","Łupek","Шифер","Břidlice",null,null,null,null,null,null,null,null,null,"AB_HAUT_992_VA1 ","AberFaitC","v.A-1","NOIR","Abergement haut 992-v.A-1","Top Centre Flashing 992-v.A-1 ","Afdekplaat midden boven 992-A1 ","First-Hauptverblechung  992-v.A-1 ATEC Schiefer","Felső Közép Burkolat 992-v.A-1","Górna środkowa obróbka blacharska 992-v.A-1 ","Верхняя центральная планка 992-v.A-1","Horní středová lišta 992-v.A-1",null,null,null,null,null,null,null,"ART100820",null,"1705 / 1020","ART104189",34.15]
["TuileC","Tuile à fort galbe","Curved Tiles","Gebogen dakpannen","Kanalziegel","Hullámcserép","Dachówka falista","Изогнутая черепица","Střešní zakřivená taška",null,null,null,null,null,null,null,null,null,"AB_HAUT_SPEC_ALU","AberFaitC","v.TS-1","ALU","Abergement Faîtage central zzz ALU","Top Centre Flashing zzz ALU",null,"First-Hauptverblechung zzz ALU","Felső Közép Burkolat zzz ALU","Górna środkowa obróbka blacharska zzz ALU","Верхняя центральная планка zzz - Серая","Horní středová lišta zzz - Šedá",null,null,null,null,null,null,null,null,null,"1720 / 1020","ART104196",34.15]
["Tuile","Tuile plate","Flat tiles","Platte dakpannen","Ziegel","Lapos cserép","Dachówka płaska","Плоская черепица","Ploché střešní taška",null,null,null,null,null,null,null,null,null,"AB_HAUT_SPEC_NOIR","AberFaitC","v.TS-1","NOIR","Abergement Faîtage central zzz NOIR","Top Centre Flashing zzz BLACK","Afdekplaat midden boven zzz ZWART","First-Hauptverblechung zzz Schwarz","Felső Közép Burkolat zzz FEKETE","Górna środkowa obróbka blacharska zzz Czarny","Верхняя центральная планка zzz - Чёрная","Horní středová lišta zzz - Černá",null,null,null,null,null,null,null,null,null,"1740 / 1020","ART102195",34.15]
["PlaqueN","Plaque nervurée","Trapezoidal sheet","Trapeziumvormige plaat","Trapezblech","Trapézlemez","Blacha trapezowa","Трапециевидный лист","Trapézový plech",null,null,null,null,null,null,null,null,null,"RACC_ABER_HAUT_ARD ","AberFaitJonc","v.A-1","NOIR","Jonction haute Noir-v.A-1","Junction for Top Flashing Black-v.A-1","Verbinding voor bovenste afdekplaat Zwart-A1","Verbindungsblech Firstverblechung v.A-1 Schwarz","Csatlakozás Felső Burkolathoz Fekete-v.A-1","Łącznik do obróbki górnej Czarny-v.A-1","Соеденитель для верхнего отлива v.A-1 - Чёрный","Spojka pro horní lištu v. A1 - Černá",null,null,null,null,null,null,null,"ART100110",null,"portrait"]
["TuileM","Tuile mécanique","Interlocking tile","In elkaar grijpende dakpan","Falzziegel","Reteszelő tetőcserép","Dachówka zakładkowa","Сцепляющаяся черепица","Zámková taška",null,null,null,null,null,null,null,null,null,"ALAALUDROITATEC ","AberLatATEC","v.TS-1","ALU","Abergement latéral DROIT Gris-v.TS-1","RIGHT Lateral Flashing Grey-v.TS-1 ",null,"Seitliche Verblechung Rechts  v.TS-1 ALU","JOBB Oldalsó Burkolat Szürke-v.TS-1","PRAWA Obróbka boczna Szary-v.TS-1 ","Правая торцевая планка v.TS-1 - Серая","Pravá koncová lišta v.TS-1 -Šedá",null,null,null,null,null,null,null,"ART100079",null,"1559 / 1046","ART100826",34.15]
["PlaqueO","Plaque ondulée","Corrugated sheet","Golfplaat","Wellblech","Hullámlemez","Blacha falista","Гофрированный лист","Vlnitý plech",null,null,null,null,null,null,null,null,null,"ALABLKDROITATEC ","AberLatATEC","v.TS-1","NOIR","Abergement latéral DROIT Noir-v.TS-1","RIGHT Lateral Flashing Black-v.TS-1 ","Zijafdekplaat RECHTS Zwart-TS1","Seitliche Verblechung Rechts v.TS-1 Black","JOBB Oldalsó Burkolat Fekete-v.TS-1","PRAWA Obróbka boczna Czarny-v.TS-1 ","Правая торцевая планка v.TS-1 - Чёрная","Pravá koncová lišta v.TS-1 - Černá",null,null,null,null,null,null,null,"ART100973",null,"1575 / 1053","ART101493",34.15]
["InclT","Inclinaison (α)","Roof Slope (α)","Dakhelling (α)","Dachneigung (α)","Tető lejtése (α)","Kąt nachylenia dachu (α)","Наклон крыши (α)","Sklon střechy (α)",null,null,null,null,null,null,null,null,null,"ABER_LAT_DROIT_ARD ","AberLatATEC","v.A-1","NOIR","Abergement latéral DROIT Noir-v.A-1","RIGHT Lateral Flashing Black-v.A-1","Zijafdekplaat RECHTS Zwart-A1","Seitliche Verblechung Rechts v.A-1 Black","JOBB Oldalsó Burkolat Fekete-v.A-1","PRAWA Obróbka boczna Czarny-v.A-1","Правая торцевая планка v.A-1 - Чёрная","Pravá koncová lišta v.A-1 - Černá",null,null,null,null,null,null,null,"ART100429",null,"1575 / 1082","ART101465",34.15]
["RacFait","Raccord haut","Top connection","Bovenste aansluiting","Firstanbindung","Felső csatlakozás","Połączenie na górze","Верхнее соединение","Horní připojení",null,null,null,null,null,null,null,null,null,"ALAALUGAUCHEATEC ","AberLatATEC","v.TS-1","ALU","Abergement latéral GAUCHE Gris-v.TS-1","LEFT Lateral Flashing Grey-v.TS-1 ",null,"Seitliche Verblechung Links  v.TS-1 ALU","BAL Oldalsó Burkolat Szürke-v.TS-1","LEWA Obróbka boczna Szary-v.TS-1 ","Левая торцевая планка v.TS-1 - Серая","Levá koncová lišta v.TS-1 - Šedá",null,null,null,null,null,null,null,"ART100057",null,"1580 / 808","ART100450",26]
["None1","Aucun","None","Geen","Keine","Nincs","Brak","Никакой","Nic",null,null,null,null,null,null,null,null,null,"ALABLKGAUCHEATEC ","AberLatATEC","v.TS-1","NOIR","Abergement latéral GAUCHE Noir-v.TS-1","LEFT Lateral Flashing Black-v.TS-1 ","Zijafdekplaat LINKS Zwart-TS1","Seitliche Verblechung Links v.TS-1 Black","BAL Oldalsó Burkolat Fekete-v.TS-1","LEWA Obróbka boczna Czarny-v.TS-1 ","Левая торцевая планка v.TS-1 - Чёрная","Levá koncová lišta v.TS-1 - Černá",null,null,null,null,null,null,null,"ART101030",null,"1640 / 992","ART100220",34.15]
["AberFait","Abergement","Flashing","Afdekplaat  ","Firstverblechung","Burkolat","Obróbka blacharska","Доборный элемент","Krycí lišty",null,null,null,null,null,null,null,null,null,"ABER_LAT_GAUCH_AR ","AberLatATEC","v.A-1","NOIR","Abergement latéral GAUCHE Noir-v.A-1","LEFT Lateral Flashing Black-v.A-1","Zijafdekplaat LINKS Zwart-A1","Seitliche Verblechung Links v.A-1 Black","BAL Oldalsó Burkolat Fekete-v.A-1","LEWA Obróbka boczna Czarny-v.A-1","Левая торцевая планка v.A-1 - Чёрная","Levá koncová lišta v.A-1 - Černá",null,null,null,null,null,null,null,"ART100568",null,"1640 / 1001","ART100700",34.15]
["RacEgout","Raccord bas","Eaves connection ","Dakrandaansluiting","Dichtigkeitsanbindung traufeseitig","Eresz csatlakozás","Dolne połączenie","Соединение карниза ","Okapové spojení",null,null,null,null,null,null,null,null,null,"ALUAP30TUILBRUTRE3","AberLatUniv","P30","ALU","Abergement Latéral Universel P30 Tuile Gris  ","Lateral Flashing P30 - Grey",null,"Seitliche Verblechung Universal P30 ALU","Oldalsó Burkolat P30 - Szürke","Obróbka boczna P30 - Szary","Торцевая планка Р30 - Серая","Koncová lišta P30 - Šedá",null,null,null,null,null,null,null,"ART100703",null,"1640 / 1001 P33","ART100230",34.15]
["PowerMod","Puissance","Module Power","Module vermogen","Modulleistung","Modul teljesítménye","Moc modułu","Модуль питания","Modul napájení",null,null,null,null,null,null,null,null,null,"ALUNP30TUILNOIRRE3","AberLatUniv","P30","NOIR","Abergement Latéral Universel P30 Tuile Noir","Lateral Flashing P30 - Black","Universele zijafdekplaat P30 - Zwart","Seitliche Verblechung Universal P30 Schwarz","Oldalsó Burkolat P30 - Fekete","Obróbka boczna P30 - Czarny","Торцевая планка Р30 - Чёрная","Koncová lišta P30 - Černá",null,null,null,null,null,null,null,"ART100927",null,"1686 / 1016","ART100702",34.15]
["AberLat","Raccord latéral","Lateral connection","Zij aansluiting","Seitliche Verblechung","Oldalsó csatlakozás","Połączenie boczne","Боковое соединение","Boční spojení",null,null,null,null,null,null,null,null,null,"ALUA","AberLatUniv",null,"ALU","Abergement Latéral Universel Gris ","Lateral Flashing - Grey",null,"Seitliche Verblechung Universal ALU","Oldalsó Burkolat - Szürke","Obróbka boczna - Szary","Торцевая планка - Серая","Koncová lišta - Šedá",null,null,null,null,null,null,null,"ART100673",null,"1710 / 995","ART104168",34.15]
["NbrEtrier","Nombre d'étriers","Number of Clamps","Aantal klemmen","Anzahl Klemmen","Rögzítőbilincsek száma","Liczba zacisków","Количество зажимов","Počet svorek",null,null,null,null,null,null,null,null,null,"ALUN","AberLatUniv",null,"NOIR","Abergement Latéral Universel Noir","Lateral Flashing - Black","Universele zijafdekplaat - Zwart","Seitliche Verblechung Universal Schwarz","Oldalsó Burkolat - Fekete","Obróbka boczna - Czarny","Торцевая планка - Чёрная","Koncová lišta - Černá",null,null,null,null,null,null,null,"ART100494",null,"1710 / 1000","ART102265",34.15]
["LargRooflex","Largeur FLEXALU","FLEXALU Width","Breedte FLEXALU","Breite FLEXALU","FLEXALU szélessége","Szerokość taśmy hydroizolacyjnej","Ширина FLEXALU","Šířka FLEXALU",null,null,null,null,null,null,null,null,null,"CORNIERELAQUEB","Corniere",null,"NOIR","Abergement Haut Cornière Laquée Noire L1400mm (pour la fixation des abergements centraux)","Top Corner Piece Flashing - Black L1400mm (To Join Module to Top Centre Flashings) ","Hoekstuk Zwart L1400 mm om de module te verbinden met de afdekplaat midden boven","Verbindungsstück (zur Befestigung der zentralen Verblechung) Schwarz","Felső Sarok Elem Burkolat - Fekete L1400mm (Modul csatlakoztatásához a Felső Közép Burkolathoz)","Narożnik górny czarny L1400mm (do mocowania środkowych obróbek blacharskich)","Верхняя угловая крышка L1400мм (для крепления модуля к верхней центральной планке) Чёрная","Horní rohový kryt L1400mm (pro upevnění modulu na horní středovou lištu) černý",null,null,null,null,null,null,null,"ART101409",null,"1710 / 1005","ART102272",34.15]
["Noir","Noir","Black","Zwart","Schwarz","Fekete","Czarny","Чёрный","Černý",null,null,null,null,null,null,null,null,null,"CORNIERE","Corniere",null,"ALU","Abergement Haut Cornière Grise L1400mm (pour la fixation des abergements centraux)","Top Corner Piece Flashing - Grey L1400mm (To Join Module to Top Centre Flashings) ",null,"Verbindungsstück (zur Befestigung der zentralen Verblechung) ALU","Felső Sarok Elem Burkolat - Szürke L1400mm (Modul csatlakoztatásához a Felső Közép Burkolathoz)","Narożnik górny szary L1400mm (do mocowania środkowych obróbek blacharskich)","Верхняя угловая крышка L1400мм (для крепления модуля к верхней центральной планке) Серая","Horní rohový kryt L1400mm (pro upevnění modulu na horní středovou lištu) šedý",null,null,null,null,null,null,null,"ART100867",null,"1710 / 1010","ART104175",34.15]
["Rouge","Rouge","Red","Rood","Rot","Piros","Czerwony","Красный","Červený",null,null,null,null,null,null,null,null,null,"CROCHET","Crochet",null,null,"Crochet de Fixation d'Abergement In Roof","GSE Flashing Hook","GSE bevestigingshaakjes afdekplaten","Hafte zur Befestigung der Verblechung","GSE Burkoló Bilincs","GSE Hak do obróbki blacharskiej","Зажим GSE","Svorka GSE",null,null,null,null,null,null,null,"ART100633",null,"1710 / 1020","ART102279",34.15]
["RoofDisplay","Afficher le toit","View the Roof","Bekijk het dak","Dach anzeigen","Tetőnézet","Widok dachu","Посмотреть крышу","Pohled na střechu",null,null,null,null,null,null,null,null,"EtrDblH16ALU","EDH162014ALU (ASV09-35G)","EtrDbl","H16","ALU","Etrier Double H16 - Acier Inox - Gris - In Roof","Double Clamp H16 - Steel - Grey - In Roof ",null,"Verstärkte Mittel-Klemme H16","Középkapocs H16 - Acél - Szürke - Tetőszerkezetbe építő r.","Podwójny zacisk H16 - Stal - Szary - In Roof ","Двухсторонний зажим Н16 - Стальной - Серый - In Roof ","Oboustranná svorka H16 - ocel - šedá - in Roof",null,null,null,null,null,null,null,"ART100045",null,"1710 / 1025","ART102286",34.15]
["HomeBt","Accueil","Home","Homepage","Startseite","Főoldal","Home","Домой","Domů",null,null,null,null,null,null,null,null,"EtrDblH16NOIR","EDH162014N (ASV09-35V)","EtrDbl","H16","NOIR","Etrier Double H16 - Acier Inox - Noir - In Roof ","Double Clamp H16 - Steel - Black - In Roof ","H16 Middenklem - Inox - Zwart - In Roof","Verstärkte Mittel-Klemme H16 Schwarz","Középkapocs H16 - Acél - Fekete - Tetőszerkezetbe építő r.","Podwójny zacisk H16 - Stal - Czarny - In Roof ","Двухсторонний зажим Н16 - Стальной - Чёрный - In Roof ","Oboustranná svorka H16 - ocel - černá - in Roof",null,null,null,null,null,null,null,"ART100482",null,"1710 / 1030","ART102293",34.15]
["CalInstr","Colorier le toit (surface encadrée ci-dessous) à l'aide de la souris, en selectionnant les cellules/cases correspondant aux modules, pour créer le champ PV souhaité.","Color the roof (framed surface below) using the mouse, by selecting the cells / boxes corresponding to the modules, to create the desired PV Plant.","Kleur het dak (omkaderd oppervlak hieronder) met behulp van de muis en slecteer de cellen/vakjes die overeenkomen met de modules om het gewenste PV-veld te creëren","das Dach (untenstehende, gerahmte Fläche) mit Hilfe der Maus markieren und über das Auswählen der einzelnen Zellen das entsprechende PV-Modulfeld erstellen","Az egér használatával adja meg a kívánt napelem panel elrendezést, a következő cellák kiválasztásával.","Pokoloruj dach (obszar w ramce poniżej) za pomocą myszy, wybierając komórki / pola odpowiadające modułom, aby utworzyć żądaną instalację fotowoltaiczną.","Используйте мышь, чтобы указать желаемую схему расположения солнечных панелей, выбрав следующие ячейки.","Vybarvěte střechu (dole zarámovaný povrch) pomocí myši výběrem buněk / polí odpovídajících modulům a vytvořte požadovaný FV systém.",null,null,null,null,null,null,null,null,"EtrDblH19ALU","EDH192014ALU (ASV-38G)","EtrDbl","H19","ALU","Etrier Double H19 - Acier Inox - Gris - In Roof ","Double Clamp H19 - Steel - Grey - In Roof  ",null,"Verstärkte Mittel-Klemme H19","Középkapocs H19 - Acél - Szürke - Tetőszerkezetbe építő r.","Podwójny zacisk H19 - Stal - Szary - In Roof  ","Двухсторонний зажим Н19 - Стальной - Серый - In Roof ","Oboustranná svorka H19 - ocel - šedá - in Roof",null,null,null,null,null,null,null,"ART100171",null,"1710 / 1040","ART103174",34.15]
["NbrRows","Nombres de lignes","Number of Lines","Aantal rijen","Anzahl der Zeilen","Sorok száma","Ilość linii","Количество рядов","Počet řádků",null,null,null,null,null,null,null,null,"EtrDblH19NOIR","EDH192014N (ASV-38V)","EtrDbl","H19","NOIR","Etrier Double H19 - Acier Inox - Noir - In Roof ","Double Clamp H19 - Steel - Black - In Roof ","H19 Middenklem - Inox - Zwart - In Roof","Verstärkte Mittel-Klemme H19 Schwarz","Középkapocs H19 - Acél - Fekete - Tetőszerkezetbe építő r.","Podwójny zacisk H19 - Stal - Czarny - In Roof ","Двухсторонний зажим Н19 - Стальной - Чёрный - In Roof ","Oboustranná svorka H19 - ocel - černá - in Roof",null,null,null,null,null,null,null,"ART100548",null,"1710 / 1045","ART104728",34.15]
["NbrCol","Nombres de colonnes","Number of Columns","Aantal kolommen","Anzahl der Spalten","Oszlopok száma","Ilość kolumn","Количество столбцов","Počet sloupců",null,null,null,null,null,null,null,null,"EtrDblH21ALU","EDH212014ALU (ASV09-40G)","EtrDbl","H21","ALU","Etrier Double H21 - Acier Inox - Gris - In Roof ","Double Clamp H21 - Steel - Grey - In Roof  ",null,"Verstärkte Mittel-Klemme H21","Középkapocs H21 - Acél - Szürke - Tetőszerkezetbe építő r.","Podwójny zacisk H21 - Stal - Szary - In Roof  ","Двухсторонний зажим Н21 - Стальной - Серый - In Roof ","Oboustranná svorka H21 - ocel - šedá - in Roof",null,null,null,null,null,null,null,"ART100597",null,"1710 / 1050","ART102300",34.15]
["NbrMod","Nombres modules","Number of Modules","Aantal zonnepanelen","Anzahl der Module","Modulok száma","Ilość modułów","Количество модулей","Počet modulů",null,null,null,null,null,null,null,null,"EtrDblH21NOIR","EDH212014N (ASV09-40V)","EtrDbl","H21","NOIR","Etrier Double H21 - Acier Inox - Noir - In Roof ","Double Clamp H21 - Steel - Black - In Roof ","H21 Middenklem - Inox - Zwart - In Roof","Verstärkte Mittel-Klemme H21 Schwarz","Középkapocs H21 - Acél - Fekete - Tetőszerkezetbe építő r.","Podwójny zacisk H21 - Stal - Czarny - In Roof ","Двухсторонний зажим Н21 - Стальной - Чёрный - In Roof ","Oboustranná svorka H21 - ocel - černá - in Roof",null,null,null,null,null,null,null,"ART100744",null,"1710 / 1055","ART104413",34.15]
["Ernergy","Energie","Energy","Energie","Energie","Energia","Energia ","Мощность","Napájení",null,null,null,null,null,null,null,null,"EtrDblH23ALU","EDH232014ALU (ASV09-42G)","EtrDbl","H23","ALU","Etrier Double H23 - Acier Inox - Gris - In Roof ","Double Clamp H23 - Steel - Grey - In Roof  ",null,"Verstärkte Mittel-Klemme H23","Középkapocs H23 - Acél - Szürke - Tetőszerkezetbe építő r.","Podwójny zacisk H23 - Stal - Szary - In Roof  ","Двухсторонний зажим Н23 - Стальной - Серый - In Roof ","Oboustranná svorka H23 - ocel - šedá - in Roof",null,null,null,null,null,null,null,"ART101192"]
["ResetCPV","Effacer champ PV","Erase PV Array","Verwijder het PV-veld","Modulfeld löschen","Elrendezés törlése","Usuń macierz PV","Стереть раскладку PV-модулей","Erase PV Array",null,null,null,null,null,null,null,null,"EtrDblH23NOIR","EDH232014N (ASV9-42V)","EtrDbl","H23","NOIR","Etrier Double H23 - Acier Inox - Noir - In Roof ","Double Clamp H23 - Steel - Black - In Roof ","H23 Middenklem - Inox - Zwart - In Roof","Verstärkte Mittel-Klemme H23 Schwarz","Középkapocs H23 - Acél - Fekete - Tetőszerkezetbe építő r.","Podwójny zacisk H23 - Stal - Czarny - In Roof ","Двухсторонний зажим Н23 - Стальной - Чёрный - In Roof ","Oboustranná svorka H23 - ocel - černá - in Roof",null,null,null,null,null,null,null,"ART100658"]
["Purchase","Devis","Cost Estimate","Kostenraming","Zitat","Becsült költség","Szacowanie kosztów","Смета расходов","Odhad nákladů",null,null,null,null,null,null,null,null,"EtrDblH26ALU","EDH262014ALU (ASV09-46G)","EtrDbl","H26","ALU","Etrier Double H26 - Acier Inox - Gris - In Roof ","Double Clamp H26 - Steel - Grey - In Roof  ",null,"Verstärkte Mittel-Klemme H26","Középkapocs H26 - Acél - Szürke - Tetőszerkezetbe építő r.","Podwójny zacisk H26 - Stal - Szary - In Roof  ","Двухсторонний зажим Н26 - Стальной - Серый - In Roof ","Oboustranná svorka H26 - ocel - šedá - in Roof",null,null,null,null,null,null,null,"ART102202"]
["NbrPiece","Nombre de pièces","Number of Pieces","Aantal onderdelen","Menge pro Artikel","Elemek száma","Ilość sztuk ","Количество штук","Počet kusů",null,null,null,null,null,null,null,null,"EtrDblH26NOIR","EDH262014N (ASV09-46V)","EtrDbl","H26","NOIR","Etrier Double H26 - Acier Inox - Noir - In Roof ","Double Clamp H26 - Steel - Black - In Roof ","H26 Middenklem - Inox - Zwart - In Roof","Verstärkte Mittel-Klemme H26 Schwarz","Középkapocs H26 - Acél - Fekete - Tetőszerkezetbe építő r.","Podwójny zacisk H26 - Stal - Czarny - In Roof ","Двухсторонний зажим Н26 - Стальной - Чёрный - In Roof ","Oboustranná svorka H26 - ocel - černá - in Roof",null,null,null,null,null,null,null,"ART102335"]
["PlakGSEPays","Plaques GSE Paysage","GSE Frames Landscape","GSE Landscape plaat","GSE-Wanne Querformat","GSE Fekvő tájolású keret","Ramy GSE Poziome","Горизонтальная рама GSE","GSE rámy na šířku",null,null,null,null,null,null,null,null,"EtrDblH27ALU","EDH272014ALU (ASV09-46G)","EtrDbl","H27","ALU","Etrier Double H27 - Acier Inox - Gris - In Roof ","Double Clamp H27 - Steel - Grey - In Roof  ",null,"Verstärkte Mittel-Klemme H27","Középkapocs H27 - Acél - Szürke - Tetőszerkezetbe építő r.","Podwójny zacisk H27 - Stal - Szary - In Roof  ","Двухсторонний зажим Н27 - Стальной - Серый - In Roof ","Oboustranná svorka H27 - ocel - šedá - in Roof",null,null,null,null,null,null,null,"ART100006"]
["PlakGSEPort","Plaques GSE Portrait","GSE Frames Portrait","GSE Portrait plaat","GSE-Wanne Hochkant","GSE Álló tájolású keret","Ramy GSE Pionowe","Вертикальная рама GSE","GSE svislý rámy",null,null,null,null,null,null,null,null,"EtrDblH27NOIR","EDH272014N (ASV09-46V)","EtrDbl","H27","NOIR","Etrier Double H27 - Acier Inox - Noir - In Roof ","Double Clamp H27 - Steel - Black - In Roof ","H27 Middenklem - Inox - Zwart - In Roof","Verstärkte Mittel-Klemme H27 Schwarz","Középkapocs H27 - Acél - Fekete - Tetőszerkezetbe építő r.","Podwójny zacisk H27 - Stal - Czarny - In Roof ","Двухсторонний зажим Н27 - Стальной - Чёрный - In Roof ","Oboustranná svorka H27 - ocel - černá - in Roof",null,null,null,null,null,null,null,"ART100242"]
["AberLatUniv","Abergement latéral Universel","Universal Lateral Flashing","Universele zijafdekplaat ","Seitliche Verblechung Universal","Univerzális oldalsó/laterális burkolat","Uniwersalna obróbka do bocznej krawędzi dachu","Универсальная торцевая планка","Univerzální koncová lišta",null,null,null,null,null,null,null,null,"EtrDblH31ALU","EDH312014ALU (ASV09-50G)","EtrDbl","H31","ALU","Etrier Double H31 - Acier Inox - Gris - In Roof ","Double Clamp H31 - Steel - Grey - In Roof  ",null,"Verstärkte Mittel-Klemme H31","Középkapocs H31 - Acél - Szürke - Tetőszerkezetbe építő r.","Podwójny zacisk H31 - Stal - Szary - In Roof  ","Двухсторонний зажим Н31 - Стальной - Серый - In Roof ","Oboustranná svorka H31 - ocel - šedá - in Roof",null,null,null,null,null,null,null,"ART101326"]
["AberLatATEC","Abergement latéral","Lateral Flashing","Zijafdekplaat","Seitliche Verblechung","Oldalsó burkolat","Obróbka do bocznej krawędzi dachu","Торцевая планка","Koncová lišta",null,null,null,null,null,null,null,null,"EtrDblH31NOIR","EDH312014N (ASV09-50V)","EtrDbl","H31","NOIR","Etrier Double H31 - Acier Inox - Noir - In Roof ","Double Clamp H31 - Steel - Black - In Roof ","H31 Middenklem - Inox - Zwart - In Roof","Verstärkte Mittel-Klemme H31 Schwarz","Középkapocs H31 - Acél - Fekete - Tetőszerkezetbe építő r.","Podwójny zacisk H31 - Stal - Czarny - In Roof ","Двухсторонний зажим Н31 - Стальной - Чёрный - In Roof ","Oboustranná svorka H31 - ocel - černá - in Roof",null,null,null,null,null,null,null,"ART101288"]
["AberFaitD","Abergement Faîtage Droit","Top Right Corner Flashing","Hoekstuk rechtsboven","Eckverblechung rechts","Jobb felső sarok burkolat","Obróbka blacharska - prawy narożnik","Планка верхнего правого угла","Lišta pravého horního rohu",null,null,null,null,null,null,null,null,"EtrSplH16ALU","ESH162014ALU (ASV08-35G)","EtrSpl","H16","ALU","Etrier Simple H16 - Acier Inox - Gris - In Roof ","Simple Clamp H16 - Steel - Grey - In Roof  ",null,"Verstärkte Rand-Klemme H16","Végkapocs H16 - Acél - Szürke - Tetőszerkezetbe építő r.","Prosty zacisk H16 - Stal - Szary - In Roof  ","Односторонний зажим Н16 - Стальной - Серый - In Roof","Jednostranná svorka H16 - ocel - šedá - in Roof",null,null,null,null,null,null,null,"ART100376"]
["AberFaitG","Abergement Faîtage Gauche","Top Left Corner Flashing","Hoekstuk linksboven","Eckverblechung links","Bal felső sarok burkolat","Obróbka blacharska - lewy narożnik","Планка верхнего левого угла","Lišta levého horního rohu",null,null,null,null,null,null,null,null,"EtrSplH16NOIR","ESH162014N (ASV08-35V)","EtrSpl","H16","NOIR","Etrier Simple H16 - Acier Inox - Noir - In Roof ","Simple Clamp H16 - Steel - Black - In Roof ","H16 Eindklem - Inox - Zwart - In Roof","Verstärkte Rand-Klemme H16 Schwarz","Végkapocs H16 - Acél - Fekete - Tetőszerkezetbe építő r.","Prosty zacisk H16 - Stal - Czarny - In Roof ","Односторонний зажим Н16 - Стальной - Чёрный - In Roof ","Jednostranná svorka H16 - ocel - černá - in Roof",null,null,null,null,null,null,null,"ART100814"]
["AberFaitDATEC","Abergement Angle Droit","Top Right Angle Flashing","Hoekafdekplaat rechtsboven","Winkelverblechung rechts","Jobb oldali szög burkolat","Obróbka kątowa - góra, prawa strona","Верхняя правая угловая планка","Pravá horní rohová lišta",null,null,null,null,null,null,null,null,"EtrSplH16ALU","ESH162014ALU","EtrSpl","H16","ALU","Etrier Simple H16 - Acier Inox - Gris - In Roof ","Simple Clamp H16 - Steel - Grey - In Roof  ",null,"Verstärkte Rand-Klemme H16","Végkapocs H16 - Acél - Szürke - Tetőszerkezetbe építő r.","Prosty zacisk H16 - Stal - Szary - In Roof  ","Односторонний зажим Н16 - Стальной - Серый - In Roof","Jednostranná svorka H16 - ocel - šedá - in Roof",null,null,null,null,null,null,null,"ART100376"]
["AberFaitGATEC","Abergement Angle Gauche","Top Left Angle Flashing","Hoekafdekplaat linksboven","Winkelverblechung links","Bal oldali szög burkolat","Obróbka kątowa - góra, lewa strona ","Верхняя левая угловая планка","Horní levá rohová lišta",null,null,null,null,null,null,null,null,"EtrSplH16NOIR","ESH162014N","EtrSpl","H16","NOIR","Etrier Simple H16 - Acier Inox - Noir - In Roof ","Simple Clamp H16 - Steel - Black - In Roof ","H16 Eindklem - Inox - Zwart - In Roof","Verstärkte Rand-Klemme H16 Schwarz","Végkapocs H16 - Acél - Fekete - Tetőszerkezetbe építő r.","Prosty zacisk H16 - Stal - Czarny - In Roof ","Односторонний зажим Н16 - Стальной - Чёрный - In Roof ","Jednostranná svorka H16 - ocel - černá - in Roof",null,null,null,null,null,null,null,"ART100814"]
["AberFaitC","Abergement Faîtage central","Top Centre Flashing","Afdekplaat midden boven","First-Hauptverblechung","Felső-közép burkolat","Obróbka blacharska - góra, środek","Верхняя центральная планка","Horní středová lišta",null,null,null,null,null,null,null,null,"EtrSplH19ALU","ESH192014ALU (ASV08-38G)","EtrSpl","H19","ALU","Etrier Simple H19 - Acier Inox - Gris - In Roof ","Simple Clamp H19 - Steel - Grey - In Roof ",null,"Verstärkte Rand-Klemme H19","Végkapocs H19 - Acél - Szürke - Tetőszerkezetbe építő r.","Prosty zacisk H19 - Stal - Szary - In Roof ","Односторонний зажим Н19 - Стальной - Серый - In Roof","Jednostranná svorka H19 - ocel - šedá - in Roof",null,null,null,null,null,null,null,"ART101152"]
["AberFaitCATEC","Abergement Faîtage","Centre Flashing","Afdekplaat midden  ","First-Hauptverblechung","Közép burkolat","Obróbka blacharska - środek","Центральная планка","Středová lišta",null,null,null,null,null,null,null,null,"EtrSplH19NOIR","ESH192014N (ASV08-38V)","EtrSpl","H19","NOIR","Etrier Simple H19 - Acier Inox - Noir - In Roof","Simple Clamp H19 - Steel - Black - In Roof ","H19 Eindklem - Inox - Zwart - In Roof","Verstärkte Rand-Klemme H19 Schwarz","Végkapocs H19 - Acél - Fekete - Tetőszerkezetbe építő r.","Prosty zacisk H19 - Stal - Czarny - In Roof ","Односторонний зажим Н19 - Стальной - Чёрный - In Roof ","Jednostranná svorka H19 - ocel - černá - in Roof",null,null,null,null,null,null,null,"ART101299"]
["SelecATECModmsg1","Aucun module ATEC n'a été sélectionné.","No ATEC module has been selected.","Er is geen ATEC-zonnepaneel geselecteerd.","Es wurde kein ATEC-Modul ausgewählt.","Nem választott ATEC modult.","Nie wybrano żadnego modułu ATEC.","Не выбран ни один модуль ATEC.","Nebyl vybrán žádný modul ATEC.",null,null,null,null,null,null,null,null,"EtrSplH21ALU","ESH212014ALU (ASV08-40G)","EtrSpl","H21","ALU","Etrier Simple H21 - Acier Inox - Gris - In Roof ","Simple Clamp H21 - Steel - Grey - In Roof ",null,"Verstärkte Rand-Klemme H21","Végkapocs H21 - Acél - Szürke - Tetőszerkezetbe építő r.","Prosty zacisk H21 - Stal - Szary - In Roof ","Односторонний зажим Н21 - Стальной - Серый - In Roof","Jednostranná svorka H21 - ocel - šedá - in Roof",null,null,null,null,null,null,null,"ART101279"]
["Corniere","Corniere ( pour Faîtage central)","Corner Piece (To Join Module to Top Centre Flashings)","Hoekstuk om de module te verbinden met de afdekplaat midden boven","Verbindungsstück (zur Befestigung der zentralen Verblechung)","Sarok elem (Modul csatlakoztatása a felső-közép burkolathoz)","Narożnik (dla kalenicy środkowej)","Угловой элемент (для соединения модуля с верхней центральной планкой)","Rohový díl (ke spojení modulu s horním středovým lemováním)",null,null,null,null,null,null,null,null,"EtrSplH21NOIR","ESH212014N (ASV08-40V)","EtrSpl","H21","NOIR","Etrier Simple H21 - Acier Inox - Noir - In Roof ","Simple Clamp H21 - Steel - Black - In Roof  ","H21 Eindklem - Inox - Zwart - In Roof","Verstärkte Rand-Klemme H21 Schwarz","Végkapocs H21 - Acél - Fekete - Tetőszerkezetbe építő r.","Prosty zacisk H21 - Stal - Czarny - In Roof  ","Односторонний зажим Н21 - Стальной - Чёрный - In Roof ","Jednostranná svorka H21 - ocel - černá - in Roof",null,null,null,null,null,null,null,"ART100495"]
["Rivets","Rivets Pop (4 rivets de fixation par corniere de faîtage)","Pop Rivet (4-Fixations Rivet for Top Centre Flashing)","Popnagel (4-bevestigingsnagels voor afdekplaat midden boven)","Pop-Niete (Halter für Verbindungsstücke)","Popszegecs (4-rögzítő szegecs a felső-közép burkolathoz)","Nity (4 nity mocujące na kątownik kalenicy)","Алюминиевая поп-заклепка (4 крепежные заклепки для верхней цетральной планки)","Trhací nýt hliník (4 upevňovací nýty pro horní středovou lištu)",null,null,null,null,null,null,null,null,"EtrSplH23ALU","ESH232014ALU (ASV08-42G)","EtrSpl","H23","ALU","Etrier Simple H23 - Acier Inox - Gris - In Roof ","Simple Clamp H23 - Steel - Grey - In Roof  ",null,"Verstärkte Rand-Klemme H23","Végkapocs H23 - Acél - Szürke - Tetőszerkezetbe építő r.","Prosty zacisk H23 - Stal - Szary - In Roof  ","Односторонний зажим Н23 - Стальной - Серый - In Roof","Jednostranná svorka H23 - ocel - šedá - in Roof",null,null,null,null,null,null,null,"ART101215"]
["VisRondP","Vis + rondelle (6 par plaque) ALU","Selt-Trapping Screw + GSE Washer Silver ( 6 per Frame)","Zelftapper + sluitring (6 per plaat) ALU","Schraube + GSE Unterlegscheibe (6 pro Platte) ALU","Önmetsző csavar + GSE alátét EZÜST szín (6db/keret)","Wkręt samogwintujący + podkładka GSE srebrna (6 na ramkę)","Саморез + шайба GSE - Серебренная (6 штук на раму)","Šroub + podložka GSE - Stříbrná (6 kusů na rám)",null,null,null,null,null,null,null,null,"EtrSplH23NOIR","ESH232014N (ASV08-42V)","EtrSpl","H23","NOIR","Etrier Simple H23 - Acier Inox - Noir - In Roof ","Simple Clamp H23 - Steel - Black- In Roof ","H23 Eindklem - Inox - Zwart - In Roof","Verstärkte Rand-Klemme H23 Schwarz","Végkapocs H23 - Acél - Fekete - Tetőszerkezetbe építő r.","Prosty zacisk H23 - Stal - Czarny- In Roof ","Односторонний зажим Н23 - Стальной - Чёрный - In Roof ","Jednostranná svorka H23 - ocel - černá - in Roof",null,null,null,null,null,null,null,"ART101230"]
["VisRondE","Vis + rondelle pour fixation des étriers","Selt-Trapping Screw + GSE Washer Black to fix Clamp","Zelftapper + GSE sluitring zwart voor bevestiging klemmen ","Schraube + Unterlegscheibe zur Befestigung der Modulklemme","Önmetsző csavar + GSE alátét FEKETE szín - Rögzítőkapocshoz","Wkręt samogwintujący + podkładka GSE czarna do mocowania zacisku","Саморез + шайба GSE - Черного цвета для, фиксации зажима","Šroub + podložka GSE - Černá, pro upevnění svorky",null,null,null,null,null,null,null,null,"EtrSplH26ALU","ESH262014ALU (ASV08-46G)","EtrSpl","H26","ALU","Etrier Simple H26 - Acier Inox - Gris - In Roof ","Simple Clamp H26 - Steel - Grey - In Roof  ",null,"Verstärkte Rand-Klemme H26","Végkapocs H26 - Acél - Szürke - Tetőszerkezetbe építő r.","Prosty zacisk H26 - Stal - Szary - In Roof  ","Односторонний зажим Н26 - Стальной - Серый - In Roof","Jednostranná svorka H26 - ocel - šedá - in Roof",null,null,null,null,null,null,null,"ART102321"]
["Joints","Joints EPDM Cellulaire ","Cale EPDM Cell","Zelfklevende cellulaire EPDM","EPDM-Dichtung CELL klebend","EPDM lap","Membrana EPDM","Опорный блок EPDM","Nosná jednotka EPDM",null,null,null,null,null,null,null,null,"EtrSplH26NOIR","ESH262014N (ASV08-46V)","EtrSpl","H26","NOIR","Etrier Simple H26 - Acier Inox - Noir - In Roof ","Simple Clamp H26 - Steel - Black - In Roof ","H26 Eindklem - Inox - Zwart - In Roof","Verstärkte Rand-Klemme H26 Schwarz","Végkapocs H26 - Acél - Fekete - Tetőszerkezetbe építő r.","Prosty zacisk H26 - Stal - Czarny - In Roof ","Односторонний зажим Н26 - Стальной - Чёрный - In Roof ","Jednostranná svorka H26 - ocel - černá - in Roof",null,null,null,null,null,null,null,"ART102328"]
["EtrDbl","Etrier Double Renforcé","Reinforced Double Clamp","Middenklem","Verstärkte Mittel-Klemme","Erősített Rögzítő középkapocs","Wzmocniony podwójny zacisk","Усиленный двойной зажим","Zesílená dvojitá svorka",null,null,null,null,null,null,null,null,"EtrSplH27ALU","ESH272014ALU (ASV08-46G)","EtrSpl","H27","ALU","Etrier Simple H27 - Acier Inox - Gris - In Roof ","Simple Clamp H27 - Steel - Grey - In Roof ",null,"Verstärkte Rand-Klemme H27","Végkapocs H27 - Acél - Szürke - Tetőszerkezetbe építő r.","Prosty zacisk H27 - Stal - Szary - In Roof ","Односторонний зажим Н27 - Стальной - Серый - In Roof ","Jednostranná svorka H27 - ocel - šedá - in Roof",null,null,null,null,null,null,null,"ART100063"]
["EtrSpl","Etrier Simple renforcé","Reinforced Single Clamp","Eindklem","Verstärkte Rand-Klemme","Erősített Rögzítő végkapocs","Wzmocniony pojedynczy zacisk","Усиленный одинарный зажим","Zesílená jednoduchá svorka",null,null,null,null,null,null,null,null,"EtrSplH27NOIR","ESH272014N (ASV08-46V)","EtrSpl","H27","NOIR","Etrier Simple H27 - Acier Inox - Noir - In Roof","Simple Clamp H27 - Steel - Black - In Roof ","H27 Eindklem - Inox - Zwart - In Roof","Verstärkte Rand-Klemme H27 Schwarz","Végkapocs H27 - Acél - Fekete - Tetőszerkezetbe építő r.","Prosty zacisk H27 - Stal - Czarny - In Roof ","Односторонний зажим Н27 - Стальной - Чёрный - In Roof ","Jednostranná svorka H27 - ocel - černá - in Roof",null,null,null,null,null,null,null,"ART100260"]
["Grappe","Grappe de 4 Cales de renfort G et D pour étriers simples","Batch of 4 Reinforcement GSE Wedges L and R for Single Clamps","4 GSE verstevigingswiggen voor L en R eindklemmen","Cluster von 4 Randverstärkungen L und R für Rand-Klemme","4 darab GSE ék (végzáró elem) Jobbos és Balos - Végkapocshoz","Zestaw 4 klinów wzmacniających GSE L i R do zacisków pojedynczych","Партия из 4 арматурных клиньев GSE для левых и правых одинарных зажимов","Dávka 4 výztužných klínů GSE L a R pro jednoduché svorky",null,null,null,null,null,null,null,null,"EtrSplH31ALU","ESH312014ALU (ASV08-50G)","EtrSpl","H31","ALU","Etrier Simple H31 - Acier Inox - Gris - In Roof ","Simple Clamp H31 - Steel - Grey - In Roof ",null,"Verstärkte Rand-Klemme H31","Végkapocs H31 - Acél - Szürke - Tetőszerkezetbe építő r.","Prosty zacisk H31 - Stal - Szary - In Roof ","Односторонний зажим Н31 - Стальной - Серый - In Roof ","Jednostranná svorka H31 - ocel - šedá - in Roof",null,null,null,null,null,null,null,"ART100172"]
["Crochet","Crochets fixation abergements","GSE Flashing Hook","GSE bevestigingshaakjes afdekplaten","Hafte zur Befestigung der Verblechung","GSE Burkoló bilincs","Hak GSE","Зажим GSE","Svorka GSE",null,null,null,null,null,null,null,null,"EtrSplH31NOIR","ESH312014N (ASV08-50V)","EtrSpl","H31","NOIR","Etrier Simple H31 - Acier Inox - Noir - In Roof","Simple Clamp H31 - Steel - Black - In Roof ","H31 Eindklem - Inox - Zwart - In Roof (frame dikte 50mm)","Verstärkte Rand-Klemme H31 Schwarz","Végkapocs H31 - Acél - Fekete - Tetőszerkezetbe építő r.","Prosty zacisk H31 - Stal - Czarny - In Roof ","Односторонний зажим Н31 - Стальной - Чёрный - In Roof ","Jednostranná svorka H31 - ocel - černá - in Roof",null,null,null,null,null,null,null,"ART100381"]
["Option","Options","Options","Opties","Optionen","Opciók","Opcje","Опции","Možnosti",null,null,null,null,null,null,null,null,null,"CALE_GAUCHE / CALE_DROIT","Grappe",null,null,"Grappe de 4 Cales de renfort G et D pour étriers simples  ","Batch of 4 Reinforcement GSE Wedges L and R for Single Clamps",null,"Cluster von 4 Randverstärkungen L und R für Rand-Klemme","4 darab GSE ék (végzáró elem) Jobbos és Balos - Végkapocshoz","Zestaw 4 klinów wzmacniających GSE L i R do zacisków pojedynczych","Набор из 4 усиливающих клиньев GSE L и R для односторонних зажимов","Sada z 4 zesilovacích klínů GSE L a R pro jednostranné svorky"]
["Rooflex","Bande d'étanchéité FLEXALU (Rouleau de 5 m)","FLEXALU Waterproofing Strip (5 m roll)","FLEXALU waterafdichte strip (rol van 5 m)","FLEXALU Dichtungband (5 m-Rolle)","FLEXALU vízzáró szalag (5 m/tekercs)","Taśma hydroizolacyjna (rolka 5 m)","Гидроизоляционная лента FLEXALU (рулон 5 м)","Hydroizolační pás FLEXALU (role 5 m)",null,null,null,null,null,null,null,null,null,"JOINT_PRE_CONTRAIN","JointImpr",null,null,"Joint pré-contraint - 20 x 40 mm (Rouleau de 5.5 m)  ","Pre-Compressed Seal - 20 x 40mm 5.5m (roll)","Voorgecomprimeerde afdichting/uitzetband - 20 x 40mm (5,5m rol)","Vorkomprimiertes Dichtungsband - 20 x 40 mm (5.5 m-Rolle)","Előnyomott tömítés - 20 x 40 mm 5.5 m (tekercs)","Taśma uszczelniająca wstępnie sprasowana - 20 x 40 mm 5.5m (rolka)","Предварительно прессованная уплотнительная лента - 20x40мм (рулон 2м)","Těsnicí lisovaná páska - 20x40mm (role 2m)",null,null,null,null,null,null,null,"ART101088"]
["EcranToit","Ecran de sous toiture (Rouleau de 75 m²)","Roof-Underlay Screen (75 m² roll)","Dakfolie (75 m² rol)","Unterspannbahn (75 m²-Rolle)","Tető szigetelő (75 m²/tekercs)","Podkład dachowy (rolka 75m²)","Подкровельная плёнка (рулон 75 м²)","Krycí fólie (role 75 m²)",null,null,null,null,null,null,null,null,null,"JOINT_MOUSS_TRIAN ","JointTrImpr",null,null,"Joint mousse triangulaire TN2F 40X60 ADH LONG 2ML","Triangular Pre-Compressed Seal Roll - 40 x 60 mm (2 m roll)","Driehoekige voorgecomprimeerde afdichtingsrol - 40 x 60 mm (2 m rol)","Dreieckig vorkomprimiertes Dichtungsband - 40 x 60 mm (5.5 m-Rolle)","Háromszög - Előnyomott tömítés - 40 x 60 mm (2m/tekercs)","Trójkątna wstępnie sprasowana taśma uszczelniająca - 40 x 60 mm (2 m rolka)","Треугольная предварительно прессованная уплотнительная лента - 40x60мм (рулон 2м)","Trojúhelníková předem lisovaná těsnicí páska - 40x60mm (role 2m)"]
["JointImpr","Joint pré-contraint - 20 x 40 mm (Rouleau de 5.5 m)","Pre-Compressed Seal Roll - 20 x 40 mm (5.5 m roll)","Voorgecomprimeerde afdichting - 20 x 40mm (5,5m rol)","Vorkomprimiertes Dichtungsband - 20 x 40 mm (5.5 m-Rolle)","Előnyomott tömítés - 20 x 40 mm (5.5 m/tekercs)","Taśma uszczelniająca wstępnie sprasowana - 20 x 40 mm (rolka 5,5 m)","Уплотнительная спресованная лента - 20 x 40 мм (рулон 5,5 м)","Těsnicí lisovaná páska - 20 x 40 mm (role 5,5 m)",null,null,null,null,null,null,null,null,null,"CALE_EPDM_CELL",null,null,null,"Cale EPDM Pour Vis In Roof (25x21 EP. 5mm)","EPDM Cell for Screw - In Roof (25x21 EP. 5mm)","EPDM 40x60 mm voor onder schroef IN-ROOF (2m rol)","EPDM-Dichtung CELL klebend","EPDM lap csavarozáshoz - Tetőszerkezetbe építő r. (25 x 21 EP. 5mm)","Uszczelka EPDM do wkrętu - In Roof (25x21 EP. 5mm)"," Опорный блок EPDM под винт - In Roof (25x21 EP. 5мм)","Těsnění EPDM pro šroub - in Roof (25X21 EP. 5mm)",null,null,null,null,null,null,null,"ART101138"]
["JointTrImpr","Joint pré-contraint triangulaire - 40 x 60 mm (Rouleau de 5.5 m)","Triangular Pre-Compressed Seal Roll - 40 x 60 mm (5.5 m roll)","Driehoekige voorgecomprimeerde afdichtingsrol - 40 x 60 mm (2 m rol)","Dreieckig vorkomprimiertes Dichtungsband - 40 x 60 mm (5.5 m-Rolle)","Háromszög - Előnyomott tömítés - 40 x 60 mm (5.5 m/tekercs)","Trójkątna wstępnie sprasowana taśma uszczelniająca - 40 x 60 mm (rolka 5,5 m)","Треугольная предварительно прессованная уплотнительная лента - 40 x 60 мм (рулон 5,5 м)","Trojúhelníková předem lisovaná těsnicí páska - 40 x 60 mm (role 5,5 m)",null,null,null,null,null,null,null,null,null,"PPAYS 1640 / 992","PlakGSEPays",null,null,"Plaques Paysage ","GSE Landscape Frame ","GSE Landscape montageplaat ","GSE-Wanne Querformat ","GSE Fekvő tájolású keret ","GSE Ramka Pozioma ","Горизонтальная рама GSE ","Horizontální rám GSE "]
["DimChamp","Taille du champ PV","Size of the PV Plant","PV-veldgrootte","Größe des Modulfeldes","Napelem konfiguráció mérete","Wielkość instalcji PV","Размер конфигурации PV-модулей","Velikost konfigurace FV",null,null,null,null,null,null,null,null,null,"PPORT 1640 / 992","PlakGSEPort",null,null,"Plaques Portrait ","GSE Portrait Frame ","GSE Portrait montageplaat ","GSE-Wanne Hochkant ","GSE Álló tájolású keret ","GSE Ramka Pionowa ","Вертикальная рама GSE ","Vertikální rám GSE "]
["HautCmpARE","Hauteur (avec FLEXALU en partie basse)","Height (with Low FLEXALU)","Hoogte (met FLEXALU onderste gedeelte)","Höhe (mit FLEXALU an der Unterseite)","Magasság (alsó FLEXALU-val)","Wysokość (z t.hydroizolacyjną w dolnej części)","Высота (с низким FLEXALU)","Výška (s nízkou FLEXALU)",null,null,null,null,null,null,null,null,null,"RIVETPOP","Rivets",null,null,"Rivets Pop 4x8 (pour la fixation des cornières)","Pop Rivet 4x8 (Fixations Rivet for Top Centre Flashing)","Popnagels 4x8 (voor het verbinden van het bovenste hoekstuk)","Pop-Niete (Halter für Verbindungsstücke)","Popszegecs 4x8 (Rögzítő szegecs a felső-közép burkolathoz)","Nit POP 4x8 (Nit mocujący do górnego środkowego kołnierza) ","Поп-заклепка 4х8 (крепежная заклепка для верхней цетральной планки)","Поп-заклепка 4х8 (крепежная заклепка для верхней цетральной планки)",null,null,null,null,null,null,null,"ART100389"]
["LargCmpAAL","Largeur (avec abergements latéraux)","Width (with Lateral Flashings)","Breedte (met zij afdekplaten)","Breite (mit seitlicher Verblechung)","Szélesség (oldalsó burkolattal)","Szerokość (z obróbką do krawędzi bocznej)","Ширина (с торцевой планкой)","Šířka (s koncovou lištou)",null,null,null,null,null,null,null,null,null,"VIS2014A","VisRondP",null,"ALU","Vis GSE Integration 6.3mmx60mm Alu","GSE Integration Screw - 6.3mmx60mm - Grey","GSE Integration schroef + sluitring Grijs 6.3mmx60mm","Schraube + GSE Unterlegscheibe (6 pro Platte) ALU","GSE csavar - 6.3mmx60mm - Szürke","GSE Integration wkręt - 6.3mmx60mm - Szary","GSE винт - 6,3x60мм - Серый","GSE šroub - 6,3x60mm - šedý ",null,null,null,null,null,null,null,"ART100931"]
["Coord","Coordonnées","Contact Details","Contact gegevens","Kontaktdaten","Kapcsolat","Dane kontaktowe","Контактная информация","Kontaktní údaje",null,null,null,null,null,null,null,null,null,"VIS2014N","VisRondE",null,"NOIR","Vis GSE Integration 6.3mmx60mm Noir","GSE Integration Screw - 6.3mmx60mm - Black","GSE Integration schroef + sluitring Zwart 6.3mmx60mm","Schraube + Unterlegscheibe zur Befestigung der Modulklemme","GSE csavar - 6.3mmx60mm - Fekete","GSE Integration wkręt - 6.3mmx60mm - Czarny","GSE винт - 6,3x60мм - Черный","GSE šroub - 6,3x60mm - černý",null,null,null,null,null,null,null,"ART101552"]
["DateExp","Date de livraison souhaitée","Desired Delivery Date","Gewenste leverdatum","Gewünschtes Versanddatum","Szállítási idő","Preferowana data dostawy","Желаемая дата доставки","Požadované datum dodání",null,null,null,null,null,null,null,null,null,"BANDE_FLEXALU_330","Rooflex",null,"NOIR","Flexalu Gris Ardoise 330mm L5m Butyle 20/100","Flexalu Waterproof Strip Black 330mm (5 m roll)","Flexalu Waterdichte Strip Zwart 330mm (5 m rol)","FLEXALU Dichtungband (5 m-Rolle) Schwarz 330mm","FLEXALU Vízzáró Szalag Fekete 330mm (5m/tekercs)","Taśma hydroizolacyjna Czarny 330mm (5 m rolka)","Водонепроницаемая лента FLEXALU Чёрная 330мм (рулон 5м)","Vodotěsná páska FLEXALU černá 330mm (role 5m)",null,null,null,null,null,null,null,"ART100385"]
["Adr","Adresse / Contact","Address / Contact","Adres / Contactpersoon","Adresse / Kontakt","Cím / kapcsolat","Adres / kontakt","Адрес / Контакт","Adresa / Kontakt",null,null,null,null,null,null,null,null,null,"BANDE_FLEXALU_500","Rooflex",null,"NOIR","Flexalu Gris Ardoise 500mm L5m Butyle 20/100","Flexalu Waterproof Strip Black 500mm (5 m roll)","Flexalu Waterdichte Strip Zwart 500mm (5 m rol)","FLEXALU Dichtungband (5 m-Rolle) Schwarz 500mm","FLEXALU Vízzáró Szalag Fekete 500mm (5m/tekercs)","Taśma hydroizolacyjna Czarny 500mm (5 m rolka)","Водонепроницаемая лента FLEXALU Чёрная 500мм (рулон 5м)","Vodotěsná páska FLEXALU černá 500mm (role 5m)",null,null,null,null,null,null,null,"ART101405"]
["ScrolTitle","(Dimensions : Toit, Module PV & Plaque GSE)","(Dimensions: Roof, PV Module & GSE Frame)","(Afmetingen : Dak, PV Module & GSE Plaat)","(Größe: Dach, PV-Modul & GSE-Wanne)","(Méretek: Tető, Napelem modul & GSE keret)","(Wymiary: Dach, Moduł PV & Rama GSE)","(Размеры: крыша, PV-модуль и рама GSE)","(Rozměry: střecha, FV modul a rám GSE)",null,null,null,null,null,null,null,null,null,"BANDE_FLEXALU-500","Rooflex",null,"ROUGE","Flexalu Rouge Terre Cuite 500mm L5m Butyle 20/100","Flexalu Waterproof Strip Red 500mm (5 m roll)","Flexalu Waterdichte Strip Rood 330mm (5 m rol)","FLEXALU Dichtungband (5 m-Rolle) Rot 500mm","FLEXALU Vízzáró Szalag Piros 500mm (5m/tekercs)","Taśma hydroizolacyjna Czerwony 500mm (5 m rolka)","Водонепроницаемая лента FLEXALU Красная 500мм (рулон 5м)","Vodotěsná páska FLEXALU červená 500mm (role 5m)",null,null,null,null,null,null,null,"ART101272"]
["Toit","Toit","Roof","Dak","Dach","Tető","Dach","Крыша","Střecha",null,null,null,null,null,null,null,null,null,"ECRAN_SOUS_TOITURE ","EcranToit",null,null,"Ecran de sous toiture (Rouleau de 75 m²)  ","Roof-Underlay Screen (75 m² roll)","Dakfolie (Rol van 75 m²)  ","Unterspannbahn (75 m²-Rolle)","Tető szigetelő (75 m²/tekercs)","Podkład dachowy (rolka 75m²)","Подкровельная плёнка (рулон 75м²)","Krycí fólie (role 75 m²)",null,null,null,null,null,null,null,"ART101292"]
["ModPV","Module PV","PV Module","PV Module","PV-Modul","Napelem modul","Moduł PV","Солнечная батарея","FV modul",null,null,null,null,null,null,null,null,null,"CALE_GAUCHE",null,null,null,"Cale Gauche de Renfort pour Etriers Simple In Roof","Left Wedge for Simple Clamp - In Roof","Linker Wig voor Eindklem - In Roof","Linker Verstärkungskeile für Rand-Klemme","Balos Ék (végzáró elem) Végkapocshoz - Tetőszerkezetbe építő r.","Lewy klin do zacisku prostego - In Roof","Левый клин для прямого зажима - In Roof","Levý klín pro přímé upnutí - in Roof",null,null,null,null,null,null,null,"ART100212"]
["Adj","Ajustement","Adjustment","Aanpassing","Anpassung","Beállítás","Regulacja","Корректирование","Nastavení",null,null,null,null,null,null,null,null,null,"CALE_DROIT",null,null,null,"Cale Droite de Renfort pour Etriers Simple In Roof","Right Wedge for Simple Clamp - In Roof","Rechter Wig voor Eindklem - In Roof","Rechte Verstärkungskeile für Rand-Klemme","Jobbos Ék(végzáró elem) Végkapocshoz - Tetőszerkezetbe építő r.","Prawy klin do zacisku prostego - In Roof","Правый клин для прямого зажима - In Roof","Pravý klín pro přímé upnutí - in Roof",null,null,null,null,null,null,null,"ART101501"]
["PlakGSE","Plaque GSE","GSE frame","GSE plaat","GSE-Wanne","GSE keret","Rama GSE ","Рама GSE","GSE rám"]
["Ref","Références","References","Referentie","Referenzen","Referencia","Referencje","Рекомендации","Reference"]
["Den","Dénomination","Denomination","Benaming","Bezeichnung","Megnevezés","Określenie","Наименование","Označení"]
["CalcRampTitle","Calculer le Rampant du toit","Calculate the Roof Width","Bereken de dakhelling","Berechnung der Länge der Dachschräge","Tető szélesség kiszámítása","Oblicz szerokość dachu","Рассчитать ширину крыши","Vypočítat šířku střechy"]
["LargMsn","Largeur de la maison (m)","Width of the house (m)","Breedte van het huis (m)","Breite des Hauses (m)","Ház szélessége (m)","Szerokość budynku (m)","Ширина здания (м)","Šířka budovy (m)"]
["NbrPans","Nombre de Pans","Number of Pans","Aantal dakvlakken","Anzahl der Dachschrägen","Tervek száma","Ilość połaci dachu","Количество скатов крыши","Počet střešních svahů"]
["Calculer","Calculer","Compute","Bereken  ","Berechnen","Számítás","Oblicz","Вычислить","Vypočítat"]
["Annuler","Annuler","Cancel","Annuleren","Abbrechen","Mégse","Anuluj ","Отменить","Zrušit"]
["CalcRampMsg1","Les champs suivants doivent contenir une valeur numérique positive non nulle: 'Inclinaison toiture' et 'Largeur de la maison'.","The following fields must contain a non-zero positive numeric value: 'Roof Slope' and 'Width of the House'.","De volgende velden moeten een niet-nul positieve numerieke waarde bevatten:\"Dakhelling\" en \"Huisbreedte\".","Die folgenden Felder müssen einen positiven numerischen Wert ungleich Null enthalten: Dachneigung und Breite des Hauses.","A következő mezőknek pozitív számot kell tartalmazniuk: 'Tető lejtés' és 'Ház szélessége'.","\nNastępujące pola muszą zawierać dodatnią wartość liczbową (różną od zera): „Nachylenie dachu” i „Szerokość budynku”.\n","\nСледующие поля должны содержать ненулевое положительное числовое значение: «Уклон крыши» и «Ширина здания».\n","Následující pole musí obsahovat nenulovou kladnou číselnou hodnotu: „Střešní sklon“ a „Šířka budovy“."]
["CalcRampMsg2","Veuillez vérifier les valeurs de ces champs puis lancez de nouveau le calcul du Rampant.","Please check the values ​​of these fields then run the Roof Width calculation again.","Controleer de waarden deze velden en voer de berekening van de dakbreedte opnieuw uit.","Bitte überprüfen Sie die Werte dieser Felder und führen Sie die Berechnung der Länge der Dachschräge erneut aus.","Kérjük, ellenőrizze ezeknek a mezőknek az értékeit, majd futtassa újra a tetőszélesség számítását.","Sprawdź wartości w tych polach, a następnie ponownie wykonaj obliczenia szerokości dachu.","Проверьте значения в этих полях, затем снова запустите расчет ширины крыши.","Zkontrolujte hodnoty těchto polí a poté znovu spusťte výpočet šířky střechy."]
["DftRefCmpPV","Champ PV 1","PV Array 1","PV-veld 1","PV-Modulfeld 1","Napelem elrendezés 1","Macierz PV 1","Раскладка PV-модулей 1","Rozložení PV modulů 1"]
["CalcRampLink","Cliquez ici pour calculer le Rampant !","Click here to calculate the Roof Width !","Klik hier om de dakbreedte te berekenen!","Klicken Sie hier, um die Länge der Dachschräge zu berechnen !","Kattintson ide a tetőszélesség kiszámításához!","Kliknij tutaj, aby obliczyć szerokość dachu!","Щелкните здесь, чтобы рассчитать ширину крыши!","Kliknutím sem vypočítáte šířku střechy!"]
["None2","Aucune","None","Geen","keine Angabe","Nincs","Brak","Никакой","Nic"]
["ColorAber","Couleur","Color","Kleur","Farbe","Szín","Kolor","Цвет","Barva"]
["Yes","Oui","Yes","Ja","Ja","Igen","Tak","Да","Ano"]
["No","Non","No","Neen","Nein","Nem","Nie","Нет","Ne"]
["ErrInfoMsg1","Ce champ doit contenir un nombre entre","This field must contain a number between","Dit veld moet een getal bevatten tussen","Dieses Feld muss eine Zahl enthalten zwischen","A mezőnek egy számot kell tartalmaznia","To pole musi zawierać liczbę pomiędzy","Это поле должно содержать число от","Toto pole musí obsahovat číslo mezi"]
["And","et","and","en","und","és","i","и","a"]
["LongToit","Longueur du toit","Roof length","Lengte dak","Dachlänge","Tetőhossz","Długość dachu","Длина крыши","Délka střechy"]
["RampToit","Rampant du toit","Roof Width","Breedte dak","Länge der Dachschräge","Tetőszélesség","Szerokość dachu","Ширина крыши","Šířka střechy"]
["HautModPVPo","Hauteur du module PV portrait","PV Portrait Module Height","Hoogte van de PV-module in Portrait","Modulhöhe bei Hochkantmontage","Napelem Álló modul magasság","Wysokość modułu PV w pionie ","Высота вертикального PV-модуля","Výška vertikálního FV modulu"]
["HautModPVPa","Hauteur du module PV paysage","PV Landscape Module Height","Hoogte van de PV-module in Landscape","Modulhöhe bei Querformatmontage","Napelem Fekvő modul magasság","Wysokość modułu PV w poziomie","Высота горизонтального PV-модуля","Výška vodorovného FV modulu"]
["LargModPVPo","Largeur du module PV portrait","PV Portrait Module Width","Breedte van de PV-module in Portrait","Modulbreite bei Hochkantmontage","Napelem Álló modul szélesség","Szerokość modułu PV w pionie ","Ширина вертикального PV-модуля","Šířka vertikálního FV modulu"]
["LargModPVPa","Largeur du module PV paysage","PV Landscape Module Width","Breedte van de PV-module in Landscape","Modulbreite bei Querformatmontage","Napelem Fekvő modul szélesség","Szerokość modułu PV w poziomie","Широна горизонтального PV-модуля","Šířka vodorovného FV modulu"]
["ErrInfoMsg2","Le champ PV à créer doit avoir une référence d'au moins 6 caratères alphanumérique.","The PV plant to be created must have a reference of at least 6 alphanumeric characters.","Het aan te maken PV-veld moet een referentie hebben van ten minste 6 alfanumerieke tekens.","Das zu erstellende PV-Feld muss eine Referenzangabe von mindestens 6 alphanumerischen Zeichen haben.","A létrehozandó Napelem konfigurációnak legalább 6 alfanumerikus karakterből álló hivatkozással kell rendelkeznie.","Projektowany układ instalacji PV, musi mieć odniesienie składające się z co najmniej 6 znaków alfanumerycznych.","Ссылка на создаваемую конфигурацию солнечного элемента должна состоять как минимум из 6 буквенно-цифровых символов.","FV systém, který má být vytvořen, musí mít odkaz na alespoň 6 alfanumerických znaků."]
["ErrInfoMsg3","Dans le cadre des évaluations techniques du système, l'étanchéité est garantie sur des pentes comprises entre 12° et 60°.","In accordance with the technical evaluations of the system, waterproofing is guaranteed on slopes between 12° to 60°.","Volgens de technische evaluaties van het systeem is de waterdichtheid gegarandeerd op hellingen tussen 12° en 60°","Im Rahmen der technischen Bewertungen des Systems ist die Wasserdichtheit bei Dachneigungen zwischen 12 ° und 60 ° garantiert.","A rendszer műszaki értékelésének megfelelően a vízszigetelés 12 ° és 60 ° közötti lejtőn garantált.","Zgodnie z oceną techniczną systemu, wodoszczelność jest gwarantowana na zboczach nachylonych pod kątem od 12° do 60°.","Согласно технической оценке системы, гидроизоляция гарантируется на склонах от 12° до 60°.","V souladu s technickým hodnocením systému je zaručena hydroizolace na svazích mezi 12° a 60°."]
["ErrInfoMsg4","En dessous et au dessus de ces pentes, bien contrôler l'étanchéité et la méthode d'installation.","Below and above these slopes, check the watertightness and installation method of the array.","Controleer, onder en boven deze hellingen de waterdichtheid en de installatiemethode van de installatie.","Unterhalb und oberhalb dieser Dachneigungen sind Dichtheit und Installationsart der Anlage gesondert zu prüfen.","Ezen lejtés érték alatt és felett ellenőrizze a tömb vízzáróságát és telepítési módját.","Poniżej i powyżej tych zboczy sprawdź wodoszczelność i sposób montażu.","Ниже и выше этих откосов проверьте водонепроницаемость и способ установки.","Níže a nad těmito svahy zkontrolujte vodotěsnost a způsob instalace."]
["ErrInfoMsg5","L'utilisation des abergements de faitage n'est conseillée que sur des pentes supérieures à 17°.","The use of top flashings is recommended only for slopes greater than 17°.","Het gebruik van de bovenste afdekplaten wordt alleen aanbevolen voor hellingen groter dan 17°.","Die Verwendung der Firstverblechung wird nur bei Neigungen empfohlen, die größer als 17 ° sind.","A felső burkolat használata csak 17 ° -nál nagyobb lejtés értéknél ajánlott.","Stosowanie obróbki blacharskiej jest zalecane tylko przy kącie nachylenia większym niż 17°.","Использование верхней крышки рекомендуется только для уклонов более 17°.","Použití horních lemů se doporučuje pouze pro svahy větší než 17°."]
["ErrInfoMsg6","En dessous de cette pente, bien se référer au manuel d'installation en ligne : ","Below this slope, refer to the online installation manual: ","Raadpleeg onder deze helling de online installatiehandleiding:","Unterhalb dieser Dachneigung finden Sie gesonderte Hinweise in den Online-Installationsanweisungen: ","Ezen lejtés érték alatt olvassa el az online telepítési kézikönyvet:","Poniżej tego nachylenia zapoznaj się z instrukcją instalacji online:","Ниже этого наклона прочтите онлайн-руководство по установке:","Pod tímto sklonem si přečtěte online instalační příručku:"]
["ErrInfoMsg7","Aucune plaque GSE correspondante n'a été trouvée !","No corresponding GSE frame has been found !","Er is géén passende GSE-plaat gevonden!","Es wurde keine passende GSE-Wanne gefunden!","Nem található megfelelő GSE keret!","Nie znaleziono odpowiadającej ramy GSE!","Подходящей GSE рамы не найдено!","Nebyl nalezen žádný odpovídající rám GSE!"]
["ErrInfoMsg8","Modifiez les dimensions du module PV pour trouver une plaque GSE correspondante.","Change the dimensions of the PV module to find a corresponding GSE Frame.","Wijzig de afmetingen van de PV-module om een passende GSE-plaat te vinden.","Ändern Sie die Abmessungen des PV-Moduls, um eine passende GSE-Wanne zu finden.","Módosítsa a Napelem modul méreteit, hogy megtalálja a megfelelő GSE keretet.","Zmień wymiary modułu PV, aby znaleźć odpowiednią ramę GSE.","Измените размеры PV-модуля, чтобы найти соответствующую раму GSE.","Změňte rozměry FV modulu a vyhledejte odpovídající rám GSE."]
["ErrInfoMsg9","Aucune référence du champ PV n'a été renseignée !","No reference of the PV array has been filled in !","Er is géén referentie ingevuld van het PV-veld!","Es wurde keine Referenz der PV-Anlage eingegeben!","Nincs kitöltve a Napelem tömb hivatkozása!","Nie wprowadzono żadnego odniesienia do układu modułów PV!","Никакой ссылки на компоновку PV-модулей не было введено!","Nebyl zaveden žádný odkaz na uspořádání PV modulů!"]
["ErrInfoMsg10","Reseignez-en un.","Please, fill in one.","Vul er één in","Bitte einmal ausfüllen.","Kérem, válasszon","Proszę, wpisz jeden. ","Пожалуйста выберите.","Prosím vyber si."]
["Date","Date","Date","Datum","Datum","Dátum","Data","Дата","Datum"]
["Total","Total","Total","Totaal","Gesamt","Összesen","Razem","Итого","Celkové"]
["PlanLat","Plan de lattage indisponible","Battening plan unavailable","Lattenplan niet beschikbaar","Lattenplan nicht verfügbar","Nem érhető el tetőléc terv","Plan kantówek niedostępny","План обрешотки недоступен","Krokevní systém nejsou k dispozici"]
["Roul","Rouleau(x)","Roll(s)","Rol(len)","Rolle(n)","Tekercs(ek)","Rolka(-i)","Рулон(ов)","Role(y)"]
["HautCmpSRFRE","Hauteur (sans Raccord faîtage et Raccord à l'égout)","Height (without Ridge connection and Connection to eaves)","Hoogte (zonder nokaansluiting en dakrandaansluiting)","Höhe (ohne Firstanbindung und Dichtigkeitsanbindung traufeseitig)","Magasság (gerinc és eresz csatlakozás nélkül)","Wysokość (bez połączenia kalenicowego i połączenia z okapem)","Высота (без конькового соединения и соединения с карнизом)","Výška (bez hřebenového připojení a připojení k okapům)"]
["LargCmpSAL","Largeur (sans abergements latéraux)","Width (without Lateral Flashing)","Breedte (zonder zijafdekplaten)","Breite (ohne seitliche Verblechung)","Szélesség (oldalsó burkolat nélkül)","Szerokość (z obróbką do krawędzi bocznej)","Ширина (без торцевой планки)","Šířka (bez koncové lišty)"]
["Remise","Remise","Discount","Korting","Rabatt","Kedvezmény","Rabat","Скидка","Sleva"]
["RemiseAber","Remise d'abergements supérieurs","Discount for top flashings","Korting voor bovenste afdekplaten","Rabatt der Obenverblechungen","Kedvezmény felső burkolatra","Rabat do obróbki blacharskiej","Скидка на верхние планки","Sleva na horní lišty"]
["RemiseQuest","Avez-vous une remise ?","Do you have a discount ?","Heeft u een korting ?","Haben Sie Rabatt?","Rendelkezik kedvezménnyel?","Czy masz rabat?","У вас есть скидка?","Máte slevu?"]
["ErrInfoMsg11","La valeur de la remise saisie n'est pas correcte.","The discount value entered is not correct.","De ingevoerde kortingswaarde is niet correct","Der Wert des eingegebenen Rabattes ist nicht korrekt.","A megadott kedvezmény értéke nem megfelelő.","Wprowadzona wartość rabatu jest nieprawidłowa.","Введено неверное значение скидки.","Zadaná hodnota slevy není správná."]
["HautCmpARF","Hauteur (avec Raccord faîtage)","Height (with top connection)","Hoogte (met bovenaansluiting)","Höhe (mit Firstanbindung)","Magasság (felső csatlakozással)","Wysokość (z obróbką blacharską górną)","Высота (с верхним соединением)","Výška (s horním spojem)"]
["HautCmpARFRE","Hauteur (avec Raccord faîtage et Raccord à l'égout)","Height (with top connection and eaves connection)","Hoogte (met nokaansluiting en dakrandaansluiting)","Höhe (mit Firstanbindung und Dichtigkeitsanbindung traufeseitig)","Magasság (oldalsó és eresz csatlakozással)","Wysokość (z obróbką blacharską boczną i dolną)","Высота (с боковым соединением и соединением карниза)","Výška (s bočním spojením a spojením římsy)"]
["PUHT","P.U. (HT)","Unit Price (Excl Tax)","Eenheidsprijs (Excl. BTW)","Pro Einheit (zzgl. MwSt.)","Egységár (ÁFA nélkül)","Cena jednostkowa netto","Цена за единицу (без налогов)","Jednotková cena (bez daně)"]
["AberFaitJonc","Abergement Faîtage Jonction","Top Flashing junction","Verbinding bovenste afdekplaat","Verbindungsblech Firstverblechung","Felső burkolat csatlakozás","Obróbka blacharska - góra, łącznik","Соеденитель верхнего отлива","Spojka připojení horní lišty"]
["PUREM","P.U. REMISÉ ","Discounted unit price","Eenheidsprijs met korting","Pro Einheit Diskontiert","Kedvezményes darab ár","Cena jednostkowa po rabacie","Цена за штуку со скидкой","Zlevněná jednotková cena"]
["Portrait","Portrait","Portrait","Portrait","Hochkant","Álló tájolás","Pion ","Вертикальный","Vertikální"]
["Paysage","Paysage","Landscape","Landscape","Querformat","Fekvő tájolás","Poziom","Горизонтальный","Horizontální"]
["NotePriceOpt","NB : Prix disponible auprès de votre interlocuteur habituel.","NB: Price available from your usual contact.","NB: Prijzen verkrijgbaar bij uw gebruikelijke contactpersoon.","NB: Preisinformationen erhalten Sie bei Ihrem üblichen Ansprechpartner.","NB: Ár elérhető partnereinknél.","NB: Cena dostępna u dystrybutora","NB: Цена доступна у наших партнеров.","Pozn.: Cena je k dispozici u vašeho obvyklého kontaktu."]
["HidePrice","Masquer les prix","Hide prices","Verberg prijzen","Preise ausblenden","Árak elrejtése","Ukryj cenę","Скрыть цены","Skrýt ceny"]
["DisPrice","Afficher les prix","Show prices","Toon prijzen","Preise anzeigen","Árak mutatása","Pokaż cenę","Указать цены","Zobrazit ceny"]
["WebLink1","Pour plus d’information sur le produit : www.gseintegration.com","For more information about the product: www.gseintegration.com","Voor meer informatie over het produkt : www.gseintegration.com","Für weitere Informationen über das Produkt: www.gseintegration.com","Több információért a termékről: www.hasznaldanapot.hu","Więcej informacji o produkcie: www.gseintegration.com","Для получения дополнительной информации о продукте: www.gseintegration.com","Další informace o produktu: www.gseintegration.com"]
["UpQte","Modifier les quantités","Change quantities","Wijzig hoeveelheden","Ändern Sie die Mengen","Mennyiség megváltoztatása","Zmień ilość","Изменить каличество","Změňte množství"]
["FzQte","Bloquer les quantités","Freeze quantities","Vergrendel hoeveelheden","Mengen sperren","Mennyiség rögzítése","Zachowaj ilość ","Зафиксировать количество","Freeze quantities"]
["Lang","Français","English","Nederlands","Deutsch","Angol","Polski","Английский","Angličtina"]
["PVPlant","Champ PV","PV Array","PV-veld","PV-Modulfeld","PV elrendezés","Macierz modułów PV","Раскладка PV-модулей","Rozložení FV modulů"]
["nbAS","Nombre de GSE Air'System","Number of GSE Air'System","Aantal GSE Air'System","Anzhal der GSE Air'System","GSE Levegő rendszerek száma","Ilość GSE Air'System","Количество GSE Air'System","Počet GSE Air'System"]
["KITATEC","Kit spécifique","Specific Kit","Specifieke kit","Spezifischer Kit","Specifikus szett","Zestaw specjalny","Конкретный комплект","Specifická sada"]
["KITUNI","Kit Universel","Universal Kit","Universele kit","Allgemeines Kit","Univerzális szett","Zestaw uniwersalny ","Универсальный комплект","Univerzální sada"]
["Autre","Autres","Others","Andere","Andere","Egyéb","Pozostałe ","Другие","Ostatní"]
["FENTOIT","Fenêtre de toit","Roof Window","Dakraam","Fenster am Dach","Tetőablak","Okno dachowe","Мансардное окно","Střešní okno"]
["NOFENTOIT","Pas de fenêtre","No Window","Geen raam","Kein Fenster","Nincs ablak","Brak okna ","Без окна","Žádné okno"]
["VISU","Visualiser le positionnement des abergements hauts et des bandes d'étanchéité sur le champ PV","Show the position of the top flashings and sealing strips on the PV plant","Toon de plaats van de bovenste afdekplaten en van de waterafdichtstrip op het PV-veld","Visualisierung der Positionierung der oberen Verblechungen und Dichtungsstreifen auf PV-modulfeld","Mutasd a felső burkolatot és szigetelő réteget a PV elrendezésen ","Pokaż położenie górnych obróbek blacharskich i taśm uszczelniających w układzie modułów fotowoltaicznych","Показать положение верхних планок и уплотнительных полос на раскладке PV-модулей.","Zobrazit umístění horních listových a těsnicích pásů na rozložení FV modulů."]
["SelecATECModmsg2","Sélectionnez en un.","Choose one.","Selecteer er één","Wähle ein.","Válasszon egyet.","Wybierz jeden.","Выберете один.","Vybrat jeden."]
["SelecATECModmsg3","La pente de toit est incorrecte pour la Tuile Canal (13.5° <= X <= 45°).","The roof slope is incorrect for 'Curved Tiles' (13.5° <= X <= 45°).","De dakhelling is onjuist voor 'Gebogen dakpannen' (13.5° <= X <= 45°).","Die Dachneigung der 'Gewölbten Kacheln' ist falsch (13,5° <= X <= 45°).","A megadott lejtés értéke nem megfelelő ' Ívelt cseréphez' (13.5° <= x <= 45°)","Kąt nachylenia dachu jest nieprawidłowy dla dachówki falistej (13,5 ° <= X <= 45 °).","Указанное значение уклона неверно для \"Изогнутой черепицы\" (13.5° <= X <= 45°).","Sklon střechy není správný pro „zakřivené  tašky“ (13.5° <= X <= 45°)."]
["SelecATECModmsg4","Corrigez la valeur.","Correct the value.","Corrigeer de waarde.","Berichtigen Sie den Wert.","Javítsa az értéket.","Popraw wartość.","Исправьте значение.","Opravte hodnotu."]
["SelecATECModmsg5","La pente de toit est incorrecte pour l'ardoise (14° <= X <= 45°).","The roof slope is incorrect for 'Slate' (14° <= X <= 45°).","De dakhelling is onjuist voor 'Leien' (14° <= X <= 45°).","Die Dachneigung  der  'Schiefer' ist falsch (14° <= X <= 45°).","A megadott lejtés értéke nem megfelelő ' Palához' (14° <= x <= 45°)","Kąt nachylenia dachu jest nieprawidłowy dla pokrycia dachowego z łupku (14° <= X <= 45°).","Указанное значение наклона неверно для \"Шифера\" (14° <= X <= 45°).","Sklon střechy není správný pro „Břidlice“ (14° <= X <= 45°)."]
["Pan1","Simple pan","Monopitch","Enkel dakvlak","Einfache Dachfläche","Féltető","Jednostronny","Односкатная","Pultová"]
["Pan2","Double pan","Duopitch","Dubbel dakvlak","Doppelte Dachplatte","Nyeregtető","Dwustronny","Двухскатная","Sedlová"]
["Dimension","Dimensions","Dimensions","Afmetingen","Dimensionen","Méretek","Wymiary","Размеры","Rozměry"]
["Conforme","Conforme à Avis Technique (France)","Compliant with the \"Avis Technique\" \n(French users only)","In overeenstemming met de \"Avis Technique\" \n(enkel voor gebruik in Frankrijk)","Entspricht der \"Avis Technique\" \n(nur für französische Benutzer)","Megfelel az \"Avis Technique\" előírásoknak (csak Francia felhasználóknak)","Zgodne z \"Avis Technique\" (Tylko francuscy użytkownicy)","Соответствует спецификациям \"Avis Technique\" \n(только для пользователей из Франции)","V souladu s \"Avis Technique\" \n(Pouze francouzští uživatelé)"]
["Avis","Module sous Avis Technique ","PV modules compliant with the \"Avis Technique\"","Zonnepaneel dat voldoet aan de \"Avis Technique\"","PV-Module, die mit der \"Avis Technique\" vorschriftsmäßig \nübereinstimmen","PV modul megfelel az \"Avis Technique\" előírásoknak","Moduły PV zgodne z \"Wymaganiami Technicznymi\"","PV-модули, соответствующие требованиям \"Avis Technique\"","FV panely vyhovující „Avis Technique“"]
["Techno","Technologie","Technology","Technologie","Technologie","Technológia","Technologia","Технология","Technologie"]
["Jonction","Boite de jonction splittée","Split junction box","Gesplitste aansluitdoos","Anschlusskasten","Osztott csatlakozódoboz","Rozdzielacz","Разъемная распределительная коробка","Rozdělená spojovací skříňka"]
["Renfort","Barre(s) de renfort","Rear support bar(s)","Achterste verstevigingsbalk(en)","Bewehrungsstab","Elülső segéd sáv(ok)","Tylny wspornik(i)","Задняя опорная балка(и)","Zadní nosná tyč(y)"]
["Abergement","Abergements","Flashings","Afdekplaten","Verblechung","Burkolatok","Obróbki blacharskie","Доборные элементы","Klempířské plechy"]
["Colorflex","Couleur FLEXALU","FLEXALU Color","Kleur FLEXALU","FLEXALU Farbe","FLEXALU szín","Kolor taśmy hydroizolacyjnej","Цвет FLEXALU","Barva FLEXALU"]
["Largeurflex","Largeur FLEXALU","FLEXALU Width","Breedte FLEXALU","FLEXALU Breite","FLEXALU szélesség","Szerokość taśmy hydroizolacyjnej","Ширина FLEXALU","Šířka FLEXALU"]
["Comment","Commentaires","Comments","Opmerkingen","Kommentare","Megjegyzések","Uwagi ","Комментарии","Komentáře"]
["Dessin","Dessin","Drawing","Tekening","Zeichnung","Rajz","Rysunek","Чертёж","Nákres"]
["Config","Insérer","Insert","Invoegen","Einfügen","Beilleszt","Wprowadź","Вставить","Vložit"]
["Objet","Objet","Item","Object","Objekt","Tétel","Przedmiot","Элемент","Položka"]
["Ajouter","Ajouter champ PV","Add new layout","Extra PV-veld","Anbauen","Új elrendezés hozzáadása","Dodaj nowy układ","Добавить новую раскладку","Přidat nové rozvržení"]
["Deplacement","Déplacement du champs PV","PV array moving","Verplaats het PV-veld","Bewegung","PV elrendezés mozgatása","Ruchomy układ modułów PV","Подвижная схема PV-модулей","Pohyblivé schéma FV modulů"]
["Message","Pour les abergements hauts des delais supplementaires de production sont a prevoir. Il est possible de les remplacer par du Flexalu","Additional time has to be considered for the production of the top center flashing. It is possible to replace it with Flexalu","Voor de bovenste afdekplaten is extra produktietijd nodig. Het is mogelijk ze te vervangen door Flexalu","Für die Herstellung der oberen Blechabdeckung muss zusätzliche Zeit berücksichtigt werden. Es ist möglich, sie durch Flexalu (Dichtungsband)  zu ersetzen.","A felső burkolat legyártása több időt vesz igénybe. Kiváltható FLEXALU alkalmazásával","Należy wziąć pod uwagę dodatkowy czas montażu na wykonanie górnej obróbki blacharskiej. Istnieje możliwość użycia taśmy hydroizolacyjnej. ","Необходимо учитывать дополнительное время сборки верхней центральной планки. Существует возможность использования гидроизоляционной ленты FLEXALU.","Je třeba vzít v úvahu dodatečnou dobu montáže pro provedení horní středové lišty. Existuje možnost použití hydroizolační pásky FLEXALU."]
["Message_toit","Valeurs en dehors du toit","Out of the roof","Waarden buiten het dak","Vom Dach aus","Tetőn kívül","Wartości poza dachem","За пределами крыши","Mimo střechu"]
["Calcul","Calcul des pièces","Calculate parts","Bereken de onderdelen","Berechnung","Alkatrészek kiszámítása","Oblicz części","Расчет деталей","Vypočítat díly"]
["Aucune_plaque","Aucune plaque trouvée","No GSE frame found","Geen GSE montageplaat gevonden","Keine GSE-Wanne gefunden","Nem található megfelelő GSE keret","Nie znaleziono ramy GSE","GSE рама не найдена","Nebyl nalezen žádný rám GSE"]
["Choisir_plaque","Choisir plaque","Select GSE frame","Selecteer de GSE montageplaat","Auswählen GSE-Wanne","Válasszd ki a GSE keretet","Wybierz ramę GSE","Выбирете GSE раму","Vyberte rám GSE"]
["EcranToiture","Ecran de sous toiture","Roofing Underlay","Dakfolie","Unterspannbahn","Tető szigetelés","Podkład dachowy","Утепление крыши","Izolace střechy"]
["projet","projet","project","project  ","projekt\n","projekt","projekt ","проект","projekt"]
["info_rampant","Si vous ne connaissez pas la longueur de rampant, saisissez l’inclinaison et la largeur du toit pour la déterminer.","If you don’t know the roof width (R), enter the roof slope (α) and the house width (W) to determine it.","Als u de dakbreedte (R) niet weet, voer dan de dakhelling (α) en de huisbreedte (W) in om deze te bepalen","Wenn Sie die Dachfläche nicht kennen, geben Sie dessen Neigung und die Breite des Hauses ein, um diese zu bestimmen.","Ha nem tudja a tető szélességét('R), adja meg a tető lejtését(α) és a ház szélességét (W) a meghatározásához.","Jeśli nie znasz szerokości dachu (R), wprowadź kąt nachylenie dachu (α) i szerokość budynku (W), aby ją zdefiniować.","Если вы не знаете ширину крыши (R), введите уклон крыши (α) и ширину дома (W), чтобы определить ее.","Pokud neznáte šířku střechy (R), zadejte její sklon (α) a šířku budovy (W)."]
["inserer","Insérer un champ prédéfini","Set up a predefined PV array","Geef een voorgedefiniëerd PV-veld op","Einfügen einer vordefinierten PV-Anordnung","Előre meghatározott PV elrendezés megadása","Skonfiguruj wstępnie zdefiniowaną macierz modułów PV","Настроить стандартную раскладку PV-модулей","Přizpůsobit standardní rozložení FV modulů"]
["ligne","Lignes","Lines","Rijen","Zeilen","Sorok","Linie","Ряды","Řádky"]
["colonne","Colonnes","Columns","Kolommen","Spalten","Oszlopok","Kolumny ","Столбцы","Sloupce"]
["Dessiner","Dessiner le champ PV","Draw the PV array","Teken het PV-veld","Zeichnen der PV-Anordnung","PV elrendezés megrajzolása","Narysuj tablicę macierz modułów PV","Создать раскладку PV-модулей","Vytvořit rozložení FV modulů"]
["liste","Liste de matériel","Bill of material","Materiaallijst","Stückliste","Anyagszámla","Zestawienie materiałów","Смета материалов","Bill of material"]
["legende1","Abergement de faîtage","Top Flashing","Bovenste afdekplaat","Eckverblechung","Felső burkolat","Obróbka do szczytowej krawędzi dachu ","Верхний отлив","Horní okapnice"]
["legende2","Abergement latéral","Lateral Flashing","Zij afdekplaat","Seitliche Verblechung","Oldalsó burkolat","Obróbka do bocznej krawędzi dachu","Торцевая планка","Koncová lišta"]
["legende3","Bande d'étanchéité FLEXALU","FLEXALU Waterproofing Strip","FLEXALU waterafdichtingsstrip","FLEXALU Dichtungband","FLEXALU vízzáró szalag","Taśma hydroizolacyjna ","Гидроизоляционная лента FLEXALU","Hydroizolační pás FLEXALU"]
["Haut2","Hauteur (m)","Height (m)","Hoogte (m)","Höhe (m)","Magasság (m)","Wysokość (m)","Высота (м)","Výška (m)"]
["Larg2","Largeur (m)","Width (m)","Breedte (m)","Breite (m)","Szélesség (m)","Szerokość (m)","Ширина (м)","Šířka (m)"]
["Larg3","Largeur (L)","Width (L)","Breedte (L)","Breite (L)","Szélesség (L)","Szerokość (L)","Ширина (L)","Šířka (L)"]
["Messtoit","Veuillez saisir les dimensions du toit avant d’accéder à la partie Calepinage.","Please enter the roof dimensions before accessing the Layout section.","Voer de dakafmetingen in voordat u naar het Lay-out gedeelte gaat.","Please enter the roof dimensions before accessing the Layout section.","Kérem adja meg a tető méreteit mielőtt tovább lép az elrendezés szekcióba.","Wprowadź wymiary dachu przed przejściem do sekcji Układ.","Пожалуйста, введите размеры крыши, прежде чем переходить к разделу «Раскладка».","Před vstupem do sekce Rozvržení zadejte rozměry střechy."]
["Produit","Produit","Product","Producten","Produkt","Termékek","Produkt","Продукт","Výrobky"]
["Reset","Reset","Reset","Reset","Reset","Visszaállítás","Resetowanie","Сбросить","Resetovat"]
["Position X","Position X","Positon X","Positie X","Positon X","Pozíció X","Pozycja X","Положение X ","Pozice X "]
["Position Y","Position Y","Position Y","Positie Y","Position Y","Pozíció Y","Pozycja Y","Положение Y ","Pozice Y "]

{"sheet":"Home","index":1,"n_rows":0,"n_cols":0,"rows_kept":0,"cut":false,"hidden":false,"merged":[]}

{"sheet":"Listes","index":2,"n_rows":34,"n_cols":28,"rows_kept":34,"cut":false,"hidden":true,"merged":[]}
["Epaisseur Module PV",null,"Pans","Module","Hauteur (mm)","Largeur (mm)","Epaisseur (mm)",null,null,null,null,null,null,null,null,null,null,null,null,null,null,"Type couverture","Oui/non","Raccord haut","Raccord bas","Couleur","Langue numéro","couleur etrier"]
[30,null,1,"AUO SunPrimo PM060PW1",1640,992,40,250,255,260,265,270,275,280,285,290,295,300,305,310,null,{"$f":"VLOOKUP(\"TuileM\",BD!$A$1:$P$200,Listes!$AA$2+1,0)","v":"Tuile mécanique"},{"$f":"VLOOKUP(\"Yes\",BD!$A$1:$P$200,Listes!$AA$2+1,0)","v":"Oui"},{"$f":"VLOOKUP(\"None1\",BD!$A$1:$P$200,Listes!$AA$2+1,0)","v":"Aucun"},{"$f":"VLOOKUP(\"None1\",BD!$A$1:$P$200,Listes!$AA$2+1,0)","v":"Aucun"},{"$f":"UPPER(trad(\"Noir\"))","v":"NOIR"},{"$f":"MATCH(s_langue,BD!$B$1:$P$1,0)","v":1},"NOIR"]
[31,null,2,"AUO SunVivo PM060MX2",1640,992,40,250,255,260,265,270,275,280,285,290,295,300,305,310,null,{"$f":"VLOOKUP(\"Ardoise\",BD!$A$1:$P$200,Listes!$AA$2+1,0)","v":"Ardoise"},{"$f":"VLOOKUP(\"No\",BD!$A$1:$P$200,Listes!$AA$2+1,0)","v":"Non"},{"$f":"VLOOKUP(\"Aberfait\",BD!$A$1:$P$200,Listes!$AA$2+1,0)","v":"Abergement"},"FLEXALU"]
[32,null,null,"AUO SunForte PM096B00",1559,1046,46,325,327,330,333,335,0,0,0,0,0,0,0,0,null,{"$f":"VLOOKUP(\"TuileC\",BD!$A$1:$P$200,Listes!$AA$2+1,0)","v":"Tuile à fort galbe"},null,"FLEXALU"]
[33,null,null,"BISOL BMU",1649,991,35,250,255,260,265,270,275,280,285,0,0,0,0,0,null,{"$f":"VLOOKUP(\"Tuile\",BD!$A$1:$P$200,Listes!$AA$2+1,0)","v":"Tuile plate"}]
[34,null,null,"BISOL BMO",1649,991,35,280,285,290,295,300,305,0,0,0,0,0,0,0,null,{"$f":"VLOOKUP(\"PlaqueN\",BD!$A$1:$P$200,Listes!$AA$2+1,0)","v":"Plaque nervurée"}]
[35,null,null,"SolarWorld Sunmodule Plus SW poly",1675,1001,33,250,255,260,265,270,275,0,0,0,0,0,0,0,null,{"$f":"VLOOKUP(\"PlaqueO\",BD!$A$1:$P$200,Listes!$AA$2+1,0)","v":"Plaque ondulée"}]
[36,null,null,"SolarWorld Sunmodule Plus SW mono",1675,1001,33,280,290,300,0,0,0,0,0,0,0,0,0,0]
[37,null,null,"Soluxtec Das Modul Multi Serie FR 60",1645,985,35,250,255,260,265,0,0,0,0,0,0,0,0,0]
[38,null,null,"Soluxtec Das Modul Mono Serie FR 60",1645,985,35,275,280,285,290,295,300,0,0,0,0,0,0,0]
[39,null,null,"SunPower SPR-E20/X21/X22",1559,1046,46,327,345,350,360,0,0,0,0,0,0,0,0,0]
[40,null,null,"Trina TSM-PD05",1650,992,35,255,260,265,270,0,0,0,0,0,0,0,0,0]
[41,null,null,"Trina TSM-DD05A",1650,992,35,270,275,280,285,290,0,0,0,0,0,0,0,0]
[42,null,null,"Viessmann Vitovolt 300 P",1640,992,40,250,255,260,265,270,0,0,0,0,0,0,0,0]
[43,null,null,"Viessmann Vitovolt 300 P",1640,992,40,275,280,285,290,295,300,305,310,0,0,0,0,0]
[44,null,null,"SOLUXTEC DAS MODUL Mono FS",1665,1005,35,315,320,325,330,0,0,0,0,0,0,0,0,0]
[45,null,null,"SUNPOWER Maxeon 2",1690,1046,40,340,345,350,355,360,0,0,0,0,0,0,0,0]
[46,null,null,"SUNPOWER Maxeon 3",1690,1046,40,370,375,380,385,390,395,400,0,0,0,0,0,0]
[47,null,null,"TRINASOLAR TSM-DE06M(II) ",1690,996,35,325,330,335,340,0,0,0,0,0,0,0,0,0]
[48,null,null,"TRINASOLAR TSM-DD06M.05(II)",1690,996,35,310,315,320,325,330,335,0,0,0,0,0,0,0]
[49,null,null,"TRINASOLAR TSM-PE06H",1690,996,35,285,290,295,300,0,0,0,0,0,0,0,0,0]
[50,null,null,"LG NeON’2  N1C",1686,1016,40,330,335,340,345,350,355,360,0,0,0,0,0,0]
[null,null,null,"LG NeON’2  N1K",1686,1016,40,325,330,335,340,0,0,0,0,0,0,0,0,0]
[null,null,null,"LG NeON’2  N1T",1686,1016,40,335,340,345,0,0,0,0,0,0,0,0,0,0]
[null,null,null,"LG NeON’R Q1C",1700,1016,40,360,365,370,375,380,0,0,0,0,0,0,0,0]
[null,null,null,"LG NeON’R Q1K",1700,1016,40,335,340,345,350,355,360,365,370,0,0,0,0,0]
[null,null,null,"JA SOLAR JAP60S09/SC",1657,996,35,270,275,280,285,290,0,0,0,0,0,0,0,0]
[null,null,null,"JA SOLAR JAM60S09/PR",1657,996,35,310,315,320,325,330,0,0,0,0,0,0,0,0]
[null,null,null,"JA SOLAR JAM60S12/PR",1657,996,35,305,310,315,320,325,0,0,0,0,0,0,0,0]
[null,null,null,"CSUNxxx-60M 1640x990x35",1640,990,35,295,300,305,310,315,0,0,0,0,0,0,0,0]
[null,null,null,"CSUNxxx-60M 1658x996x35",1658,996,35,315,320,325,330,0,0,0,0,0,0,0,0,0]
[null,null,null,"CSUNxxx-120M",1684,1002,35,310,315,320,325,330,335,340,0,0,0,0,0,0]
[null,null,null,"PERLIGHT PLM-XXXMB-60",1640,992,35,270,275,280,285,290,295,300,305,310,0,0,0,0]
[null,null,null,"Autres",0,0,0,0,0,0,0,0,0,0,0,0,0,0,0,0]

{"sheet":"Accueil","index":3,"n_rows":46,"n_cols":13,"rows_kept":46,"cut":false,"hidden":false,"merged":[[2,2,2,12],[3,2,3,12],[6,3,8,12],[41,3,41,4]]}
["                                                                                                                                                                                                                                                                                                                                                                                                                                                                                                                                                                                                                                                                      "]
[]
[null,null,{"$f":"VLOOKUP(\"HomeT1\",BD!$A$1:$P$200,Listes!$AA$2+1,0)","v":"BIENVENUE DANS L'OUTIL DE DIMENSIONNEMENT ET COMMANDE "}]
[null,null,{"$f":"VLOOKUP(\"HomeT2\",BD!$A$1:$P$200,Listes!$AA$2+1,0)","v":"DU GSE INTEGRATION IN-ROOF SYSTEM"}]
[]
[null,null,null,null,null,null,null,null,null,null,null,null,"Français"]
[null,null,null,{"$f":"VLOOKUP(\"HomeT3\",BD!$A$1:$P$200,Listes!$AA$2+1,0)","v":"Vous trouverez à travers cette application l'outil qui vous permettra de calculer et de dimensionner vos commandes"}]
[]
[]
[]
[]
[]
[]
[]
[]
[]
[]
[]
[]
[]
[]
[]
[]
[]
[]
[]
[]
[]
[]
[]
[]
[]
[]
[null,null,null,null,null,","]
[]
[]
[]
[]
[]
[]
[]
[null,null,{"$f":"VLOOKUP(\"Produit\",BD!$A$1:$P$200,Listes!$AA$2+1,0)","v":"Produit"},"GSE IN-ROOF"]
[]
[null,null,null,null,null,null,null,"GSE Intégration"]
[null,null,null,null,null,null,null,"5 - 9 rue Morand - 93400 Saint Ouen"]
[null,null,null,null,null,null,null,"Tel : +33(0)1.49.48.14.51 - contact@gseintegration.fr - www.gseintegration.com"]

{"sheet":"Projet","index":4,"n_rows":45,"n_cols":75,"rows_kept":45,"cut":false,"hidden":true,"merged":[[24,44,44,44],[8,16,8,17],[16,17,16,19],[18,17,18,19],[20,17,20,19],[20,16,21,16],[10,17,10,19],[4,33,44,33],[5,44,23,44],[37,9,37,11],[8,9,9,12],[1,9,1,12],[3,35,3,38],[3,42,3,43],[6,2,6,4],[8,2,8,3],[3,9,3,12],[10,9,11,12],[29,3,29,5],[12,9,12,12]]}
[null,null,null,null,null,null,null,null,null,null,null,null,null,null,null,null,null,null,null,null,null,null,null,null,null,null,null,null,null,null,null,null,null,null,null,null,null,null,null,null,null,null,null,null,null,null,null,null,"1710 / 1045",1710,1045,"H16"]
[null,null,null,null,null,null,null,null,null,{"$f":"VLOOKUP(\"RefCmpPV\",BD!$A$1:$P$200,Listes!$AA$2+1,0)","v":"Référence du projet"}]
[null,null,null,null,null,null,null,null,null,null,null,null,null,null,null,null,null,null,null,null,null,null,null,null,null,null,null,null,null,null,null,null,null,null,null,null,null,null,null,null,null,null,null,null,null,null,null,1]
[null,null,null,null,null,null,null,null,null,null,null,null,null,null,null,null,null,null,null,null,null,null,null,null,null,null,null,null,null,null,null,null,null,null,"Référence","Tolérances dimensionnelles",null,null,null,null,null,null,"Dimensions de référence de la plaque GSE",null,null,null,"Hauteur ref :",1710,null,null,null,null,null,null,30,31,32,33,34,35,36,37,38,39,40,41,42,43,44,45,46,47,48,49,50]
[null,null,null,null,null,null,null,null,null,null,null,null,null,null,null,null,null,null,null,null,null,null,null,null,null,null,null,null,null,null,null,null,null,"Base Plaque","PLAQUE","HAUTEUR MINIMUM","HAUTEUR MAXIMUM","LARGEUR MINIMUM","LARGEUR MAXIMUM","EPAISSEUR MIN","Demi cellule","Renfort","Hauteur ref","Larg ref",null,null,"Largueur ref :",1045]
[null,null,null,null,null,null,null,null,null,null,null,null,null,null,null,null,null,null,null,null,null,null,null,null,null,null,null,null,null,null,null,null,null,null,"1559 / 1046",1525,1615,1041,1046,35,null,null,1575,1046,"PORTRAIT",null,"Lignes :",6,null,null,null,null,null,null,null,null,null,null,null,"H16","H16","H16","H19","H19","H21","H21","H23","H23","H23","H26","H26","H27","H27",null,"H31"]
[null,null,{"$f":"VLOOKUP(\"DimToit\",BD!$A$1:$P$200,Listes!$AA$2+1,0)","v":"Caractéristiques du toit"},null,null,null,null,null,null,{"$f":"VLOOKUP(\"DimMod\",BD!$A$1:$P$200,Listes!$AA$2+1,0)","v":"Caractéristiques du module"},null,null,null,null,null,null,{"$f":"VLOOKUP(\"FeatCmpPV\",BD!$A$1:$P$200,Listes!$AA$2+1,0)","v":"Composants du kit"},null,null,null,null,null,null,null,null,null,null,null,null,null,null,null,null,null,"1575 / 1053",1495,1675,1048,1053,35,null,null,1575,1053,null,null,"Colonnes :",18,null,null,null,null,null,null,null,null,null,null,null,"H16","H16","H16","H19","H19","H21","H21","H23","H23","H23","H26","H26","H27","H27",null,"H31"]
[null,null,null,null,null,null,null,null,null,null,null,null,null,null,null,null,null,null,null,null,null,null,null,null,null,null,null,null,null,null,null,null,null,null,"1575 / 1082",1495,1675,1077,1082,35,null,null,1575,1082,null,null,"Ajustement :",0,null,null,null,null,null,null,null,null,null,null,null,"H16","H16","H16","H19","H19","H21","H21","H23","H23","H23","H26","H26","H27","H27",null,"H31"]
[null,null,{"$f":"VLOOKUP(\"Pan1\",BD!$A$1:$P$200,Listes!$AA$2+1,0)","v":"Simple pan"},null,{"$f":"VLOOKUP(\"Pan2\",BD!$A$1:$P$200,Listes!$AA$2+1,0)","v":"Double pan"},null,null,null,false,{"$f":"VLOOKUP(\"Conforme\",BD!$A$1:$P$200,Listes!$AA$2+1,0)","v":"Conforme à Avis Technique (France)"},null,null,null,null,null,null,{"$f":"VLOOKUP(\"Abergement\",BD!$A$1:$P$200,Listes!$AA$2+1,0)&\" :\"","v":"Abergements :"},null,null,null,null,null,null,null,null,null,null,null,null,null,null,null,null,null,"1580 / 808",1500,1680,803,808,35,null,null,1580,808,null,null,"Intermodule :",10,null,null,null,null,null,null,null,null,null,null,null,"H16","H16","H16","H19","H19","H21","H21","H23","H23","H23","H26","H26","H27","H27",null,"H31"]
[null,null,null,null,null,null,null,null,null,null,null,null,null,null,null,null,null,null,null,null,null,null,null,null,null,null,null,null,null,null,null,null,null,null,"1640 / 992",1560,1740,987,992,35,null,null,1640,992,null,null,"Hauteur :",10.48,null,null,null,null,null,null,null,null,null,null,null,"H16","H16","H16","H19","H19","H21","H21","H23","H23","H23","H26","H26","H27","H27",null,"H31"]
[null,null,null,null,null,null,null,null,null,{"$f":"VLOOKUP(\"Avis\",BD!$A$1:$P$200,Listes!$AA$2+1,0)","v":"Module sous Avis Technique "},null,null,null,null,null,2,{"$f":"VLOOKUP(\"KITUNI\",BD!$A$1:$P$200,Listes!$AA$2+1,0)","v":"Kit Universel"},{"$f":"VLOOKUP(\"KITATEC\",BD!$A$1:$P$200,Listes!$AA$2+1,0)","v":"Kit spécifique"},null,null,null,null,null,null,null,null,null,null,null,null,null,null,null,null,"1640 / 1001",1560,1740,996,1001,35,null,null,1640,1001,null,null,"Longueur :",19.497,null,null,null,null,null,null,null,null,null,null,null,"H16","H16","H16","H19","H19","H21","H21","H23","H23","H23","H26","H26","H27","H27",null,"H31"]
[null,null,null,null,null,null,null,null,null,null,null,null,null,null,null,null,null,null,null,null,null,null,null,null,null,null,null,null,null,null,null,null,null,null,"1640 / 1001 P33",1560,1740,996,1001,32,null,null,1640,1001,null,null,"Etrier :","H16",null,null,null,null,null,null,null,null,"H16","H16","H16","H19","H19","H21","H21","H23","H23","H23","H26","H26","H27","H27",null,"H31","H31","H31"]
[null,null,null,null,null,null,null,null,null,"Autres",null,null,null,null,null,null,{"$f":"VLOOKUP(\"ColorAber\",BD!$A$1:$P$200,Listes!$AA$2+1,0)&\" :\"","v":"Couleur :"},"NOIR",null,null,null,null,null,null,null,null,null,null,null,null,null,null,null,null,"1686 / 1016",1605,1755,1011,1016,35,null,null,1685,1016,null,null,"Nb etriers",{"$f":"IF(flex_etrier=1,4,6)","v":4},null,null,null,null,null,null,null,null,null,null,null,"H16","H16","H16","H19","H19","H21","H21","H23","H23","H23","H26","H26","H27","H27","H27","H31"]
[null,null,null,null,null,null,null,null,null,null,null,null,null,null,null,null,null,null,null,null,null,null,null,null,null,null,null,null,null,null,null,null,null,null,"1710 / 995",1630,1780,990,995,30,"Oui","Oui",1710,995,null,null,null,null,null,null,null,null,null,null,"H16","H16","H16","H19","H19","H21","H21","H23","H23","H23","H26","H26","H27","H27",null,"H31","H31","H31"]
[null,null,null,null,null,null,null,null,null,{"$f":"VLOOKUP(\"Dimension\",BD!$A$1:$P$200,Listes!$AA$2+1,0)&\" :\"","v":"Dimensions :"},null,null,null,null,null,null,null,null,null,null,null,null,null,null,null,null,null,null,null,null,null,null,null,null,"1710 / 1000",1630,1780,995,1000,30,"Oui","Oui",1710,1000,null,null,null,null,null,null,null,null,null,null,"H16","H16","H16","H19","H19","H21","H21","H23","H23","H23","H26","H26","H27","H27",null,"H31","H31","H31"]
[null,null,null,null,null,null,null,null,null,null,null,null,null,null,null,null,null,null,null,null,null,null,null,null,null,null,null,null,null,null,null,null,null,null,"1710 / 1005",1630,1780,1000,1005,30,"Oui","Oui",1710,1005,null,null,null,null,null,null,null,null,null,null,"H16","H16","H16","H19","H19","H21","H21","H23","H23","H23","H26","H26","H27","H27",null,"H31","H31","H31"]
[null,null,null,null,null,null,null,null,null,{"$f":"VLOOKUP(\"Haut\",BD!$A$1:$P$200,Listes!$AA$2+1,0)&\" :\"","v":"Hauteur (H) :"},null,"mm",null,null,null,null,{"$f":"VLOOKUP(\"AberLat\",BD!$A$1:$P$200,Listes!$AA$2+1,0)&\" :\"","v":"Raccord latéral :"},null,null,null,null,null,null,null,null,null,null,null,null,null,null,null,null,null,"1710 / 1010",1630,1780,1005,1010,30,"Oui","Oui",1710,1010,null,null,null,null,null,null,null,null,null,null,"H16","H16","H16","H19","H19","H21","H21","H23","H23","H23","H26","H26","H27","H27",null,"H31","H31","H31"]
[null,null,null,null,null,null,null,null,null,null,null,null,null,null,null,null,null,null,null,null,null,null,null,null,null,null,null,null,null,null,null,null,null,null,"1710 / 1020",1630,1780,1015,1020,30,"Oui","Oui",1710,1020,null,null,null,null,null,null,null,null,null,null,"H16","H16","H16","H19","H19","H21","H21","H23","H23","H23","H26","H26","H27","H27",null,"H31","H31","H31"]
[null,null,null,null,null,null,null,null,null,{"$f":"VLOOKUP(\"Larg3\",BD!$A$1:$P$200,Listes!$AA$2+1,0)&\" :\"","v":"Largeur (L) :"},null,"mm",null,null,null,null,{"$f":"VLOOKUP(\"RacFait\",BD!$A$1:$P$200,Listes!$AA$2+1,0)&\" :\"","v":"Raccord haut :"},null,null,null,null,null,null,null,null,null,null,null,null,null,null,null,null,null,"1710 / 1025",1630,1780,1020,1025,30,"Oui","Oui",1710,1025,null,null,null,null,null,null,null,null,null,null,"H16","H16","H16","H19","H19","H21","H21","H23","H23","H23","H26","H26","H27","H27",null,"H31","H31","H31"]
[null,null,null,null,null,null,null,null,null,null,null,null,null,null,null,null,null,null,null,null,null,null,null,null,null,null,null,null,null,null,null,null,null,null,"1710 / 1030",1630,1780,1025,1030,30,"Oui","Oui",1710,1030,null,null,null,null,null,null,null,null,null,null,"H16","H16","H16","H19","H19","H21","H21","H23","H23","H23","H26","H26","H27","H27",null,"H31","H31","H31"]
[null,null,null,null,null,null,null,null,null,{"$f":"VLOOKUP(\"Epai\",BD!$A$1:$P$200,Listes!$AA$2+1,0)&\" :\"","v":"Epaisseur (E) :"},null,"mm",null,null,null,null,{"$f":"VLOOKUP(\"RacEgout\",BD!$A$1:$P$200,Listes!$AA$2+1,0)&\" :\"","v":"Raccord bas :"},"FLEXALU",null,null,null,null,null,null,null,null,null,null,null,null,null,null,null,null,"1710 / 1040",1630,1780,1035,1040,30,"Oui","Oui",1710,1040,null,null,null,null,null,null,null,null,null,null,"H16","H16","H16","H19","H19","H21","H21","H23","H23","H23","H26","H26","H27","H27",null,"H31","H31","H31"]
[null,null,{"$f":"VLOOKUP(\"Long\",BD!$A$1:$P$200,Listes!$AA$2+1,0)&\" :\"","v":"Longueur (L) :"},null,"m",null,null,null,null,null,null,null,null,null,null,null,null,null,null,null,null,null,null,null,null,null,null,null,null,null,null,null,null,null,"1710 / 1045",1630,1780,1040,1045,30,"Oui","Oui",1710,1045,null,null,null,null,null,null,null,null,null,null,"H16","H16","H16","H19","H19","H21","H21","H23","H23","H23","H26","H26","H27","H27",null,"H31","H31","H31"]
[null,null,null,null,null,null,null,null,null,null,null,null,null,null,null,null,null,null,null,null,null,null,null,null,null,null,null,null,null,null,null,null,null,null,"1710 / 1050",1630,1780,1045,1050,30,"Oui","Oui",1710,1050,null,null,null,null,null,null,null,null,null,null,"H16","H16","H16","H19","H19","H21","H21","H23","H23","H23","H26","H26","H27","H27",null,"H31","H31","H31"]
[null,null,{"$f":"VLOOKUP(\"InclT\",BD!$A$1:$P$200,Listes!$AA$2+1,0)&\" :\"","v":"Inclinaison (α) :"},null,"°",null,"%",null,null,null,null,null,null,null,null,null,null,null,null,null,null,null,null,null,null,null,null,null,null,null,null,null,null,null,"1710 / 1055",1630,1780,1050,1055,30,"Oui","Oui",1710,1055,null,null,null,null,null,null,null,null,null,null,"H16","H16","H16","H19","H19","H21","H21","H23","H23","H23","H26","H26","H27","H27",null,"H31","H31","H31"]
[null,null,null,null,null,null,null,null,null,null,null,null,null,null,null,null,{"$f":"VLOOKUP(\"Colorflex\",BD!$A$1:$P$200,Listes!$AA$2+1,0)&\" :\"","v":"Couleur FLEXALU :"},{"$f":"VLOOKUP(\"Noir\",BD!$A$1:$P$200,Listes!$AA$2+1,0)","v":"Noir"},null,{"$f":"VLOOKUP(\"Rouge\",BD!$A$1:$P$200,Listes!$AA$2+1,0)","v":"Rouge"},1,null,null,null,null,null,null,null,null,null,null,null,null,null,"1559 / 1046",1002,1182,1554,1559,35,null,null,1082,1559,"PAYSAGE",null,null,null,null,null,null,null,null,null,null,null,null,null,null,"H16","H16","H16","H19","H19","H21","H21","H23","H23","H23","H26","H26","H27","H27",null,"H31"]
[null,null,{"$f":"VLOOKUP(\"Ramp\",BD!$A$1:$P$200,Listes!$AA$2+1,0)&\" :\"","v":"Rampant (R) :"},null,"m",null,null,null,null,null,null,null,null,null,null,null,null,null,null,null,null,null,null,null,null,null,null,null,null,null,null,null,null,null,"1575 / 1082",1002,1182,1570,1575,35,null,null,1082,1575,null,null,null,null,null,null,null,null,null,null,null,null,null,null,null,"H16","H16","H16","H19","H19","H21","H21","H23","H23","H23","H26","H26","H27","H27",null,"H31"]
[null,1,null,null,null,null,null,null,null,{"$f":"VLOOKUP(\"PowerMod\",BD!$A$1:$P$200,Listes!$AA$2+1,0)&\" :\"","v":"Puissance :"},null,"Wc",null,null,null,null,{"$f":"VLOOKUP(\"Largeurflex\",BD!$A$1:$P$200,Listes!$AA$2+1,0)&\" :\"","v":"Largeur FLEXALU :"},"330 mm",null,"500 mm",1,null,null,null,null,null,null,null,null,null,null,null,null,null,"1580 / 808",728,908,1575,1580,35,null,null,808,1580,null,null,null,null,null,null,null,null,null,null,null,null,null,null,null,"H16","H16","H16","H19","H19","H21","H21","H23","H23","H23","H26","H26","H27","H27",null,"H31"]
[null,null,{"$f":"VLOOKUP(\"Larg\",BD!$A$1:$P$200,Listes!$AA$2+1,0)&\" :\"","v":"Largeur (W) :"},null,"m",null,null,null,null,null,null,null,null," ",null,null,null,null,null,null,null,null,null,null,null,null,null,null,null,null,null,null,null,null,"1640 / 992",912,1092,1635,1640,35,null,null,992,1640,null,null,null,null,null,null,null,null,null,null,null,null,null,null,null,"H16","H16","H16","H19","H19","H21","H21","H23","H23","H23","H26","H26","H27","H27",null,"H31"]
[null,null,null,null,null,null,null,null,null,{"$f":"VLOOKUP(\"Techno\",BD!$A$1:$P$200,Listes!$AA$2+1,0)&\" :\"","v":"Technologie :"},null,null,null,null,null,null,null,null,null,null,null,null,null,null,null,null,null,null,null,null,null,null,null,null,"1650 / 992 ",912,1092,1645,1650,35,null,null,992,1650,null,null,null,null,null,null,null,null,null,null,null,null,null,null,null,"H16","H16","H16","H19","H19","H21","H21","H23","H23","H23","H26","H26","H27","H27",null,"H31"]
[null,null,{"$f":"VLOOKUP(\"TypeCov\",BD!$A$1:$P$200,Listes!$AA$2+1,0)&\" :\"","v":"Type de couverture :"},null,null,null,null,null,null,null,null,null,null,null,null,null,null,null,null,null,null,null,null,null,null,null,null,null,null,null,null,null,null,null,"1660 / 992",912,1092,1655,1660,35,null,null,992,1660,null,null,null,null,null,null,null,null,null,null,null,null,null,null,null,"H16","H16","H16","H19","H19","H21","H21","H23","H23","H23","H26","H26","H27","H27",null,"H31"]
[null,null,null,null,null,null,null,null,null,{"$f":"VLOOKUP(\"Jonction\",BD!$A$1:$P$200,Listes!$AA$2+1,0)","v":"Boite de jonction splittée"},null,null,null,true,null,null,{"$f":"VLOOKUP(\"NbrEtrier\",BD!$A$1:$P$200,Listes!$AA$2+1,0)&\" :\"","v":"Nombre d'étriers :"},4,null,6,1,null,null,null,null,null,null,null,null,null,null,null,null,null,"1670 / 992",912,1092,1665,1670,35,null,null,992,1670,null,null,null,null,null,null,null,null,null,null,null,null,null,null,null,"H16","H16","H16","H19","H19","H21","H21","H23","H23","H23","H26","H26","H27","H27",null,"H31"]
[null,null,null,null,null,null,null,null,null,{"$f":"VLOOKUP(\"Renfort\",BD!$A$1:$P$200,Listes!$AA$2+1,0)","v":"Barre(s) de renfort"},null,null,null,false,null,null,null,null,null,null,null,null,null,null,null,null,null,null,null,null,null,null,null,null,"1675 / 992 P33",912,1092,1670,1675,35,null,null,992,1675,null,null,null,null,null,null,null,null,null,null,null,null,"H16","H16","H16","H19","H19","H21","H21","H23","H23","H23","H26","H26","H27","H27",null,"H31","H31","H31"]
[null,null,null,null,null,null,null,null,null,null,null,null,null,null,null,null,null,null,null,null,null,null,null,null,null,null,null,null,null,null,null,null,null,null,"1680 / 992",912,1092,1675,1680,35,null,null,992,1680,null,null,null,null,null,null,null,null,null,null,null,null,null,null,null,"H16","H16","H16","H19","H19","H21","H21","H23","H23","H23","H26","H26","H27","H27",null,"H31"]
[null,null,null,null,null,null,null,null,1,{"$f":"VLOOKUP(\"Portrait\",BD!$A$1:$P$200,Listes!$AA$2+1,0)","v":"Portrait"},null,{"$f":"VLOOKUP(\"Paysage\",BD!$A$1:$P$200,Listes!$AA$2+1,0)","v":"Paysage"},null,null,null,null,null,null,null,null,null,null,null,null,null,null,null,null,null,null,null,null,null,null,"1686 / 1016",912,1092,1681,1686,35,null,null,992,1686,null,null,null,null,null,null,null,null,null,null,null,null,null,null,null,"H16","H16","H16","H19","H19","H21","H21","H23","H23","H23","H26","H26","H27","H27",null,"H31"]
[null,null,null,null,null,null,null,null,null,null,null,null,null,null,null,null,{"$f":"VLOOKUP(\"EcranToiture\",BD!$A$1:$P$200,Listes!$AA$2+1,0)&\" :\"","v":"Ecran de sous toiture :"},null,false,null,null,null,null,null,null,null,null,null,null,null,null,null,null,null,"1700 / 1016",912,1092,1695,1700,35,null,null,992,1700,null,null,null,null,null,null,null,null,null,null,null,null,null,null,null,"H16","H16","H16","H19","H19","H21","H21","H23","H23","H23","H26","H26","H27","H27",null,"H31"]
[null,null,null,null,null,null,null,null,null,{"$f":"VLOOKUP(\"CorPlakGSE\",BD!$A$1:$P$200,Listes!$AA$2+1,0)&\" :\"","v":"Plaque GSE correspondante :"},null,null,null,null,null,null,null,null,null,null,null,null,null,null,null,null,null,null,null,null,null,null,null,null,"1665 / 1020",940,1120,1660,1665,30,"Oui",null,1020,1665,null,null,null,null,null,null,null,null,null,null,"H16","H16","H16","H19","H19","H21","H21","H23","H23","H23","H26","H26","H27","H27",null,"H31","H31","H31"]
[null,null,null,null,null,null,null,null,null,null,null,null,null,null,null,null,null,null,null,null,null,null,null,null,null,null,null,null,null,null,null,null,null,null,"1675 / 1020",940,1120,1670,1675,30,"Oui",null,1020,1675,null,null,null,null,null,null,null,null,null,null,"H16","H16","H16","H19","H19","H21","H21","H23","H23","H23","H26","H26","H27","H27",null,"H31","H31","H31"]
[null,null,null,null,null,null,null,null,null,null,null,null,null,null,null,null,null,null,null,null,null,null,null,null,null,null,null,null,null,null,null,null,null,null,"1680 / 1020",940,1120,1675,1680,30,"Oui",null,1020,1680,null,null,null,null,null,null,null,null,null,null,"H16","H16","H16","H19","H19","H21","H21","H23","H23","H23","H26","H26","H27","H27",null,"H31","H31","H31"]
[null,null,null,null,null,null,null,null,null,null,null,null,null,null,null,null,null,null,null,null,null,null,null,null,null,null,null,null,null,null,null,null,null,null,"1685 / 1020",940,1120,1680,1685,30,"Oui",null,1020,1685,null,null,null,null,null,null,null,null,null,null,"H16","H16","H16","H19","H19","H21","H21","H23","H23","H23","H26","H26","H27","H27",null,"H31","H31","H31"]
[null,null,null,null,null,null,null,null,null,null,null,null,null,null,null,null,null,null,null,null,null,null,null,null,null,null,null,null,null,null,null,null,null,null,"1690 / 1020",940,1120,1685,1690,30,"Oui",null,1020,1690,null,null,null,null,null,null,null,null,null,null,"H16","H16","H16","H19","H19","H21","H21","H23","H23","H23","H26","H26","H27","H27",null,"H31","H31","H31"]
[null,null,null,null,null,null,null,null,null,null,null,null,null,null,null,null,null,null,null,null,null,null,null,null,null,null,null,null,null,null,null,null,null,null,"1695 / 1020",940,1120,1690,1695,30,"Oui",null,1020,1695,null,null,null,null,null,null,null,null,null,null,"H16","H16","H16","H19","H19","H21","H21","H23","H23","H23","H26","H26","H27","H27",null,"H31","H31","H31"]
[null,null,null,null,null,null,null,null,null,null,null,null,null,null,null,null,null,null,null,null,null,null,null,null,null,null,null,null,null,null,null,null,null,null,"1700 / 1020",940,1120,1695,1700,30,"Oui",null,1020,1700,null,null,null,null,null,null,null,null,null,null,"H16","H16","H16","H19","H19","H21","H21","H23","H23","H23","H26","H26","H27","H27",null,"H31","H31","H31"]
[null,null,null,null,null,null,null,null,null,null,null,null,null,null,null,null,null,null,null,null,null,null,null,null,null,null,null,null,null,null,null,null,null,null,"1705 / 1020",940,1120,1700,1705,30,"Oui",null,1020,1705,null,null,null,null,null,null,null,null,null,null,"H16","H16","H16","H19","H19","H21","H21","H23","H23","H23","H26","H26","H27","H27",null,"H31","H31","H31"]
[null,null,null,null,null,null,null,null,null,null,null,null,null,null,null,null,null,null,null,null,null,null,null,null,null,null,null,null,null,null,null,null,null,null,"1720 / 1020",940,1120,1715,1720,30,"Oui",null,1020,1720,null,null,null,null,null,null,null,null,null,null,"H16","H16","H16","H19","H19","H21","H21","H23","H23","H23","H26","H26","H27","H27",null,"H31","H31","H31"]
[null,null,null,null,null,null,null,null,null,null,null,null,null,null,null,null,null,null,null,null,null,null,null,null,null,null,null,null,null,null,null,null,null,null,"1740 / 1020",940,1120,1735,1740,30,"Oui",null,1020,1740,null,null,null,null,null,null,null,null,null,null,"H16","H16","H16","H19","H19","H21","H21","H23","H23","H23","H26","H26","H27","H27",null,"H31","H31","H31"]

{"sheet":"Calepinage","index":5,"n_rows":323,"n_cols":38,"rows_kept":323,"cut":false,"hidden":true,"merged":[[1,8,1,23],[4,37,4,48],[1,37,1,48],[2,37,3,48],[4,29,4,30],[4,31,4,32],[4,33,4,34],[4,35,4,36],[4,19,4,20],[4,21,4,22],[4,23,4,24],[4,25,4,26],[4,27,4,28],[3,6,4,11],[4,12,4,15],[3,12,3,15],[4,63,4,64],[4,51,4,52],[4,77,4,78],[3,16,3,17],[4,16,4,17],[4,53,4,54],[4,55,4,56],[4,57,4,58],[4,59,4,60],[4,61,4,62],[4,83,4,84],[4,85,4,86],[4,87,4,88],[4,65,4,66],[4,67,4,68],[4,69,4,70],[4,71,4,72],[4,73,4,74],[4,75,4,76],[4,79,4,80],[4,81,4,82],[4,133,4,134],[4,145,4,146],[4,147,4,148],[4,111,4,112],[4,89,4,90],[4,91,4,92],[4,93,4,94],[4,95,4,96],[4,97,4,98],[4,99,4,100],[4,101,4,102],[4,103,4,104],[4,105,4,106],[4,107,4,108],[4,109,4,110],[4,123,4,124],[4,125,4,126],[4,127,4,128],[4,129,4,130],[4,131,4,132],[4,113,4,114],[4,115,4,116],[4,117,4,118],[4,119,4,120],[4,121,4,122],[4,135,4,136],[4,139,4,140],[4,141,4,142],[4,143,4,144],[4,193,4,194],[4,173,4,174],[4,175,4,176],[4,177,4,178],[4,179,4,180],[4,181,4,182],[4,183,4,184],[4,149,4,150],[4,151,4,152],[4,153,4,154],[4,205,4,206],[5,5,206,5],[4,185,4,186],[4,187,4,188],[4,189,4,190],[4,191,4,192],[4,161,4,162],[4,163,4,164],[4,165,4,166],[4,167,4,168],[4,169,4,170],[4,171,4,172],[4,159,4,160],[4,137,4,138],[4,197,4,198],[4,199,4,200],[4,201,4,202],[4,203,4,204],[4,155,4,156],[4,157,4,158],[4,195,4,196]]}
[]
[null,{"$f":"VLOOKUP(\"liste\",BD!$A$1:$P$200,Listes!$AA$2+1,0)","v":"Liste de matériel"},null,null,null,null,null,null,{"$f":"VLOOKUP(\"dessiner\",BD!$A$1:$P$200,Listes!$AA$2+1,0)","v":"Dessiner le champ PV"},null,null,null,null,null,null,null,null,null,null,null,null,null,null,null,null,null,null,null,null,null,null,null,null,null,null,null,null,{"$f":"\": \"&VLOOKUP(\"legende1\",BD!$A$1:$P$200,Listes!$AA$2+1,0)","v":": Abergement de faîtage"}]
[null,null,null,null,null,null,null,null,null,null,null,null,null,null,null,null,null,null,null,null,null,null,null,null,null,null,null,null,null,null,null,null,null,null,null,null,null,{"$f":"\": \"&VLOOKUP(\"legende2\",BD!$A$1:$P$200,Listes!$AA$2+1,0)","v":": Abergement latéral"}]
[null,null,null,null,null,null,{"$f":"VLOOKUP(\"inserer\",BD!$A$1:$P$200,Listes!$AA$2+1,0)","v":"Insérer un champ prédéfini"},null,null,null,null,null,{"$f":"VLOOKUP(\"ligne\",BD!$A$1:$P$200,Listes!$AA$2+1,0)&\" :\"","v":"Lignes :"},null,null,null,2]
[null,null,null,null,null,null,null,null,null,null,null,null,{"$f":"VLOOKUP(\"colonne\",BD!$A$1:$P$200,Listes!$AA$2+1,0)&\" :\"","v":"Colonnes :"},null,null,null,2,null,null,null,null,null,null,null,null,null,null,null,null,null,null,null,null,null,null,null,null,{"$f":"\": \"&VLOOKUP(\"legende3\",BD!$A$1:$P$200,Listes!$AA$2+1,0)","v":": Bande d'étanchéité FLEXALU"}]
[null,"KIT GSE INTEGRATION"]
[null,{"$f":"B302","v":"GSE Portrait montageplaat 1710 / 1045"},{"$f":"C302","v":4}]
[null,{"$f":"IFERROR(INDEX($B$301:$Z$321,MATCH(ROW(A10)-8,$Z$301:$Z$321,0),1),\"\")","v":"Universele zijafdekplaat - Zwart"},{"$f":"IFERROR(INDEX($B$301:$Z$321,MATCH(ROW(A10)-8,$Z$301:$Z$321,0),2),\"\")","v":8}]
[null,{"$f":"IFERROR(INDEX($B$301:$Z$321,MATCH(ROW(A11)-8,$Z$301:$Z$321,0),1),\"\")","v":"Universele hoekafdekplaat RECHTS boven Zwart"},{"$f":"IFERROR(INDEX($B$301:$Z$321,MATCH(ROW(A11)-8,$Z$301:$Z$321,0),2),\"\")","v":1}]
[null,"Universele hoekafdekplaat LINKS boven Zwart",1]
[null,"Universele afdekplaat midden boven - Zwart L 1500mm ",2]
[null,"GSE bevestigingshaakjes afdekplaten",25]
[null,"Hoekstuk Zwart L1400 mm om de module te verbinden met de afdekplaat midden boven",2]
[null,"Popnagels 4x8 (voor het verbinden van het bovenste hoekstuk)",8]
[null,"Universele verbinding bovenste afdekplaat Zwart L 375mm  ",1]
[null,"GSE Integration schroef + sluitring Grijs 6.3mmx60mm",24]
[null,"GSE Integration schroef + sluitring Zwart 6.3mmx60mm",12]
[null,"H16 Middenklem - Inox - Zwart - In Roof",4]
[null,"H16 Eindklem - Inox - Zwart - In Roof",8]
[null,"Linker Wig voor Eindklem - In Roof",4]
[null,"Rechter Wig voor Eindklem - In Roof",4]
[null,"EPDM 40x60 mm voor onder schroef IN-ROOF (2m rol)",12]
[null,"Voorgecomprimeerde afdichting/uitzetband - 20 x 40mm (5,5m rol)",2]
[null,"Flexalu Waterdichte Strip Zwart 330mm (5 m rol)",1]
[null,"Dakfolie (Rol van 75 m²)  ",1]
[null,"",{"$f":"IFERROR(INDEX($B$301:$Z$321,MATCH(ROW(A28)-8,$Z$301:$Z$321,0),2),\"\")","v":""}]
[null,"",""]
[null,"",""]
[null,"",""]
[null,"",""]
[null,"",""]
[]
[]
[]
[]
[]
[]
[]
[]
[]
[]
[]
[]
[]
[]
[]
[]
[]
[]
[]
[]
[]
[]
[]
[]
[]
[]
[]
[]
[]
[]
[]
[]
[]
[]
[]
[]
[]
[]
[]
[]
[]
[]
[]
[]
[]
[]
[]
[]
[]
[]
[]
[]
[]
[]
[]
[]
[]
[]
[]
[]
[]
[]
[]
[]
[]
[]
[]
[]
[]
[]
[]
[]
[]
[]
[]
[]
[]
[]
[]
[]
[]
[]
[]
[]
[]
[]
[]
[]
[]
[]
[]
[]
[]
[]
[]
[]
[]
[]
[]
[]
[]
[]
[]
[]
[]
[]
[]
[]
[]
[]
[]
[]
[]
[]
[]
[]
[]
[]
[]
[]
[]
[]
[]
[]
[]
[]
[]
[]
[]
[]
[]
[]
[]
[]
[]
[]
[]
[]
[]
[]
[]
[]
[]
[]
[]
[]
[]
[]
[]
[]
[]
[]
[]
[]
[]
[]
[]
[]
[]
[]
[]
[]
[]
[]
[]
[]
[]
[]
[]
[]
[]
[]
[]
[]
[]
[]
[]
[]
[]
[]
[]
[]
[]
[]
[]
[]
[]
[]
[]
[]
[]
[]
[]
[]
[]
[]
[]
[]
[]
[]
[]
[]
[]
[]
[]
[]
[]
[]
[]
[]
[]
[]
[]
[]
[]
[]
[]
[]
[]
[]
[]
[]
[]
[]
[]
[]
[]
[]
[]
[]
[]
[]
[]
[]
[]
[]
[]
[]
[]
[]
[]
[]
[]
[]
[]
[]
[]
[]
[]
[]
[]
[]
[]
[]
[]
[]
[]
[]
[]
[]
[]
[]
[]
[]
[]
[]
[]
[]
[]
[null,"KIT GSE INTEGRATION",null,1,2,3,4,5,6,7,8,9,10]
[{"$f":"SUM(C302:M302)","v":4},"GSE Portrait montageplaat 1710 / 1045",4,null,null,null,null,null,null,null,null,null,null,null,"PPORT",null,null,null,null,null,null,null,null,null,null,1]
[{"$f":"SUM(C303:M303)","v":8},"Universele zijafdekplaat - Zwart",8,null,null,null,null,null,null,null,null,null,null,null,"ALUN",null,null,null,null,null,null,null,null,null,null,{"$f":"IF(B303<>\"\",Z302+1,Z302)","v":2}]
[0,null,0,null,null,null,null,null,null,null,null,null,null,null,null,null,null,null,null,null,null,null,null,null,null,{"$f":"IF(B304<>\"\",Z303+1,Z303)","v":2}]
[1,"Universele hoekafdekplaat RECHTS boven Zwart",1,null,null,null,null,null,null,null,null,null,null,null,"COINDNOIR2014_15",null,null,null,null,null,null,null,null,null,null,3]
[1,"Universele hoekafdekplaat LINKS boven Zwart",1,null,null,null,null,null,null,null,null,null,null,null,"COINGNOIR2014_15",null,null,null,null,null,null,null,null,null,null,4]
[2,"Universele afdekplaat midden boven - Zwart L 1500mm ",2,null,null,null,null,null,null,null,null,null,null,null,"AFCUNL1500",null,null,null,null,null,null,null,null,null,null,5]
[25,"GSE bevestigingshaakjes afdekplaten",25,null,null,null,null,null,null,null,null,null,null,null,"CROCHET",null,null,null,null,null,null,null,null,null,null,6]
[2,"Hoekstuk Zwart L1400 mm om de module te verbinden met de afdekplaat midden boven",2,null,null,null,null,null,null,null,null,null,null,null,"CORNIERELAQUEB",null,null,null,null,null,null,null,null,null,null,7]
[8,"Popnagels 4x8 (voor het verbinden van het bovenste hoekstuk)",8,null,null,null,null,null,null,null,null,null,null,null,"RIVETPOP",null,null,null,null,null,null,null,null,null,null,8]
[1,"Universele verbinding bovenste afdekplaat Zwart L 375mm  ",1,null,null,null,null,null,null,null,null,null,null,null,"AFJUNL375",null,null,null,null,null,null,null,null,null,null,9]
[24,"GSE Integration schroef + sluitring Grijs 6.3mmx60mm",24,null,null,null,null,null,null,null,null,null,null,null,"VIS2014A",null,null,null,null,null,null,null,null,null,null,10]
[12,"GSE Integration schroef + sluitring Zwart 6.3mmx60mm",12,null,null,null,null,null,null,null,null,null,null,null,"VIS2014N",null,null,null,null,null,null,null,null,null,null,11]
[4,"H16 Middenklem - Inox - Zwart - In Roof",4,null,null,null,null,null,null,null,null,null,null,null,"EDH162014N (ASV09-35V)",null,null,null,null,null,null,null,null,null,null,12]
[8,"H16 Eindklem - Inox - Zwart - In Roof",8,null,null,null,null,null,null,null,null,null,null,null,"ESH162014N (ASV08-35V)",null,null,null,null,null,null,null,null,null,null,13]
[4,"Linker Wig voor Eindklem - In Roof",4,null,null,null,null,null,null,null,null,null,null,null,"CALE_GAUCHE",null,null,null,null,null,null,null,null,null,null,14]
[4,"Rechter Wig voor Eindklem - In Roof",4,null,null,null,null,null,null,null,null,null,null,null,"CALE_DROIT",null,null,null,null,null,null,null,null,null,null,15]
[12,"EPDM 40x60 mm voor onder schroef IN-ROOF (2m rol)",12,null,null,null,null,null,null,null,null,null,null,null,"CALE_EPDM_CELL",null,null,null,null,null,null,null,null,null,null,16]
[2,"Voorgecomprimeerde afdichting/uitzetband - 20 x 40mm (5,5m rol)",2,null,null,null,null,null,null,null,null,null,null,null,"JOINT_PRE_CONTRAIN",null,null,null,null,null,null,null,null,null,null,17]
[1,"Flexalu Waterdichte Strip Zwart 330mm (5 m rol)",1,null,null,null,null,null,null,null,null,null,null,null,"BANDE_FLEXALU_330",null,null,null,null,null,null,null,null,null,null,{"$f":"IF(B320<>\"\",Z319+1,Z319)","v":18}]
[1,"Dakfolie (Rol van 75 m²)  ",1,null,null,null,null,null,null,null,null,null,null,null,"ECRAN_SOUS_TOITURE ",null,null,null,null,null,null,null,null,null,null,{"$f":"IF(B321<>\"\",Z320+1,Z320)","v":19}]
[]
[10,null,10,0,0,0,0,0,0,0,0,0,0,0]

{"sheet":"Dessin","index":6,"n_rows":109,"n_cols":211,"rows_kept":109,"cut":false,"hidden":true,"merged":[[13,1,13,8],[7,12,7,13],[7,14,7,15],[7,16,7,17],[7,18,7,19],[7,20,7,21],[7,22,7,23],[7,84,7,85],[7,86,7,87],[7,88,7,89],[7,90,7,91],[7,92,7,93],[7,94,7,95],[7,72,7,73],[7,74,7,75],[7,76,7,77],[7,78,7,79],[7,80,7,81],[7,82,7,83],[7,60,7,61],[7,62,7,63],[7,64,7,65],[7,66,7,67],[7,68,7,69],[7,70,7,71],[7,48,7,49],[7,50,7,51],[7,52,7,53],[7,54,7,55],[7,56,7,57],[7,58,7,59],[7,36,7,37],[7,38,7,39],[7,40,7,41],[7,42,7,43],[7,44,7,45],[7,46,7,47],[7,24,7,25],[7,26,7,27],[7,28,7,29],[7,30,7,31],[7,32,7,33],[7,34,7,35],[9,81,9,82],[9,83,9,84],[9,85,9,86],[9,87,9,88],[9,89,9,90],[9,91,9,92],[9,69,9,70],[9,71,9,72],[9,73,9,74],[9,75,9,76],[9,77,9,78],[9,79,9,80],[9,57,9,58],[9,59,9,60],[9,61,9,62],[9,63,9,64],[9,65,9,66],[9,67,9,68],[9,45,9,46],[9,47,9,48],[9,49,9,50],[7,204,7,205],[7,206,7,207],[7,208,7,209],[7,210,7,211],[9,11,9,12],[9,13,9,14],[9,15,9,16],[9,17,9,18],[9,19,9,20],[7,192,7,193],[7,194,7,195],[7,196,7,197],[7,198,7,199],[7,200,7,201],[7,202,7,203],[7,180,7,181],[7,182,7,183],[7,184,7,185],[7,186,7,187],[7,188,7,189],[7,190,7,191],[7,168,7,169],[7,170,7,171],[7,172,7,173],[7,174,7,175],[7,176,7,177],[7,178,7,179],[7,156,7,157],[7,158,7,159],[7,160,7,161],[7,162,7,163],[7,164,7,165],[7,166,7,167],[7,144,7,145],[7,146,7,147],[7,148,7,149],[7,150,7,151],[7,152,7,153],[7,154,7,155],[7,132,7,133],[7,134,7,135],[7,136,7,137],[7,138,7,139],[7,140,7,141],[7,142,7,143],[7,120,7,121],[7,122,7,123],[7,124,7,125],[7,126,7,127],[7,128,7,129],[7,130,7,131],[7,108,7,109],[7,110,7,111],[7,112,7,113],[7,114,7,115],[7,116,7,117],[7,118,7,119],[7,96,7,97],[7,98,7,99],[7,100,7,101],[7,102,7,103],[7,104,7,105],[7,106,7,107],[9,51,9,52],[9,53,9,54],[9,55,9,56],[9,33,9,34],[9,35,9,36],[9,37,9,38],[9,39,9,40],[9,41,9,42],[9,43,9,44],[9,21,9,22],[9,23,9,24],[9,25,9,26],[9,27,9,28],[9,29,9,30],[9,31,9,32],[9,201,9,202],[9,203,9,204],[9,205,9,206],[9,207,9,208],[9,209,9,210],[10,11,10,12],[10,13,10,14],[10,15,10,16],[10,17,10,18],[10,19,10,20],[9,189,9,190],[9,191,9,192],[9,193,9,194],[9,195,9,196],[9,197,9,198],[9,199,9,200],[9,177,9,178],[9,179,9,180],[9,181,9,182],[9,183,9,184],[9,185,9,186],[9,187,9,188],[9,165,9,166],[9,167,9,168],[9,169,9,170],[9,171,9,172],[9,173,9,174],[9,175,9,176],[9,153,9,154],[9,155,9,156],[9,157,9,158],[9,159,9,160],[9,161,9,162],[9,163,9,164],[9,141,9,142],[9,143,9,144],[9,145,9,146],[9,147,9,148],[9,149,9,150],[9,151,9,152],[9,129,9,130],[9,131,9,132],[9,133,9,134],[9,135,9,136],[9,137,9,138],[9,139,9,140],[9,117,9,118],[9,119,9,120],[9,121,9,122],[9,123,9,124],[9,125,9,126],[9,127,9,128],[9,105,9,106],[9,107,9,108],[9,109,9,110],[9,111,9,112],[9,113,9,114],[9,115,9,116],[9,93,9,94],[9,95,9,96],[9,97,9,98],[9,99,9,100],[9,101,9,102],[9,103,9,104],[10,81,10,82],[10,83,10,84],[10,85,10,86],[10,87,10,88],[10,89,10,90],[10,91,10,92],[10,69,10,70],[10,71,10,72],[10,73,10,74],[10,75,10,76],[10,77,10,78],[10,79,10,80],[10,57,10,58],[10,59,10,60],[10,61,10,62],[10,63,10,64],[10,65,10,66],[10,67,10,68],[10,117,10,118],[10,119,10,120],[10,121,10,122],[10,123,10,124],[10,125,10,126],[10,127,10,128],[10,105,10,106],[10,107,10,108],[10,109,10,110],[10,111,10,112],[10,113,10,114],[10,115,10,116],[10,93,10,94],[10,95,10,96],[10,97,10,98],[10,99,10,100],[10,101,10,102],[10,103,10,104],[10,45,10,46],[10,47,10,48],[10,49,10,50],[10,51,10,52],[10,53,10,54],[10,55,10,56],[10,33,10,34],[10,35,10,36],[10,37,10,38],[10,39,10,40],[10,41,10,42],[10,43,10,44],[10,21,10,22],[10,23,10,24],[10,25,10,26],[10,27,10,28],[10,29,10,30],[10,31,10,32],[10,201,10,202],[10,203,10,204],[10,205,10,206],[10,207,10,208],[10,209,10,210],[11,11,11,12],[11,13,11,14],[11,15,11,16],[11,17,11,18],[11,19,11,20],[10,189,10,190],[10,191,10,192],[10,193,10,194],[10,195,10,196],[10,197,10,198],[10,199,10,200],[10,177,10,178],[10,179,10,180],[10,181,10,182],[10,183,10,184],[10,185,10,186],[10,187,10,188],[10,165,10,166],[10,167,10,168],[10,169,10,170],[10,171,10,172],[10,173,10,174],[10,175,10,176],[10,153,10,154],[10,155,10,156],[10,157,10,158],[10,159,10,160],[10,161,10,162],[10,163,10,164],[10,141,10,142],[10,143,10,144],[10,145,10,146],[10,147,10,148],[10,149,10,150],[10,151,10,152],[10,129,10,130],[10,131,10,132],[10,133,10,134],[10,135,10,136],[10,137,10,138],[10,139,10,140],[11,81,11,82],[11,83,11,84],[11,85,11,86],[11,87,11,88],[11,89,11,90],[11,91,11,92],[11,69,11,70],[11,71,11,72],[11,73,11,74],[11,75,11,76],[11,77,11,78],[11,79,11,80],[11,57,11,58],[11,59,11,60],[11,61,11,62],[11,63,11,64],[11,65,11,66],[11,67,11,68],[11,45,11,46],[11,47,11,48],[11,49,11,50],[11,51,11,52],[11,53,11,54],[11,55,11,56],[11,33,11,34],[11,35,11,36],[11,37,11,38],[11,39,11,40],[11,41,11,42],[11,43,11,44],[11,21,11,22],[11,23,11,24],[11,25,11,26],[11,27,11,28],[11,29,11,30],[11,31,11,32],[11,201,11,202],[11,203,11,204],[11,205,11,206],[11,207,11,208],[11,209,11,210],[12,11,12,12],[12,13,12,14],[12,15,12,16],[12,17,12,18],[12,19,12,20],[11,189,11,190],[11,191,11,192],[11,193,11,194],[11,195,11,196],[11,197,11,198],[11,199,11,200],[11,177,11,178],[11,179,11,180],[11,181,11,182],[11,183,11,184],[11,185,11,186],[11,187,11,188],[11,165,11,166],[11,167,11,168],[11,169,11,170],[11,171,11,172],[11,173,11,174],[11,175,11,176],[11,153,11,154],[11,155,11,156],[11,157,11,158],[11,159,11,160],[11,161,11,162],[11,163,11,164],[11,141,11,142],[11,143,11,144],[11,145,11,146],[11,147,11,148],[11,149,11,150],[11,151,11,152],[11,129,11,130],[11,131,11,132],[11,133,11,134],[11,135,11,136],[11,137,11,138],[11,139,11,140],[11,117,11,118],[11,119,11,120],[11,121,11,122],[11,123,11,124],[11,125,11,126],[11,127,11,128],[11,105,11,106],[11,107,11,108],[11,109,11,110],[11,111,11,112],[11,113,11,114],[11,115,11,116],[11,93,11,94],[11,95,11,96],[11,97,11,98],[11,99,11,100],[11,101,11,102],[11,103,11,104],[12,81,12,82],[12,83,12,84],[12,85,12,86],[12,87,12,88],[12,89,12,90],[12,91,12,92],[12,69,12,70],[12,71,12,72],[12,73,12,74],[12,75,12,76],[12,77,12,78],[12,79,12,80],[12,57,12,58],[12,59,12,60],[12,61,12,62],[12,63,12,64],[12,65,12,66],[12,67,12,68],[12,45,12,46],[12,47,12,48],[12,49,12,50],[12,51,12,52],[12,53,12,54],[12,55,12,56],[12,33,12,34],[12,35,12,36],[12,37,12,38],[12,39,12,40],[12,41,12,42],[12,43,12,44],[12,21,12,22],[12,23,12,24],[12,25,12,26],[12,27,12,28],[12,29,12,30],[12,31,12,32],[12,201,12,202],[12,203,12,204],[12,205,12,206],[12,207,12,208],[12,209,12,210],[13,11,13,12],[13,13,13,14],[13,15,13,16],[13,17,13,18],[13,19,13,20],[12,189,12,190],[12,191,12,192],[12,193,12,194],[12,195,12,196],[12,197,12,198],[12,199,12,200],[12,177,12,178],[12,179,12,180],[12,181,12,182],[12,183,12,184],[12,185,12,186],[12,187,12,188],[12,165,12,166],[12,167,12,168],[12,169,12,170],[12,171,12,172],[12,173,12,174],[12,175,12,176],[12,153,12,154],[12,155,12,156],[12,157,12,158],[12,159,12,160],[12,161,12,162],[12,163,12,164],[12,141,12,142],[12,143,12,144],[12,145,12,146],[12,147,12,148],[12,149,12,150],[12,151,12,152],[12,129,12,130],[12,131,12,132],[12,133,12,134],[12,135,12,136],[12,137,12,138],[12,139,12,140],[12,117,12,118],[12,119,12,120],[12,121,12,122],[12,123,12,124],[12,125,12,126],[12,127,12,128],[12,105,12,106],[12,107,12,108],[12,109,12,110],[12,111,12,112],[12,113,12,114],[12,115,12,116],[12,93,12,94],[12,95,12,96],[12,97,12,98],[12,99,12,100],[12,101,12,102],[12,103,12,104],[13,81,13,82],[13,83,13,84],[13,85,13,86],[13,87,13,88],[13,89,13,90],[13,91,13,92],[13,69,13,70],[13,71,13,72],[13,73,13,74],[13,75,13,76],[13,77,13,78],[13,79,13,80],[13,57,13,58],[13,59,13,60],[13,61,13,62],[13,63,13,64],[13,65,13,66],[13,67,13,68],[13,45,13,46],[13,47,13,48],[13,49,13,50],[13,51,13,52],[13,53,13,54],[13,55,13,56],[13,33,13,34],[13,35,13,36],[13,37,13,38],[13,39,13,40],[13,41,13,42],[13,43,13,44],[13,21,13,22],[13,23,13,24],[13,25,13,26],[13,27,13,28],[13,29,13,30],[13,31,13,32],[13,201,13,202],[13,203,13,204],[13,205,13,206],[13,207,13,208],[13,209,13,210],[14,11,14,12],[14,13,14,14],[14,15,14,16],[14,17,14,18],[14,19,14,20],[13,189,13,190],[13,191,13,192],[13,193,13,194],[13,195,13,196],[13,197,13,198],[13,199,13,200],[13,177,13,178],[13,179,13,180],[13,181,13,182],[13,183,13,184],[13,185,13,186],[13,187,13,188],[13,165,13,166],[13,167,13,168],[13,169,13,170],[13,171,13,172],[13,173,13,174],[13,175,13,176],[13,153,13,154],[13,155,13,156],[13,157,13,158],[13,159,13,160],[13,161,13,162],[13,163,13,164],[13,141,13,142],[13,143,13,144],[13,145,13,146],[13,147,13,148],[13,149,13,150],[13,151,13,152],[13,129,13,130],[13,131,13,132],[13,133,13,134],[13,135,13,136],[13,137,13,138],[13,139,13,140],[13,117,13,118],[13,119,13,120],[13,121,13,122],[13,123,13,124],[13,125,13,126],[13,127,13,128],[13,105,13,106],[13,107,13,108],[13,109,13,110],[13,111,13,112],[13,113,13,114],[13,115,13,116],[13,93,13,94],[13,95,13,96],[13,97,13,98],[13,99,13,100],[13,101,13,102],[13,103,13,104],[14,81,14,82],[14,83,14,84],[14,85,14,86],[14,87,14,88],[14,89,14,90],[14,91,14,92],[14,69,14,70],[14,71,14,72],[14,73,14,74],[14,75,14,76],[14,77,14,78],[14,79,14,80],[14,57,14,58],[14,59,14,60],[14,61,14,62],[14,63,14,64],[14,65,14,66],[14,67,14,68],[14,45,14,46],[14,47,14,48],[14,49,14,50],[14,51,14,52],[14,53,14,54],[14,55,14,56],[14,33,14,34],[14,35,14,36],[14,37,14,38],[14,39,14,40],[14,41,14,42],[14,43,14,44],[14,21,14,22],[14,23,14,24],[14,25,14,26],[14,27,14,28],[14,29,14,30],[14,31,14,32],[14,201,14,202],[14,203,14,204],[14,205,14,206],[14,207,14,208],[14,209,14,210],[15,11,15,12],[15,13,15,14],[15,15,15,16],[15,17,15,18],[15,19,15,20],[14,189,14,190],[14,191,14,192],[14,193,14,194],[14,195,14,196],[14,197,14,198],[14,199,14,200],[14,177,14,178],[14,179,14,180],[14,181,14,182],[14,183,14,184],[14,185,14,186],[14,187,14,188],[14,165,14,166],[14,167,14,168],[14,169,14,170],[14,171,14,172],[14,173,14,174],[14,175,14,176],[14,153,14,154],[14,155,14,156],[14,157,14,158],[14,159,14,160],[14,161,14,162],[14,163,14,164],[14,141,14,142],[14,143,14,144],[14,145,14,146],[14,147,14,148],[14,149,14,150],[14,151,14,152],[14,129,14,130],[14,131,14,132],[14,133,14,134],[14,135,14,136],[14,137,14,138],[14,139,14,140],[14,117,14,118],[14,119,14,120],[14,121,14,122],[14,123,14,124],[14,125,14,126],[14,127,14,128],[14,105,14,106],[14,107,14,108],[14,109,14,110],[14,111,14,112],[14,113,14,114],[14,115,14,116],[14,93,14,94],[14,95,14,96],[14,97,14,98],[14,99,14,100],[14,101,14,102],[14,103,14,104],[15,81,15,82],[15,83,15,84],[15,85,15,86],[15,87,15,88],[15,89,15,90],[15,91,15,92],[15,69,15,70],[15,71,15,72],[15,73,15,74],[15,75,15,76],[15,77,15,78],[15,79,15,80],[15,57,15,58],[15,59,15,60],[15,61,15,62],[15,63,15,64],[15,65,15,66],[15,67,15,68],[15,45,15,46],[15,47,15,48],[15,49,15,50],[15,51,15,52],[15,53,15,54],[15,55,15,56],[15,33,15,34],[15,35,15,36],[15,37,15,38],[15,39,15,40],[15,41,15,42],[15,43,15,44],[15,21,15,22],[15,23,15,24],[15,25,15,26],[15,27,15,28],[15,29,15,30],[15,31,15,32],[15,201,15,202],[15,203,15,204],[15,205,15,206],[15,207,15,208],[15,209,15,210],[16,11,16,12],[16,13,16,14],[16,15,16,16],[16,17,16,18],[16,19,16,20],[15,189,15,190],[15,191,15,192],[15,193,15,194],[15,195,15,196],[15,197,15,198],[15,199,15,200],[15,177,15,178],[15,179,15,180],[15,181,15,182],[15,183,15,184],[15,185,15,186],[15,187,15,188],[15,165,15,166],[15,167,15,168],[15,169,15,170],[15,171,15,172],[15,173,15,174],[15,175,15,176],[15,153,15,154],[15,155,15,156],[15,157,15,158],[15,159,15,160],[15,161,15,162],[15,163,15,164],[15,141,15,142],[15,143,15,144],[15,145,15,146],[15,147,15,148],[15,149,15,150],[15,151,15,152],[15,129,15,130],[15,131,15,132],[15,133,15,134],[15,135,15,136],[15,137,15,138],[15,139,15,140],[15,117,15,118],[15,119,15,120],[15,121,15,122],[15,123,15,124],[15,125,15,126],[15,127,15,128],[15,105,15,106],[15,107,15,108],[15,109,15,110],[15,111,15,112],[15,113,15,114],[15,115,15,116],[15,93,15,94],[15,95,15,96],[15,97,15,98],[15,99,15,100],[15,101,15,102],[15,103,15,104],[16,81,16,82],[16,83,16,84],[16,85,16,86],[16,87,16,88],[16,89,16,90],[16,91,16,92],[16,69,16,70],[16,71,16,72],[16,73,16,74],[16,75,16,76],[16,77,16,78],[16,79,16,80],[16,57,16,58],[16,59,16,60],[16,61,16,62],[16,63,16,64],[16,65,16,66],[16,67,16,68],[16,45,16,46],[16,47,16,48],[16,49,16,50],[16,51,16,52],[16,53,16,54],[16,55,16,56],[16,33,16,34],[16,35,16,36],[16,37,16,38],[16,39,16,40],[16,41,16,42],[16,43,16,44],[16,21,16,22],[16,23,16,24],[16,25,16,26],[16,27,16,28],[16,29,16,30],[16,31,16,32],[16,201,16,202],[16,203,16,204],[16,205,16,206],[16,207,16,208],[16,209,16,210],[17,11,17,12],[17,13,17,14],[17,15,17,16],[17,17,17,18],[17,19,17,20],[16,189,16,190],[16,191,16,192],[16,193,16,194],[16,195,16,196],[16,197,16,198],[16,199,16,200],[16,177,16,178],[16,179,16,180],[16,181,16,182],[16,183,16,184],[16,185,16,186],[16,187,16,188],[16,165,16,166],[16,167,16,168],[16,169,16,170],[16,171,16,172],[16,173,16,174],[16,175,16,176],[16,153,16,154],[16,155,16,156],[16,157,16,158],[16,159,16,160],[16,161,16,162],[16,163,16,164],[16,141,16,142],[16,143,16,144],[16,145,16,146],[16,147,16,148],[16,149,16,150],[16,151,16,152],[16,129,16,130],[16,131,16,132],[16,133,16,134],[16,135,16,136],[16,137,16,138],[16,139,16,140],[16,117,16,118],[16,119,16,120],[16,121,16,122],[16,123,16,124],[16,125,16,126],[16,127,16,128],[16,105,16,106],[16,107,16,108],[16,109,16,110],[16,111,16,112],[16,113,16,114],[16,115,16,116],[16,93,16,94],[16,95,16,96],[16,97,16,98],[16,99,16,100],[16,101,16,102],[16,103,16,104],[17,81,17,82],[17,83,17,84],[17,85,17,86],[17,87,17,88],[17,89,17,90],[17,91,17,92],[17,69,17,70],[17,71,17,72],[17,73,17,74],[17,75,17,76],[17,77,17,78],[17,79,17,80],[17,57,17,58],[17,59,17,60],[17,61,17,62],[17,63,17,64],[17,65,17,66],[17,67,17,68],[17,45,17,46],[17,47,17,48],[17,49,17,50],[17,51,17,52],[17,53,17,54],[17,55,17,56],[17,33,17,34],[17,35,17,36],[17,37,17,38],[17,39,17,40],[17,41,17,42],[17,43,17,44],[17,21,17,22],[17,23,17,24],[17,25,17,26],[17,27,17,28],[17,29,17,30],[17,31,17,32],[17,201,17,202],[17,203,17,204],[17,205,17,206],[17,207,17,208],[17,209,17,210],[18,11,18,12],[18,13,18,14],[18,15,18,16],[18,17,18,18],[18,19,18,20],[17,189,17,190],[17,191,17,192],[17,193,17,194],[17,195,17,196],[17,197,17,198],[17,199,17,200],[17,177,17,178],[17,179,17,180],[17,181,17,182],[17,183,17,184],[17,185,17,186],[17,187,17,188],[17,165,17,166],[17,167,17,168],[17,169,17,170],[17,171,17,172],[17,173,17,174],[17,175,17,176],[17,153,17,154],[17,155,17,156],[17,157,17,158],[17,159,17,160],[17,161,17,162],[17,163,17,164],[17,141,17,142],[17,143,17,144],[17,145,17,146],[17,147,17,148],[17,149,17,150],[17,151,17,152],[17,129,17,130],[17,131,17,132],[17,133,17,134],[17,135,17,136],[17,137,17,138],[17,139,17,140],[17,117,17,118],[17,119,17,120],[17,121,17,122],[17,123,17,124],[17,125,17,126],[17,127,17,128],[17,105,17,106],[17,107,17,108],[17,109,17,110],[17,111,17,112],[17,113,17,114],[17,115,17,116]],"merged_total":10105,"flags":["merged_cut"]}
[]
[]
[]
[]
[]
[null,null,null,null,"A"]
[null,null,null,null,0]
[null,null,null,null,null,null,null,null,null,null,null,null,"1 m",null,"2 m",null,"3 m",null,"4 m",null,"5 m",null,"6 m",null,"7 m",null,"8 m",null,"9 m",null,"10 m",null,"11 m",null,"12 m",null,"13 m",null,"14 m",null,"15 m",null,"16 m",null,"17 m",null,"18 m",null,"19 m",null,"20 m",null,"21 m",null,"22 m",null,"23 m",null,"24 m",null,"25 m",null,"26 m",null,"27 m",null,"28 m",null,"29 m",null,"30 m",null,"31 m",null,"32 m",null,"33 m",null,"34 m",null,"35 m",null,"36 m",null,"37 m",null,"38 m",null,"39 m",null,"40 m",null,"41 m",null,"42 m",null,"43 m",null,"44 m",null,"45 m",null,"46 m",null,"47 m",null,"48 m",null,"49 m",null,"50 m",null,"51 m",null,"52 m",null,"53 m",null,"54 m",null,"55 m",null,"56 m",null,"57 m",null,"58 m",null,"59 m",null,"60 m",null,"61 m",null,"62 m",null,"63 m",null,"64 m",null,"65 m",null,"66 m",null,"67 m",null,"68 m",null,"69 m",null,"70 m",null,"71 m",null,"72 m",null,"73 m",null,"74 m",null,"75 m",null,"76 m",null,"77 m",null,"78 m",null,"79 m",null,"80 m",null,"81 m",null,"82 m",null,"83 m",null,"84 m",null,"85 m",null,"86 m",null,"87 m",null,"88 m",null,"89 m",null,"90 m",null,"91 m",null,"92 m",null,"93 m",null,"94 m",null,"95 m",null,"96 m",null,"97 m",null,"98 m",null,"99 m",null,"100 m"]
[null,null,"B",null,null,null,null,"D",null,null," 0\n\n1 m\n\n2 m\n\n3 m\n\n4 m\n\n5 m\n\n6 m\n\n7 m\n\n8 m\n\n9 m\n\n10 m\n\n11 m\n\n12 m\n\n13 m\n\n14 m\n\n15 m\n\n16 m\n\n17 m\n\n18 m\n\n19 m\n\n20 m\n\n21 m\n\n22 m\n\n23 m\n\n24 m\n\n25 m\n\n26 m\n\n27 m\n\n28 m\n\n29 m\n\n30 m\n\n31 m\n\n32 m\n\n33 m\n\n34 m\n\n35 m\n\n36 m\n\n37 m\n\n38 m\n\n39 m\n\n40 m\n\n41 m\n\n42 m\n\n43 m\n\n44 m\n\n45 m\n\n46 m\n\n47 m\n\n48 m\n\n49 m\n\n50 m\n\n51 m\n\n52 m\n\n53 m\n\n54 m\n\n55 m\n\n56 m\n\n57 m\n\n58 m\n\n59 m\n\n60 m\n\n61 m\n\n62 m\n\n63 m\n\n64 m\n\n65 m\n\n66 m\n\n67 m\n\n68 m\n\n69 m\n\n70 m\n\n71 m\n\n72 m\n\n73 m\n\n74 m\n\n75 m\n\n76 m\n\n77 m\n\n78 m\n\n79 m\n\n80 m\n\n81 m\n\n82 m\n\n83 m\n\n84 m\n\n85 m\n\n86 m\n\n87 m\n\n88 m\n\n89 m\n\n90 m\n\n91 m\n\n92 m\n\n93 m\n\n94 m\n\n95 m\n\n96 m\n\n97 m\n\n98 m\n\n 99 m\n\n100 m"]
[null,null,0,null,null,null,null,18633.333333333336,null,null,1]
[null,null,null,null,null,null,null,null,null,null,2]
[null,null,null,null,"C",null,null,null,null,null,{"$f":"K11+1","v":3}]
[null,null,null,null,7533.3333333333339,null,null,null,null,null,{"$f":"K12+1","v":4}]
[null,{"$f":"VLOOKUP(\"Deplacement\",BD!$A$1:$P$200,Listes!$AA$2+1,0)","v":"Déplacement du champs PV"},null,null,null,null,null,null,null,null,5]
[null,null,null,null,null,null,null,null,null,null,6]
[null,null,null,null,null,null,null,null,null,null,7]
[null,null," ",null,null,null,null,null,null,null,8]
[null,null,null,null,null,null,null,null,null,null,9]
[null,null,null,null,null,null,null,null,null,null,10]
[null,null,null,null,null,null,null,null,null,null,11]
[null,null,null,null,null,null,null,null,null,null,12]
[null,null,null,null,null,null,null,null,null,null,13]
[null,null,null,null,null,null,null,null,null,null,14]
[null,null,null,null,null,null,null,null,null,null,15]
[null,null,null,null,null,null,null,null,null,null,16]
[null,null,null,null,null,null,null,null,null,null,17]
[null,null,null,null,null,null,null,null,null,null,18]
[null,null,null,null,null,null,null,null,null,null,19]
[null,null,null,null,null,null,null,null,null,null,20]
[null,null,null,null,null,null,null,null,null,null,21]
[null,null,null,null,null,null,null,null,null,null,22]
[null,null,null,null,null,null,null,null,null,null,23]
[null,null,null,null,null,null,null,null,null,null,24]
[null,null,null,null,null,null,null,null,null,null,25]
[null,null,null,null,null,null,null,null,null,null,26]
[null,null,null,null,null,null,null,null,null,null,27]
[null,null,null,null,null,null,null,null,null,null,28]
[null,null,null,null,null,null,null,null,null,null,29]
[null,null,null,null,null,null,null,null,null,null,30]
[null,null,null,null,null,null,null,null,null,null,31]
[null,null,null,null,null,null,null,null,null,null,32]
[null,null,null,null,null,null,null,null,null,null,33]
[null,null,null,null,null,null,null,null,null,null,34]
[null,null,null,null,null,null,null,null,null,null,35]
[null,null,null,null,null,null,null,null,null,null,36]
[null,null,null,null,null,null,null,null,null,null,37]
[null,null,null,null,null,null,null,null,null,null,38]
[null,null,null,null,null,null,null,null,null,null,39]
[null,null,null,null,null,null,null,null,null,null,40]
[null,null,null,null,null,null,null,null,null,null,41]
[null,null,null,null,null,null,null,null,null,null,42]
[null,null,null,null,null,null,null,null,null,null,43]
[null,null,null,null,null,null,null,null,null,null,44]
[null,null,null,null,null,null,null,null,null,null,45]
[null,null,null,null,null,null,null,null,null,null,46]
[null,null,null,null,null,null,null,null,null,null,47]
[null,null,null,null,null,null,null,null,null,null,48]
[null,null,null,null,null,null,null,null,null,null,49]
[null,null,null,null,null,null,null,null,null,null,50]
[null,null,null,null,null,null,null,null,null,null,51]
[null,null,null,null,null,null,null,null,null,null,52]
[null,null,null,null,null,null,null,null,null,null,53]
[null,null,null,null,null,null,null,null,null,null,54]
[null,null,null,null,null,null,null,null,null,null,55]
[null,null,null,null,null,null,null,null,null,null,56]
[null,null,null,null,null,null,null,null,null,null,57]
[null,null,null,null,null,null,null,null,null,null,58]
[null,null,null,null,null,null,null,null,null,null,59]
[null,null,null,null,null,null,null,null,null,null,60]
[null,null,null,null,null,null,null,null,null,null,61]
[null,null,null,null,null,null,null,null,null,null,62]
[null,null,null,null,null,null,null,null,null,null,63]
[null,null,null,null,null,null,null,null,null,null,64]
[null,null,null,null,null,null,null,null,null,null,65]
[null,null,null,null,null,null,null,null,null,null,66]
[null,null,null,null,null,null,null,null,null,null,67]
[null,null,null,null,null,null,null,null,null,null,{"$f":"K76+1","v":68}]
[null,null,null,null,null,null,null,null,null,null,69]
[null,null,null,null,null,null,null,null,null,null,70]
[null,null,null,null,null,null,null,null,null,null,71]
[null,null,null,null,null,null,null,null,null,null,72]
[null,null,null,null,null,null,null,null,null,null,73]
[null,null,null,null,null,null,null,null,null,null,74]
[null,null,null,null,null,null,null,null,null,null,75]
[null,null,null,null,null,null,null,null,null,null,76]
[null,null,null,null,null,null,null,null,null,null,77]
[null,null,null,null,null,null,null,null,null,null,78]
[null,null,null,null,null,null,null,null,null,null,79]
[null,null,null,null,null,null,null,null,null,null,80]
[null,null,null,null,null,null,null,null,null,null,81]
[null,null,null,null,null,null,null,null,null,null,82]
[null,null,null,null,null,null,null,null,null,null,83]
[null,null,null,null,null,null,null,null,null,null,84]
[null,null,null,null,null,null,null,null,null,null,85]
[null,null,null,null,null,null,null,null,null,null,86]
[null,null,null,null,null,null,null,null,null,null,87]
[null,null,null,null,null,null,null,null,null,null,88]
[null,null,null,null,null,null,null,null,null,null,89]
[null,null,null,null,null,null,null,null,null,null,90]
[null,null,null,null,null,null,null,null,null,null,91]
[null,null,null,null,null,null,null,null,null,null,92]
[null,null,null,null,null,null,null,null,null,null,93]
[null,null,null,null,null,null,null,null,null,null,94]
[null,null,null,null,null,null,null,null,null,null,95]
[null,null,null,null,null,null,null,null,null,null,96]
[null,null,null,null,null,null,null,null,null,null,97]
[null,null,null,null,null,null,null,null,null,null,98]
[null,null,null,null,null,null,null,null,null,null,99]
[null,null,null,null,null,null,null,null,null,null,100]

{"sheet":"Bon de commande","index":7,"n_rows":99,"n_cols":10,"rows_kept":99,"cut":false,"hidden":true,"merged":[[2,3,2,4],[5,3,5,4],[4,3,4,4],[3,3,3,4],[97,3,97,6],[93,3,93,4],[92,3,92,4],[95,2,95,7],[7,2,7,8],[9,2,9,4],[89,2,89,7],[91,2,91,4]]}
[]
[]
[null,null,{"$f":"TODAY()","v":"2021-06-01"},{"$f":"UPPER(VLOOKUP(\"Adr\",BD!$A$1:$P$200,Listes!$AA$2+1,0))","v":"ADRESSE / CONTACT"},null,{"$f":"UPPER(VLOOKUP(\"DateExp\",BD!$A$1:$P$200,Listes!$AA$2+1,0))","v":"DATE DE LIVRAISON SOUHAITÉE"}]
[]
[null,null,null,null,null,{"$f":"UPPER(VLOOKUP(\"Comment\",BD!$A$1:$P$200,Listes!$AA$2+1,0))","v":"COMMENTAIRES"}]
[]
[]
[null,null,{"$f":"IF(ref_projet<>\"\",ref_projet,\"\")","v":""},null,null,null,null,null,null,0]
[]
[null,null,{"$f":"UPPER(VLOOKUP(\"Ref\",BD!$A$1:$P$200,Listes!$AA$2+1,0))","v":"RÉFÉRENCES"},null,null,{"$f":"UPPER(VLOOKUP(\"NbrPiece\",BD!$A$1:$P$200,Listes!$AA$2+1,0))","v":"NOMBRE DE PIÈCES"},{"$f":"UPPER(VLOOKUP(\"PUHT\",BD!$A$1:$P$200,Listes!$AA$2+1,0))","v":"P.U. (HT)"},{"$f":"UPPER(VLOOKUP(\"PUREM\",BD!$A$1:$P$200,Listes!$AA$2+1,0))","v":"P.U. REMISÉ "},{"$f":"UPPER(VLOOKUP(\"Total\",BD!$A$1:$P$200,Listes!$AA$2+1,0))","v":"TOTAL"}]
[null,"PPAYS",{"$f":"IF(VLOOKUP(v_plaque,BD!$AN$2:$AP$22,2,0)=0,\"\",VLOOKUP(v_plaque,BD!$AN$2:$AP$22,2,0))","v":{"$error":"#N/A"}},null,{"$f":"IFERROR(INDEX(Calepinage!$B$301:$O$321,MATCH('Bon de commande'!B11,Calepinage!$O$301:$O$321,0),1),\"\")","v":""},{"$f":"IFERROR(INDEX(Calepinage!$A$301:$O$321,MATCH('Bon de commande'!B11,Calepinage!$O$301:$O$321,0),1),0)","v":0},{"$f":"IFERROR(VLOOKUP(C11,BD!$AO$2:$AP$38,2,0),34.15)","v":34.15},34.15,{"$f":"IFERROR(F11*H11,0)","v":0}]
[null,"PPORT",{"$f":"IF(VLOOKUP(v_plaque,BD!$AN$24:$AP$42,2,0)=0,\"\",VLOOKUP(v_plaque,BD!$AN$24:$AP$42,2,0))","v":{"$error":"#N/A"}},null,{"$f":"IFERROR(INDEX(Calepinage!$B$301:$O$321,MATCH('Bon de commande'!B12,Calepinage!$O$301:$O$321,0),1),\"\")","v":"GSE Portrait montageplaat 1710 / 1045"},{"$f":"IFERROR(INDEX(Calepinage!$A$301:$O$321,MATCH('Bon de commande'!B12,Calepinage!$O$301:$O$321,0),1),0)","v":4},{"$f":"IFERROR(VLOOKUP(C12,BD!$AO$2:$AP$38,2,0),34.15)","v":34.15},34.15,136.6]
[null,"COINDALUATEC ","ART101379",null,{"$f":"IFERROR(INDEX(Calepinage!$B$301:$O$321,MATCH('Bon de commande'!B13,Calepinage!$O$301:$O$321,0),1),\"\")","v":""},{"$f":"IFERROR(INDEX(Calepinage!$A$301:$O$321,MATCH('Bon de commande'!B13,Calepinage!$O$301:$O$321,0),1),0)","v":0},11.47,11.47,{"$f":"IFERROR(F13*H13,0)","v":0}]
[null,"COINDNOIRATEC ","ART101295",null,{"$f":"IFERROR(INDEX(Calepinage!$B$301:$O$321,MATCH('Bon de commande'!B14,Calepinage!$O$301:$O$321,0),1),\"\")","v":""},{"$f":"IFERROR(INDEX(Calepinage!$A$301:$O$321,MATCH('Bon de commande'!B14,Calepinage!$O$301:$O$321,0),1),0)","v":0},16.53,16.53,{"$f":"IFERROR(F14*H14,0)","v":0}]
[null,"ANGL_COIN_DROIT_AR ","ART100195",null,{"$f":"IFERROR(INDEX(Calepinage!$B$301:$O$321,MATCH('Bon de commande'!B15,Calepinage!$O$301:$O$321,0),1),\"\")","v":""},{"$f":"IFERROR(INDEX(Calepinage!$A$301:$O$321,MATCH('Bon de commande'!B15,Calepinage!$O$301:$O$321,0),1),0)","v":0},24.41,24.41,0]
[null,"COINGALUATEC ","ART100785",null,{"$f":"IFERROR(INDEX(Calepinage!$B$301:$O$321,MATCH('Bon de commande'!B16,Calepinage!$O$301:$O$321,0),1),\"\")","v":""},{"$f":"IFERROR(INDEX(Calepinage!$A$301:$O$321,MATCH('Bon de commande'!B16,Calepinage!$O$301:$O$321,0),1),0)","v":0},11.47,11.47,0]
[null,"COINGNOIRATEC ","ART100285",null,{"$f":"IFERROR(INDEX(Calepinage!$B$301:$O$321,MATCH('Bon de commande'!B17,Calepinage!$O$301:$O$321,0),1),\"\")","v":""},{"$f":"IFERROR(INDEX(Calepinage!$A$301:$O$321,MATCH('Bon de commande'!B17,Calepinage!$O$301:$O$321,0),1),0)","v":0},16.53,16.53,0]
[null,"ANGL_COIN_GAUCH_AR ","ART101291",null,{"$f":"IFERROR(INDEX(Calepinage!$B$301:$O$321,MATCH('Bon de commande'!B18,Calepinage!$O$301:$O$321,0),1),\"\")","v":""},{"$f":"IFERROR(INDEX(Calepinage!$A$301:$O$321,MATCH('Bon de commande'!B18,Calepinage!$O$301:$O$321,0),1),0)","v":0},24.41,24.41,0]
[null,"AFSA2013","ART100695",null,{"$f":"IFERROR(INDEX(Calepinage!$B$301:$O$321,MATCH('Bon de commande'!B19,Calepinage!$O$301:$O$321,0),1),\"\")","v":""},{"$f":"IFERROR(INDEX(Calepinage!$A$301:$O$321,MATCH('Bon de commande'!B19,Calepinage!$O$301:$O$321,0),1),0)","v":0},17,17,0]
[null,"AFCUNL1500","ART101041 ",null,{"$f":"IFERROR(INDEX(Calepinage!$B$301:$O$321,MATCH('Bon de commande'!B20,Calepinage!$O$301:$O$321,0),1),\"\")","v":"Universele afdekplaat midden boven - Zwart L 1500mm "},{"$f":"IFERROR(INDEX(Calepinage!$A$301:$O$321,MATCH('Bon de commande'!B20,Calepinage!$O$301:$O$321,0),1),0)","v":2},21.86,21.86,43.72]
[null,"COINDALU2014_15","ART101340",null,{"$f":"IFERROR(INDEX(Calepinage!$B$301:$O$321,MATCH('Bon de commande'!B21,Calepinage!$O$301:$O$321,0),1),\"\")","v":""},{"$f":"IFERROR(INDEX(Calepinage!$A$301:$O$321,MATCH('Bon de commande'!B21,Calepinage!$O$301:$O$321,0),1),0)","v":0},13.5,13.5,0]
[null,"COINDNOIR2014_15","ART100574",null,{"$f":"IFERROR(INDEX(Calepinage!$B$301:$O$321,MATCH('Bon de commande'!B22,Calepinage!$O$301:$O$321,0),1),\"\")","v":"Universele hoekafdekplaat RECHTS boven Zwart"},{"$f":"IFERROR(INDEX(Calepinage!$A$301:$O$321,MATCH('Bon de commande'!B22,Calepinage!$O$301:$O$321,0),1),0)","v":1},18.36,18.36,18.36]
[null,"COINGALU2014_15","ART100862",null,{"$f":"IFERROR(INDEX(Calepinage!$B$301:$O$321,MATCH('Bon de commande'!B23,Calepinage!$O$301:$O$321,0),1),\"\")","v":""},{"$f":"IFERROR(INDEX(Calepinage!$A$301:$O$321,MATCH('Bon de commande'!B23,Calepinage!$O$301:$O$321,0),1),0)","v":0},13.5,13.5,0]
[null,"COINGNOIR2014_15","ART100945",null,{"$f":"IFERROR(INDEX(Calepinage!$B$301:$O$321,MATCH('Bon de commande'!B24,Calepinage!$O$301:$O$321,0),1),\"\")","v":"Universele hoekafdekplaat LINKS boven Zwart"},{"$f":"IFERROR(INDEX(Calepinage!$A$301:$O$321,MATCH('Bon de commande'!B24,Calepinage!$O$301:$O$321,0),1),0)","v":1},18.36,18.36,18.36]
[null,"AFJA2013","ART100558",null,{"$f":"IFERROR(INDEX(Calepinage!$B$301:$O$321,MATCH('Bon de commande'!B25,Calepinage!$O$301:$O$321,0),1),\"\")","v":""},{"$f":"IFERROR(INDEX(Calepinage!$A$301:$O$321,MATCH('Bon de commande'!B25,Calepinage!$O$301:$O$321,0),1),0)","v":0},4.5,4.5,0]
[null,"AFJUNL375","ART100039",null,{"$f":"IFERROR(INDEX(Calepinage!$B$301:$O$321,MATCH('Bon de commande'!B26,Calepinage!$O$301:$O$321,0),1),\"\")","v":"Universele verbinding bovenste afdekplaat Zwart L 375mm  "},{"$f":"IFERROR(INDEX(Calepinage!$A$301:$O$321,MATCH('Bon de commande'!B26,Calepinage!$O$301:$O$321,0),1),0)","v":1},5.79,5.79,5.79]
[null,"ABER_HAUT_ATEC_ALU ","ART100441",null,{"$f":"IFERROR(INDEX(Calepinage!$B$301:$O$321,MATCH('Bon de commande'!B27,Calepinage!$O$301:$O$321,0),1),\"\")","v":""},{"$f":"IFERROR(INDEX(Calepinage!$A$301:$O$321,MATCH('Bon de commande'!B27,Calepinage!$O$301:$O$321,0),1),0)","v":0},21.93,21.93,0]
[null,"ABER_HAUT_ATEC_NOI ","ART100557",null,{"$f":"IFERROR(INDEX(Calepinage!$B$301:$O$321,MATCH('Bon de commande'!B28,Calepinage!$O$301:$O$321,0),1),\"\")","v":""},{"$f":"IFERROR(INDEX(Calepinage!$A$301:$O$321,MATCH('Bon de commande'!B28,Calepinage!$O$301:$O$321,0),1),0)","v":0},29.84,29.84,0]
[null,"AB_HAUT_SPEC_ALU",null,null,{"$f":"IFERROR(INDEX(Calepinage!$B$301:$O$321,MATCH('Bon de commande'!B29,Calepinage!$O$301:$O$321,0),1),\"\")","v":""},{"$f":"IFERROR(INDEX(Calepinage!$A$301:$O$321,MATCH('Bon de commande'!B29,Calepinage!$O$301:$O$321,0),1),0)","v":0},17,17,0]
[null,"AB_HAUT_SPEC_NOIR",null,null,{"$f":"IFERROR(INDEX(Calepinage!$B$301:$O$321,MATCH('Bon de commande'!B30,Calepinage!$O$301:$O$321,0),1),\"\")","v":""},{"$f":"IFERROR(INDEX(Calepinage!$A$301:$O$321,MATCH('Bon de commande'!B30,Calepinage!$O$301:$O$321,0),1),0)","v":0},20.239999999999998,20.239999999999998,0]
[null,"ABER_HAUT_ATEC_ARD ",null,null,{"$f":"IFERROR(INDEX(Calepinage!$B$301:$O$321,MATCH('Bon de commande'!B31,Calepinage!$O$301:$O$321,0),1),\"\")","v":""},{"$f":"IFERROR(INDEX(Calepinage!$A$301:$O$321,MATCH('Bon de commande'!B31,Calepinage!$O$301:$O$321,0),1),0)","v":0},22.1,22.1,0]
[null,"AB_HAUT_1001_VA1 ","ART101014",null,{"$f":"IFERROR(INDEX(Calepinage!$B$301:$O$321,MATCH('Bon de commande'!B32,Calepinage!$O$301:$O$321,0),1),\"\")","v":""},{"$f":"IFERROR(INDEX(Calepinage!$A$301:$O$321,MATCH('Bon de commande'!B32,Calepinage!$O$301:$O$321,0),1),0)","v":0},18.309999999999999,18.309999999999999,{"$f":"IFERROR(F32*H32,0)","v":0}]
[null,"AB_HAUT_1046_VA1 ","ART101567",null,{"$f":"IFERROR(INDEX(Calepinage!$B$301:$O$321,MATCH('Bon de commande'!B33,Calepinage!$O$301:$O$321,0),1),\"\")","v":""},{"$f":"IFERROR(INDEX(Calepinage!$A$301:$O$321,MATCH('Bon de commande'!B33,Calepinage!$O$301:$O$321,0),1),0)","v":0},23.87,23.87,0]
[null,"AB_HAUT_992_VA1 ","ART100820",null,{"$f":"IFERROR(INDEX(Calepinage!$B$301:$O$321,MATCH('Bon de commande'!B34,Calepinage!$O$301:$O$321,0),1),\"\")","v":""},{"$f":"IFERROR(INDEX(Calepinage!$A$301:$O$321,MATCH('Bon de commande'!B34,Calepinage!$O$301:$O$321,0),1),0)","v":0},23.87,23.87,0]
[null,"RACC_ABER_HAUT_ARD ","ART100110",null,{"$f":"IFERROR(INDEX(Calepinage!$B$301:$O$321,MATCH('Bon de commande'!B35,Calepinage!$O$301:$O$321,0),1),\"\")","v":""},{"$f":"IFERROR(INDEX(Calepinage!$A$301:$O$321,MATCH('Bon de commande'!B35,Calepinage!$O$301:$O$321,0),1),0)","v":0},4.75,4.75,0]
[null,"ALAALUDROITATEC ","ART100079",null,{"$f":"IFERROR(INDEX(Calepinage!$B$301:$O$321,MATCH('Bon de commande'!B36,Calepinage!$O$301:$O$321,0),1),\"\")","v":""},{"$f":"IFERROR(INDEX(Calepinage!$A$301:$O$321,MATCH('Bon de commande'!B36,Calepinage!$O$301:$O$321,0),1),0)","v":0},14.79,14.79,0]
[null,"ALABLKDROITATEC ","ART100973",null,{"$f":"IFERROR(INDEX(Calepinage!$B$301:$O$321,MATCH('Bon de commande'!B37,Calepinage!$O$301:$O$321,0),1),\"\")","v":""},{"$f":"IFERROR(INDEX(Calepinage!$A$301:$O$321,MATCH('Bon de commande'!B37,Calepinage!$O$301:$O$321,0),1),0)","v":0},20.12,20.12,0]
[null,"ABER_LAT_DROIT_ARD ","ART100429",null,{"$f":"IFERROR(INDEX(Calepinage!$B$301:$O$321,MATCH('Bon de commande'!B38,Calepinage!$O$301:$O$321,0),1),\"\")","v":""},{"$f":"IFERROR(INDEX(Calepinage!$A$301:$O$321,MATCH('Bon de commande'!B38,Calepinage!$O$301:$O$321,0),1),0)","v":0},14.69,14.69,0]
[null,"ALAALUGAUCHEATEC ","ART100057",null,{"$f":"IFERROR(INDEX(Calepinage!$B$301:$O$321,MATCH('Bon de commande'!B39,Calepinage!$O$301:$O$321,0),1),\"\")","v":""},{"$f":"IFERROR(INDEX(Calepinage!$A$301:$O$321,MATCH('Bon de commande'!B39,Calepinage!$O$301:$O$321,0),1),0)","v":0},14.79,14.79,0]
[null,"ALABLKGAUCHEATEC ","ART101030",null,{"$f":"IFERROR(INDEX(Calepinage!$B$301:$O$321,MATCH('Bon de commande'!B40,Calepinage!$O$301:$O$321,0),1),\"\")","v":""},{"$f":"IFERROR(INDEX(Calepinage!$A$301:$O$321,MATCH('Bon de commande'!B40,Calepinage!$O$301:$O$321,0),1),0)","v":0},20.12,20.12,0]
[null,"ABER_LAT_GAUCH_AR ","ART100568",null,{"$f":"IFERROR(INDEX(Calepinage!$B$301:$O$321,MATCH('Bon de commande'!B41,Calepinage!$O$301:$O$321,0),1),\"\")","v":""},{"$f":"IFERROR(INDEX(Calepinage!$A$301:$O$321,MATCH('Bon de commande'!B41,Calepinage!$O$301:$O$321,0),1),0)","v":0},14.69,14.69,0]
[null,"ALUAP30TUILBRUTRE3","ART100703",null,{"$f":"IFERROR(INDEX(Calepinage!$B$301:$O$321,MATCH('Bon de commande'!B42,Calepinage!$O$301:$O$321,0),1),\"\")","v":""},{"$f":"IFERROR(INDEX(Calepinage!$A$301:$O$321,MATCH('Bon de commande'!B42,Calepinage!$O$301:$O$321,0),1),0)","v":0},10.9,10.9,0]
[null,"ALUNP30TUILNOIRRE3","ART100927",null,{"$f":"IFERROR(INDEX(Calepinage!$B$301:$O$321,MATCH('Bon de commande'!B43,Calepinage!$O$301:$O$321,0),1),\"\")","v":""},{"$f":"IFERROR(INDEX(Calepinage!$A$301:$O$321,MATCH('Bon de commande'!B43,Calepinage!$O$301:$O$321,0),1),0)","v":0},13.72,13.72,0]
[null,"ALUA","ART100673",null,{"$f":"IFERROR(INDEX(Calepinage!$B$301:$O$321,MATCH('Bon de commande'!B44,Calepinage!$O$301:$O$321,0),1),\"\")","v":""},{"$f":"IFERROR(INDEX(Calepinage!$A$301:$O$321,MATCH('Bon de commande'!B44,Calepinage!$O$301:$O$321,0),1),0)","v":0},9.4,9.4,0]
[null,"ALUN","ART100494",null,{"$f":"IFERROR(INDEX(Calepinage!$B$301:$O$321,MATCH('Bon de commande'!B45,Calepinage!$O$301:$O$321,0),1),\"\")","v":"Universele zijafdekplaat - Zwart"},{"$f":"IFERROR(INDEX(Calepinage!$A$301:$O$321,MATCH('Bon de commande'!B45,Calepinage!$O$301:$O$321,0),1),0)","v":8},12.09,12.09,96.72]
[null,"CORNIERELAQUEB","ART101409",null,{"$f":"IFERROR(INDEX(Calepinage!$B$301:$O$321,MATCH('Bon de commande'!B46,Calepinage!$O$301:$O$321,0),1),\"\")","v":"Hoekstuk Zwart L1400 mm om de module te verbinden met de afdekplaat midden boven"},{"$f":"IFERROR(INDEX(Calepinage!$A$301:$O$321,MATCH('Bon de commande'!B46,Calepinage!$O$301:$O$321,0),1),0)","v":2},4.5,4.5,9]
[null,"CORNIERE","ART100867",null,{"$f":"IFERROR(INDEX(Calepinage!$B$301:$O$321,MATCH('Bon de commande'!B47,Calepinage!$O$301:$O$321,0),1),\"\")","v":""},{"$f":"IFERROR(INDEX(Calepinage!$A$301:$O$321,MATCH('Bon de commande'!B47,Calepinage!$O$301:$O$321,0),1),0)","v":0},3.5,3.5,0]
[null,"CROCHET","ART100633",null,{"$f":"IFERROR(INDEX(Calepinage!$B$301:$O$321,MATCH('Bon de commande'!B48,Calepinage!$O$301:$O$321,0),1),\"\")","v":"GSE bevestigingshaakjes afdekplaten"},{"$f":"IFERROR(INDEX(Calepinage!$A$301:$O$321,MATCH('Bon de commande'!B48,Calepinage!$O$301:$O$321,0),1),0)","v":25},0.65,0.65,16.25]
[null,"EDH162014ALU (ASV09-35G)","ART100045",null,{"$f":"IFERROR(INDEX(Calepinage!$B$301:$O$321,MATCH('Bon de commande'!B49,Calepinage!$O$301:$O$321,0),1),\"\")","v":""},{"$f":"IFERROR(INDEX(Calepinage!$A$301:$O$321,MATCH('Bon de commande'!B49,Calepinage!$O$301:$O$321,0),1),0)","v":0},1.18,1.18,0]
[null,"EDH162014N (ASV09-35V)","ART100482",null,{"$f":"IFERROR(INDEX(Calepinage!$B$301:$O$321,MATCH('Bon de commande'!B50,Calepinage!$O$301:$O$321,0),1),\"\")","v":"H16 Middenklem - Inox - Zwart - In Roof"},{"$f":"IFERROR(INDEX(Calepinage!$A$301:$O$321,MATCH('Bon de commande'!B50,Calepinage!$O$301:$O$321,0),1),0)","v":4},1.4,1.4,5.6]
[null,"EDH162014ALU",null,null,{"$f":"IFERROR(INDEX(Calepinage!$B$301:$O$321,MATCH('Bon de commande'!B51,Calepinage!$O$301:$O$321,0),1),\"\")","v":""},{"$f":"IFERROR(INDEX(Calepinage!$A$301:$O$321,MATCH('Bon de commande'!B51,Calepinage!$O$301:$O$321,0),1),0)","v":0},1.18,1.18,0]
[null,"EDH162014N",null,null,{"$f":"IFERROR(INDEX(Calepinage!$B$301:$O$321,MATCH('Bon de commande'!B52,Calepinage!$O$301:$O$321,0),1),\"\")","v":""},{"$f":"IFERROR(INDEX(Calepinage!$A$301:$O$321,MATCH('Bon de commande'!B52,Calepinage!$O$301:$O$321,0),1),0)","v":0},1.18,1.18,0]
[null,"EDH192014ALU (ASV-38G)","ART100171",null,{"$f":"IFERROR(INDEX(Calepinage!$B$301:$O$321,MATCH('Bon de commande'!B53,Calepinage!$O$301:$O$321,0),1),\"\")","v":""},{"$f":"IFERROR(INDEX(Calepinage!$A$301:$O$321,MATCH('Bon de commande'!B53,Calepinage!$O$301:$O$321,0),1),0)","v":0},1.18,1.18,0]
[null,"EDH192014N (ASV-38V)","ART100548",null,{"$f":"IFERROR(INDEX(Calepinage!$B$301:$O$321,MATCH('Bon de commande'!B54,Calepinage!$O$301:$O$321,0),1),\"\")","v":""},{"$f":"IFERROR(INDEX(Calepinage!$A$301:$O$321,MATCH('Bon de commande'!B54,Calepinage!$O$301:$O$321,0),1),0)","v":0},1.4,1.4,0]
[null,"EDH212014ALU (ASV09-40G)","ART100597",null,{"$f":"IFERROR(INDEX(Calepinage!$B$301:$O$321,MATCH('Bon de commande'!B55,Calepinage!$O$301:$O$321,0),1),\"\")","v":""},{"$f":"IFERROR(INDEX(Calepinage!$A$301:$O$321,MATCH('Bon de commande'!B55,Calepinage!$O$301:$O$321,0),1),0)","v":0},1.18,1.18,0]
[null,"EDH212014N (ASV09-40V)","ART100744",null,{"$f":"IFERROR(INDEX(Calepinage!$B$301:$O$321,MATCH('Bon de commande'!B56,Calepinage!$O$301:$O$321,0),1),\"\")","v":""},{"$f":"IFERROR(INDEX(Calepinage!$A$301:$O$321,MATCH('Bon de commande'!B56,Calepinage!$O$301:$O$321,0),1),0)","v":0},1.4,1.4,0]
[null,"EDH232014ALU (ASV09-42G)","ART101192",null,{"$f":"IFERROR(INDEX(Calepinage!$B$301:$O$321,MATCH('Bon de commande'!B57,Calepinage!$O$301:$O$321,0),1),\"\")","v":""},{"$f":"IFERROR(INDEX(Calepinage!$A$301:$O$321,MATCH('Bon de commande'!B57,Calepinage!$O$301:$O$321,0),1),0)","v":0},1.18,1.18,0]
[null,"EDH232014N (ASV9-42V)","ART100658",null,{"$f":"IFERROR(INDEX(Calepinage!$B$301:$O$321,MATCH('Bon de commande'!B58,Calepinage!$O$301:$O$321,0),1),\"\")","v":""},{"$f":"IFERROR(INDEX(Calepinage!$A$301:$O$321,MATCH('Bon de commande'!B58,Calepinage!$O$301:$O$321,0),1),0)","v":0},1.4,1.4,0]
[null,"EDH262014ALU (ASV09-46G)","ART102202",null,{"$f":"IFERROR(INDEX(Calepinage!$B$301:$O$321,MATCH('Bon de commande'!B59,Calepinage!$O$301:$O$321,0),1),\"\")","v":""},{"$f":"IFERROR(INDEX(Calepinage!$A$301:$O$321,MATCH('Bon de commande'!B59,Calepinage!$O$301:$O$321,0),1),0)","v":0},1.18,1.18,0]
[null,"EDH262014N (ASV09-46V)","ART102335",null,{"$f":"IFERROR(INDEX(Calepinage!$B$301:$O$321,MATCH('Bon de commande'!B60,Calepinage!$O$301:$O$321,0),1),\"\")","v":""},{"$f":"IFERROR(INDEX(Calepinage!$A$301:$O$321,MATCH('Bon de commande'!B60,Calepinage!$O$301:$O$321,0),1),0)","v":0},1.4,1.4,0]
[null,"EDH272014ALU (ASV09-46G)","ART100006",null,{"$f":"IFERROR(INDEX(Calepinage!$B$301:$O$321,MATCH('Bon de commande'!B61,Calepinage!$O$301:$O$321,0),1),\"\")","v":""},{"$f":"IFERROR(INDEX(Calepinage!$A$301:$O$321,MATCH('Bon de commande'!B61,Calepinage!$O$301:$O$321,0),1),0)","v":0},1.18,1.18,0]
[null,"EDH272014N (ASV09-46V)","ART100242",null,{"$f":"IFERROR(INDEX(Calepinage!$B$301:$O$321,MATCH('Bon de commande'!B62,Calepinage!$O$301:$O$321,0),1),\"\")","v":""},{"$f":"IFERROR(INDEX(Calepinage!$A$301:$O$321,MATCH('Bon de commande'!B62,Calepinage!$O$301:$O$321,0),1),0)","v":0},1.4,1.4,0]
[null,"EDH312014ALU (ASV09-50G)","ART101326",null,{"$f":"IFERROR(INDEX(Calepinage!$B$301:$O$321,MATCH('Bon de commande'!B63,Calepinage!$O$301:$O$321,0),1),\"\")","v":""},{"$f":"IFERROR(INDEX(Calepinage!$A$301:$O$321,MATCH('Bon de commande'!B63,Calepinage!$O$301:$O$321,0),1),0)","v":0},1.18,1.18,0]
[null,"EDH312014N (ASV09-50V)","ART101288",null,{"$f":"IFERROR(INDEX(Calepinage!$B$301:$O$321,MATCH('Bon de commande'!B64,Calepinage!$O$301:$O$321,0),1),\"\")","v":""},{"$f":"IFERROR(INDEX(Calepinage!$A$301:$O$321,MATCH('Bon de commande'!B64,Calepinage!$O$301:$O$321,0),1),0)","v":0},1.4,1.4,0]
[null,"ESH162014ALU (ASV08-35G)","ART100376",null,{"$f":"IFERROR(INDEX(Calepinage!$B$301:$O$321,MATCH('Bon de commande'!B65,Calepinage!$O$301:$O$321,0),1),\"\")","v":""},{"$f":"IFERROR(INDEX(Calepinage!$A$301:$O$321,MATCH('Bon de commande'!B65,Calepinage!$O$301:$O$321,0),1),0)","v":0},1.02,1.02,0]
[null,"ESH162014N (ASV08-35V)","ART100814",null,{"$f":"IFERROR(INDEX(Calepinage!$B$301:$O$321,MATCH('Bon de commande'!B66,Calepinage!$O$301:$O$321,0),1),\"\")","v":"H16 Eindklem - Inox - Zwart - In Roof"},{"$f":"IFERROR(INDEX(Calepinage!$A$301:$O$321,MATCH('Bon de commande'!B66,Calepinage!$O$301:$O$321,0),1),0)","v":8},1.21,1.21,9.68]
[null,"ESH162014ALU","ART100376",null,{"$f":"IFERROR(INDEX(Calepinage!$B$301:$O$321,MATCH('Bon de commande'!B67,Calepinage!$O$301:$O$321,0),1),\"\")","v":""},{"$f":"IFERROR(INDEX(Calepinage!$A$301:$O$321,MATCH('Bon de commande'!B67,Calepinage!$O$301:$O$321,0),1),0)","v":0},1.02,1.02,0]
[null,"ESH162014N","ART100814",null,{"$f":"IFERROR(INDEX(Calepinage!$B$301:$O$321,MATCH('Bon de commande'!B68,Calepinage!$O$301:$O$321,0),1),\"\")","v":""},{"$f":"IFERROR(INDEX(Calepinage!$A$301:$O$321,MATCH('Bon de commande'!B68,Calepinage!$O$301:$O$321,0),1),0)","v":0},1.21,1.21,0]
[null,"ESH192014ALU (ASV08-38G)","ART101152",null,{"$f":"IFERROR(INDEX(Calepinage!$B$301:$O$321,MATCH('Bon de commande'!B69,Calepinage!$O$301:$O$321,0),1),\"\")","v":""},{"$f":"IFERROR(INDEX(Calepinage!$A$301:$O$321,MATCH('Bon de commande'!B69,Calepinage!$O$301:$O$321,0),1),0)","v":0},1.02,1.02,0]
[null,"ESH192014N (ASV08-38V)","ART101299",null,{"$f":"IFERROR(INDEX(Calepinage!$B$301:$O$321,MATCH('Bon de commande'!B70,Calepinage!$O$301:$O$321,0),1),\"\")","v":""},{"$f":"IFERROR(INDEX(Calepinage!$A$301:$O$321,MATCH('Bon de commande'!B70,Calepinage!$O$301:$O$321,0),1),0)","v":0},1.21,1.21,0]
[null,"ESH212014ALU (ASV08-40G)","ART101279",null,{"$f":"IFERROR(INDEX(Calepinage!$B$301:$O$321,MATCH('Bon de commande'!B71,Calepinage!$O$301:$O$321,0),1),\"\")","v":""},{"$f":"IFERROR(INDEX(Calepinage!$A$301:$O$321,MATCH('Bon de commande'!B71,Calepinage!$O$301:$O$321,0),1),0)","v":0},1.02,1.02,0]
[null,"ESH212014N (ASV08-40V)","ART100495",null,{"$f":"IFERROR(INDEX(Calepinage!$B$301:$O$321,MATCH('Bon de commande'!B72,Calepinage!$O$301:$O$321,0),1),\"\")","v":""},{"$f":"IFERROR(INDEX(Calepinage!$A$301:$O$321,MATCH('Bon de commande'!B72,Calepinage!$O$301:$O$321,0),1),0)","v":0},1.21,1.21,0]
[null,"ESH232014ALU (ASV08-42G)","ART101215",null,{"$f":"IFERROR(INDEX(Calepinage!$B$301:$O$321,MATCH('Bon de commande'!B73,Calepinage!$O$301:$O$321,0),1),\"\")","v":""},{"$f":"IFERROR(INDEX(Calepinage!$A$301:$O$321,MATCH('Bon de commande'!B73,Calepinage!$O$301:$O$321,0),1),0)","v":0},1.02,1.02,0]
[null,"ESH232014N (ASV08-42V)","ART101230",null,{"$f":"IFERROR(INDEX(Calepinage!$B$301:$O$321,MATCH('Bon de commande'!B74,Calepinage!$O$301:$O$321,0),1),\"\")","v":""},{"$f":"IFERROR(INDEX(Calepinage!$A$301:$O$321,MATCH('Bon de commande'!B74,Calepinage!$O$301:$O$321,0),1),0)","v":0},1.21,1.21,0]
[null,"ESH262014ALU (ASV08-46G)","ART102321",null,{"$f":"IFERROR(INDEX(Calepinage!$B$301:$O$321,MATCH('Bon de commande'!B75,Calepinage!$O$301:$O$321,0),1),\"\")","v":""},{"$f":"IFERROR(INDEX(Calepinage!$A$301:$O$321,MATCH('Bon de commande'!B75,Calepinage!$O$301:$O$321,0),1),0)","v":0},1.02,1.02,0]
[null,"ESH262014N (ASV08-46V)","ART102328",null,{"$f":"IFERROR(INDEX(Calepinage!$B$301:$O$321,MATCH('Bon de commande'!B76,Calepinage!$O$301:$O$321,0),1),\"\")","v":""},{"$f":"IFERROR(INDEX(Calepinage!$A$301:$O$321,MATCH('Bon de commande'!B76,Calepinage!$O$301:$O$321,0),1),0)","v":0},1.21,1.21,0]
[null,"ESH272014ALU (ASV08-46G)","ART100063",null,{"$f":"IFERROR(INDEX(Calepinage!$B$301:$O$321,MATCH('Bon de commande'!B77,Calepinage!$O$301:$O$321,0),1),\"\")","v":""},{"$f":"IFERROR(INDEX(Calepinage!$A$301:$O$321,MATCH('Bon de commande'!B77,Calepinage!$O$301:$O$321,0),1),0)","v":0},1.02,1.02,0]
[null,"ESH272014N (ASV08-46V)","ART100260",null,{"$f":"IFERROR(INDEX(Calepinage!$B$301:$O$321,MATCH('Bon de commande'!B78,Calepinage!$O$301:$O$321,0),1),\"\")","v":""},{"$f":"IFERROR(INDEX(Calepinage!$A$301:$O$321,MATCH('Bon de commande'!B78,Calepinage!$O$301:$O$321,0),1),0)","v":0},1.21,1.21,0]
[null,"ESH312014ALU (ASV08-50G)","ART100172",null,{"$f":"IFERROR(INDEX(Calepinage!$B$301:$O$321,MATCH('Bon de commande'!B79,Calepinage!$O$301:$O$321,0),1),\"\")","v":""},{"$f":"IFERROR(INDEX(Calepinage!$A$301:$O$321,MATCH('Bon de commande'!B79,Calepinage!$O$301:$O$321,0),1),0)","v":0},1.02,1.02,{"$f":"IFERROR(F79*H79,0)","v":0}]
[null,"ESH312014N (ASV08-50V)","ART100381",null,{"$f":"IFERROR(INDEX(Calepinage!$B$301:$O$321,MATCH('Bon de commande'!B80,Calepinage!$O$301:$O$321,0),1),\"\")","v":""},{"$f":"IFERROR(INDEX(Calepinage!$A$301:$O$321,MATCH('Bon de commande'!B80,Calepinage!$O$301:$O$321,0),1),0)","v":0},1.21,1.21,0]
[null,"CALE_GAUCHE","ART100212",null,{"$f":"IFERROR(INDEX(Calepinage!$B$301:$O$321,MATCH('Bon de commande'!B81,Calepinage!$O$301:$O$321,0),1),\"\")","v":"Linker Wig voor Eindklem - In Roof"},{"$f":"IFERROR(INDEX(Calepinage!$A$301:$O$321,MATCH('Bon de commande'!B81,Calepinage!$O$301:$O$321,0),1),0)","v":4},0.245,0.245,0.98]
[null,"CALE_DROIT","ART101501",null,{"$f":"IFERROR(INDEX(Calepinage!$B$301:$O$321,MATCH('Bon de commande'!B82,Calepinage!$O$301:$O$321,0),1),\"\")","v":"Rechter Wig voor Eindklem - In Roof"},{"$f":"IFERROR(INDEX(Calepinage!$A$301:$O$321,MATCH('Bon de commande'!B82,Calepinage!$O$301:$O$321,0),1),0)","v":4},0.245,0.245,0.98]
[null,"JOINT_PRE_CONTRAIN","ART101088",null,{"$f":"IFERROR(INDEX(Calepinage!$B$301:$O$321,MATCH('Bon de commande'!B83,Calepinage!$O$301:$O$321,0),1),\"\")","v":"Voorgecomprimeerde afdichting/uitzetband - 20 x 40mm (5,5m rol)"},{"$f":"IFERROR(INDEX(Calepinage!$A$301:$O$321,MATCH('Bon de commande'!B83,Calepinage!$O$301:$O$321,0),1),0)","v":2},11.07,11.07,22.14]
[null,"CALE_EPDM_CELL","ART101138",null,{"$f":"IFERROR(INDEX(Calepinage!$B$301:$O$321,MATCH('Bon de commande'!B84,Calepinage!$O$301:$O$321,0),1),\"\")","v":"EPDM 40x60 mm voor onder schroef IN-ROOF (2m rol)"},{"$f":"IFERROR(INDEX(Calepinage!$A$301:$O$321,MATCH('Bon de commande'!B84,Calepinage!$O$301:$O$321,0),1),0)","v":12},0.08,0.08,0.96]
[null,"JOINT_MOUSS_TRIAN ","ART101178",null,{"$f":"IFERROR(INDEX(Calepinage!$B$301:$O$321,MATCH('Bon de commande'!B85,Calepinage!$O$301:$O$321,0),1),\"\")","v":""},{"$f":"IFERROR(INDEX(Calepinage!$A$301:$O$321,MATCH('Bon de commande'!B85,Calepinage!$O$301:$O$321,0),1),0)","v":0},5.84,5.84,0]
[null,"RIVETPOP","ART100389",null,{"$f":"IFERROR(INDEX(Calepinage!$B$301:$O$321,MATCH('Bon de commande'!B86,Calepinage!$O$301:$O$321,0),1),\"\")","v":"Popnagels 4x8 (voor het verbinden van het bovenste hoekstuk)"},{"$f":"IFERROR(INDEX(Calepinage!$A$301:$O$321,MATCH('Bon de commande'!B86,Calepinage!$O$301:$O$321,0),1),0)","v":8},6.3E-2,6.3E-2,0.504]
[null,"VIS2014A","ART100931",null,{"$f":"IFERROR(INDEX(Calepinage!$B$301:$O$321,MATCH('Bon de commande'!B87,Calepinage!$O$301:$O$321,0),1),\"\")","v":"GSE Integration schroef + sluitring Grijs 6.3mmx60mm"},{"$f":"IFERROR(INDEX(Calepinage!$A$301:$O$321,MATCH('Bon de commande'!B87,Calepinage!$O$301:$O$321,0),1),0)","v":24},0.23,0.23,5.5200000000000005]
[null,"VIS2014N","ART101552",null,{"$f":"IFERROR(INDEX(Calepinage!$B$301:$O$321,MATCH('Bon de commande'!B88,Calepinage!$O$301:$O$321,0),1),\"\")","v":"GSE Integration schroef + sluitring Zwart 6.3mmx60mm"},{"$f":"IFERROR(INDEX(Calepinage!$A$301:$O$321,MATCH('Bon de commande'!B88,Calepinage!$O$301:$O$321,0),1),0)","v":12},0.27,0.27,3.24]
[]
[null,null,{"$f":"UPPER(VLOOKUP(\"Total\",BD!$A$1:$P$200,Listes!$AA$2+1,0))","v":"TOTAL"},null,null,null,null,null,{"$f":" SUM(I11:I88)","v":394.40400000000005}]
[]
[null,"TOTAL",{"$f":"UPPER(VLOOKUP(\"Option\",BD!$A$1:$P$200,Listes!$AA$2+1,0))","v":"OPTIONS"},null,null,{"$f":"UPPER(VLOOKUP(\"NbrPiece\",BD!$A$1:$P$200,Listes!$AA$2+1,0))","v":"NOMBRE DE PIÈCES"},{"$f":"UPPER(VLOOKUP(\"PUHT\",BD!$A$1:$P$200,Listes!$AA$2+1,0))","v":"P.U. (HT)"},{"$f":"UPPER(VLOOKUP(\"PUREM\",BD!$A$1:$P$200,Listes!$AA$2+1,0))","v":"P.U. REMISÉ "},{"$f":"UPPER(VLOOKUP(\"Total\",BD!$A$1:$P$200,Listes!$AA$2+1,0))","v":"TOTAL"}]
[null,"BANDE_FLEXALU-500",{"$f":"IF(flex_largeur=1,\"ART100385\",IF(flex_couleur=1,\"ART101405\",\"ART101272\"))","v":"ART100385"},{"$f":"Calepinage!B320","v":"Flexalu Waterdichte Strip Zwart 330mm (5 m rol)"},null,{"$f":"Calepinage!A320","v":1},{"$f":"IF(flex_largeur=1,54.92,81.73)","v":54.92},54.92,{"$f":"F93*H93","v":54.92}]
[null,"OPTIONS","ART101292",{"$f":"IF(Calepinage!B321<>\"\",Calepinage!B321,\"\")","v":"Dakfolie (Rol van 75 m²)  "},null,{"$f":"IF(Calepinage!A321>0,Calepinage!A321&\" (\"&Calepinage!A323&\" m2)\",0)","v":"1 (10 m2)"},156.9,156.9,{"$f":"Calepinage!A321*H94","v":156.9}]
[]
[null,null,{"$f":"UPPER(VLOOKUP(\"Total\",BD!$A$1:$P$200,Listes!$AA$2+1,0))","v":"TOTAL"},null,null,null,null,null,{"$f":"I90+I93+I94","v":606.22400000000005}]
[]
[null,null,null,{"$f":"UPPER(VLOOKUP(\"NotePriceOpt\",BD!$A$1:$P$200,Listes!$AA$2+1,0))","v":"NB : PRIX DISPONIBLE AUPRÈS DE VOTRE INTERLOCUTEUR HABITUEL."}]
[null,null,null,{"$f":"UPPER(VLOOKUP(\"WebLink1\",BD!$A$1:$P$200,Listes!$AA$2+1,0))","v":"POUR PLUS D’INFORMATION SUR LE PRODUIT : WWW.GSEINTEGRATION.COM"}]